Service Area,Service Division,Expense Type,Expense Code,Detailed Expense Type,Payment Date,Transaction Number,Amount Exc Vat,Supplier Name
Adults Wellbeing and Health,Head of Adults,Third Party Payments,470101,Purchase of Care,01-May-2013,219420-2097859,"16,968.00",CARELINE LIFESTYLES LTD.
Adults Wellbeing and Health,Head of Adults,Third Party Payments,478101,Purchase of Care,01-May-2013,219506-2096951,"1,348.80",REDACTED - PAYMENT TO INDIVIDUAL
Adults Wellbeing and Health,Head of Adults,Third Party Payments,478101,Purchase of Care,01-May-2013,219506-2096952,"1,348.80",REDACTED - PAYMENT TO INDIVIDUAL
Adults Wellbeing and Health,Head of Adults,Third Party Payments,478101,Purchase of Care,01-May-2013,219509-2092963,"1,249.40",REDACTED - PAYMENT TO INDIVIDUAL
Adults Wellbeing and Health,Head of Adults,Third Party Payments,474101,Purchase of Care,01-May-2013,219538-2092936,690.04,RICHMOND FELLOWSHIP.
Adults Wellbeing and Health,Head of Adults,Third Party Payments,474101,Purchase of Care,01-May-2013,219538-2092937,690.04,RICHMOND FELLOWSHIP.
Adults Wellbeing and Health,Social Inclusion,Supplies and Services,384199,Miscellaneous Expenses,01-May-2013,2587861-53,"3,478.50",ABSOLUTE CARE TRAINING & EDUCATION.
Adults Wellbeing and Health,Head of Adults,Supplies and Services,324117,Provisions,01-May-2013,2587883-31596194,582.25,BRAKE BROS FOODSERVICE LTD.
Adults Wellbeing and Health,Commissioning inc Supporting People,Third Party Payments,479101,Purchase of Care,01-May-2013,2587888-650038528,"3,703.00",BRITISH RED CROSS SOCIETY.
Adults Wellbeing and Health,Commissioning inc Supporting People,Third Party Payments,479101,Purchase of Care,01-May-2013,2587888-650038529,"3,703.00",BRITISH RED CROSS SOCIETY.
Adults Wellbeing and Health,Central Charges,Supplies and Services,342053,Computers and Communications,01-May-2013,2587895-340361,"9,402.50",BYTES SOFTWARE SERVICES.
Adults Wellbeing and Health,Social Inclusion,Supplies and Services,384199,Miscellaneous Expenses,01-May-2013,2587946-2896,525.77,FANE LTD.
Adults Wellbeing and Health,Social Inclusion,Supplies and Services,384199,Miscellaneous Expenses,01-May-2013,2587946-2907,525.77,FANE LTD.
Adults Wellbeing and Health,Social Inclusion,Supplies and Services,384199,Miscellaneous Expenses,01-May-2013,2587946-2908,"1,276.87",FANE LTD.
Adults Wellbeing and Health,Head of Adults,Third Party Payments,473101,Purchase of Care,01-May-2013,2587962-1200,"9,592.36",GAPPS DAY SERVICES LTD.
Adults Wellbeing and Health,Planning and Performance,Supplies and Services,352001,Conference Expenses,01-May-2013,2587992-28811,735.25,ISTOCKPHOTO LP.
Adults Wellbeing and Health,Social Inclusion,Third Party Payments,440999,Other Third Party Payments,01-May-2013,2587995-JD/DCC/1108,"1,669.32",JACK DRUM ARTS LTD.
Adults Wellbeing and Health,Social Inclusion,Third Party Payments,440999,Other Third Party Payments,01-May-2013,2588117-221,"1,141.20",SUNDERLAND NORTH FAMILY ZONE.
Adults Wellbeing and Health,Head of Adults,Supplies and Services,338365,Services,01-May-2013,2588130-OP/I065530,"1,045.00",TOTAL HYGIENE LTD.
Adults Wellbeing and Health,Commissioning inc Supporting People,Supplies and Services,304421,Equipment and Materials,01-May-2013,2588138-435624,577.73,UNITED CARLTON OFFICE SYSTEMS LTD.
Adults Wellbeing and Health,Social Inclusion,Third Party Payments,440999,Other Third Party Payments,02-May-2013,2588167-51,"1,030.96",ABSOLUTE CARE TRAINING & EDUCATION.
Adults Wellbeing and Health,Public Health,Premises,145009,Cleaning and Domestic Supplies,02-May-2013,2588217-0000012845,818.70,BETTAKLEEN LTD.
Adults Wellbeing and Health,Social Inclusion,Third Party Payments,440999,Other Third Party Payments,02-May-2013,2588221-SINV22054,"4,840.00",BISHOP AUCKLAND COLLEGE.
Adults Wellbeing and Health,Social Inclusion,Supplies and Services,304403,Equipment and Materials,02-May-2013,2588327-20010459,"1,591.00",DURHAM POLICE & CRIME COMMISSIONER.
Adults Wellbeing and Health,Social Inclusion,Supplies and Services,384199,Miscellaneous Expenses,02-May-2013,2588327-20010460,500.00,DURHAM POLICE & CRIME COMMISSIONER.
Adults Wellbeing and Health,Public Health,Third Party Payments,479101,Purchase of Care,02-May-2013,2588530-51,"9,542.75",NECA (SERVICES) LTD.
Adults Wellbeing and Health,Planning and Performance,Supplies and Services,338091,Services,02-May-2013,2588535-50055244,680.00,NEW COLLEGE DURHAM.
Adults Wellbeing and Health,Social Inclusion,Third Party Payments,440999,Other Third Party Payments,02-May-2013,2588535-SLINV/00000191,"24,850.00",NEW COLLEGE DURHAM.
Adults Wellbeing and Health,Planning and Performance,Supplies and Services,340001,Postages,02-May-2013,2588597-30940095,"15,010.80",POSTAGE BY PHONE PITNEY BOWES PLC.
Adults Wellbeing and Health,Head of Adults,Third Party Payments,472101,Purchase of Care,02-May-2013,2588653-399225,735.00,SERVOCA NURSING & CARE LTD.
Adults Wellbeing and Health,Commissioning inc Supporting People,Third Party Payments,479111,Purchase of Care,02-May-2013,2588755-14977,"11,935.33",UNIQUE HOME CARE.
Adults Wellbeing and Health,Head of Adults,Supplies and Services,324117,Provisions,03-May-2013,2588811-017,"1,371.90",ASHBARTON CATERING.
Adults Wellbeing and Health,Social Inclusion,Supplies and Services,384199,Miscellaneous Expenses,03-May-2013,2588820-SINV21984,"15,000.00",BISHOP AUCKLAND COLLEGE.
Adults Wellbeing and Health,Social Inclusion,Supplies and Services,384199,Miscellaneous Expenses,03-May-2013,2588872-20010462,"1,275.00",DURHAM POLICE & CRIME COMMISSIONER.
Adults Wellbeing and Health,Social Inclusion,Supplies and Services,384199,Miscellaneous Expenses,03-May-2013,2588872-20010466,900.00,DURHAM POLICE & CRIME COMMISSIONER.
Adults Wellbeing and Health,Commissioning inc Supporting People,Third Party Payments,470111,Purchase of Care,03-May-2013,2588937-RINVTP,"3,916.67",LEONARD CHESHIRE DISABILITY.
Adults Wellbeing and Health,Head of Adults,Supplies and Services,338365,Services,03-May-2013,2588942-2094,"1,402.00",LYNCH HEALTHCARE LTD.
Adults Wellbeing and Health,Head of Adults,Third Party Payments,478111,Purchase of Care,03-May-2013,2588951-1815376,"1,501.20",MENCAP.
Adults Wellbeing and Health,Head of Adults,Premises,108099,Service Repairs and Maintenance,03-May-2013,2588980-553827,540.00,P & N ASSOCIATES LTD.
Adults Wellbeing and Health,Planning and Performance,Supplies and Services,332047,"Printing, Stationery and Gen Off Exps",03-May-2013,2589022-5803242,702.53,SUPPLIES TEAM LTD.
Adults Wellbeing and Health,Public Health,Third Party Payments,479101,Purchase of Care,07-May-2013,2589671-SIN000741,"162,450.00",ADDACTION.
Adults Wellbeing and Health,Public Health,Third Party Payments,479101,Purchase of Care,07-May-2013,2589678-0000000354,"126,216.00",AGE UK COUNTY DURHAM.
Adults Wellbeing and Health,Central Charges,Supplies and Services,304259,Equipment and Materials,07-May-2013,2589683-144889,"1,232.00",ALBANY OFFICE EQUIPMENT (WHOLESALE) LTD.
Adults Wellbeing and Health,Public Health,Third Party Payments,479101,Purchase of Care,07-May-2013,2589775-3140481,"133,231.50",CO DURHAM & DARLINGTON NHS FOUNDATION TRUST.
Adults Wellbeing and Health,Public Health,Third Party Payments,479101,Purchase of Care,07-May-2013,2589775-3140482,"18,000.00",CO DURHAM & DARLINGTON NHS FOUNDATION TRUST.
Adults Wellbeing and Health,Head of Adults,Summary Income Level,720044,Fees and Charges,07-May-2013,2589806-REF,"4,680.19",REDACTED - PAYMENT TO INDIVIDUAL
Adults Wellbeing and Health,Social Inclusion,Supplies and Services,338099,Services,07-May-2013,2589843-DCC003,"4,000.00",ENERGIZE TRAINING.
Adults Wellbeing and Health,Social Inclusion,Supplies and Services,372009,Subscriptions,07-May-2013,2589955-54256,686.00,LISSON GROVE BENEFITS PROGRAM LTD.
Adults Wellbeing and Health,Head of Adults,Summary Income Level,720044,Fees and Charges,07-May-2013,2589999-CARE,"1,184.90",REDACTED - PAYMENT TO INDIVIDUAL
Adults Wellbeing and Health,Social Inclusion,Third Party Payments,440999,Other Third Party Payments,07-May-2013,2590115-0000003331,"34,373.25",SAFCOMMUNITY.
Adults Wellbeing and Health,Social Inclusion,Supplies and Services,304403,Equipment and Materials,08-May-2013,219614-7753,"2,005.90",BROOMLEY GRANGE.
Adults Wellbeing and Health,Planning and Performance,Supplies and Services,384540,Miscellaneous Expenses,08-May-2013,219673-1520A,501.50,KINGFISHER MEDIA LTD.
Adults Wellbeing and Health,Head of Adults,Summary Income Level,720144,Fees and Charges,08-May-2013,219689-FEES,"10,986.67",REDACTED - PAYMENT TO INDIVIDUAL
Adults Wellbeing and Health,Head of Adults,Summary Income Level,720144,Fees and Charges,08-May-2013,219703-REFCARE,"4,209.94",REDACTED - PAYMENT TO INDIVIDUAL
Adults Wellbeing and Health,Public Health,Third Party Payments,479101,Purchase of Care,08-May-2013,219707-101,"12,312.75",USE (167131) NECA.
Adults Wellbeing and Health,Social Inclusion,Supplies and Services,384199,Miscellaneous Expenses,08-May-2013,2590273-281/100,"14,600.00",CHILDREN NORTH EAST.
Adults Wellbeing and Health,Commissioning inc Supporting People,Third Party Payments,479111,Purchase of Care,08-May-2013,2590280-3140122,"16,379.50",CO DURHAM & DARLINGTON NHS FOUNDATION TRUST.
Adults Wellbeing and Health,Social Inclusion,Premises,108099,Service Repairs and Maintenance,08-May-2013,2590296-SINV/00003046,954.83,EAST DURHAM HOMES.
Adults Wellbeing and Health,Planning and Performance,Supplies and Services,342053,Computers and Communications,08-May-2013,2590455-2060508,"3,600.00",SIMUL8 CORPORATION.
Adults Wellbeing and Health,Head of Adults,Supplies and Services,308011,Furniture,08-May-2013,2590517-496225556,"2,144.40",YORKSHIRE PURCHASING ORGANISATION.
Adults Wellbeing and Health,Head of Adults,Supplies and Services,328041,"Clothing, Uniforms and Laundry",09-May-2013,2590521-1SF10425/52/10420,"3,714.75",ACCENT FOUNDATION.
Adults Wellbeing and Health,Commissioning inc Supporting People,Third Party Payments,473111,Purchase of Care,09-May-2013,2590545-QTR1OP42,"4,194.50",ASSOCIATION OF TEESDALE DAY CLUBS.
Adults Wellbeing and Health,Social Inclusion,Supplies and Services,338099,Services,09-May-2013,2590583-12/13010,"117,625.00",CO DURHAM CITIZENS ADVICE PARTNERSHIP.
Adults Wellbeing and Health,Social Inclusion,Supplies and Services,384999,Miscellaneous Expenses,09-May-2013,2590615-20010448,"24,000.00",DURHAM POLICE & CRIME COMMISSIONER.
Adults Wellbeing and Health,Commissioning inc Supporting People,Third Party Payments,470101,Purchase of Care,09-May-2013,2590704-RINVTP/00275245,"3,916.67",LEONARD CHESHIRE DISABILITY.
Adults Wellbeing and Health,Social Inclusion,Supplies and Services,384199,Miscellaneous Expenses,09-May-2013,2590729-2125,"2,775.00",MID NITE EXPRESS.
Adults Wellbeing and Health,Planning and Performance,Supplies and Services,352001,Conference Expenses,09-May-2013,2590755-AD10,600.00,NEDATS.
Adults Wellbeing and Health,Planning and Performance,Supplies and Services,352001,Conference Expenses,09-May-2013,2590759-SLINV/00000278,"4,990.00",NEW COLLEGE DURHAM.
Adults Wellbeing and Health,Head of Adults,Transport,230005,Contract Hire,09-May-2013,2590767-2486,"1,105.00",NIGHTINGALE COACHES.
Adults Wellbeing and Health,Head of Adults,Transport,230005,Contract Hire,09-May-2013,2590767-2488,816.00,NIGHTINGALE COACHES.
Adults Wellbeing and Health,Head of Adults,Transport,230005,Contract Hire,09-May-2013,2590767-2490,"2,415.00",NIGHTINGALE COACHES.
Adults Wellbeing and Health,Head of Adults,Transport,230005,Contract Hire,09-May-2013,2590767-2491,819.00,NIGHTINGALE COACHES.
Adults Wellbeing and Health,Head of Adults,Transport,230005,Contract Hire,09-May-2013,2590767-2492,"1,890.00",NIGHTINGALE COACHES.
Adults Wellbeing and Health,Head of Adults,Transport,230005,Contract Hire,09-May-2013,2590767-2493,"1,365.00",NIGHTINGALE COACHES.
Adults Wellbeing and Health,Head of Adults,Transport,230005,Contract Hire,09-May-2013,2590767-2494,802.00,NIGHTINGALE COACHES.
Adults Wellbeing and Health,Head of Adults,Third Party Payments,470101,Purchase of Care,10-May-2013,2590974-UNDPAYM,"24,509.10",AUTISM NORTH.
Adults Wellbeing and Health,Head of Adults,Third Party Payments,470101,Purchase of Care,10-May-2013,2590975-UNDPAYM,"6,941.15",AUTISM NORTH.
Adults Wellbeing and Health,Head of Adults,Transport,230005,Contract Hire,10-May-2013,2590981-1018,"1,300.00",BOBBY DOVE.
Adults Wellbeing and Health,Head of Adults,Transport,230005,Contract Hire,10-May-2013,2590982-15A,500.00,BOBS TAXIS.
Adults Wellbeing and Health,Planning and Performance,Supplies and Services,352001,Conference Expenses,10-May-2013,2590993-00583,"2,950.00",CARE TRAINING SERVICES.
Adults Wellbeing and Health,Head of Adults,Supplies and Services,304259,Equipment and Materials,10-May-2013,2591038-3041048,743.60,EAST RIDING HORTICULTURE LTD.
Adults Wellbeing and Health,Head of Adults,Supplies and Services,328041,"Clothing, Uniforms and Laundry",10-May-2013,2591056-06/459902,510.18,GREENHAM TRADING LTD.
Adults Wellbeing and Health,Head of Adults,Transport,230005,Contract Hire,10-May-2013,2591058-016,732.00,GS PEARSON.
Adults Wellbeing and Health,Head of Adults,Transport,230007,Contract Hire,10-May-2013,2591070-IR1304012,"1,020.00",I & R EXECUTIVE TRAVEL.
Adults Wellbeing and Health,Head of Adults,Transport,230005,Contract Hire,10-May-2013,2591112-00551,"1,027.00",MICHAELS TRAVEL.
Adults Wellbeing and Health,Head of Adults,Transport,230005,Contract Hire,10-May-2013,2591112-00554,"1,155.00",MICHAELS TRAVEL.
Adults Wellbeing and Health,Head of Adults,Transport,230005,Contract Hire,10-May-2013,2591124-072,"2,310.00",MR D KEMP T/A ACE EXECUTIVE.
Adults Wellbeing and Health,Head of Adults,Transfer Payments,515201,Social Services Clients,10-May-2013,2591134-REF,852.00,REDACTED - PAYMENT TO INDIVIDUAL
Adults Wellbeing and Health,Social Inclusion,Third Party Payments,440999,Other Third Party Payments,10-May-2013,2591156-SLINV/00000247,"11,785.00",NEW COLLEGE DURHAM.
Adults Wellbeing and Health,Head of Adults,Third Party Payments,473101,Purchase of Care,10-May-2013,2591156-SLINV/00000276,"11,200.00",NEW COLLEGE DURHAM.
Adults Wellbeing and Health,Head of Adults,Transport,230005,Contract Hire,10-May-2013,2591169-5152,"2,173.50",OVERLANDER LTD.
Adults Wellbeing and Health,Head of Adults,Transport,230005,Contract Hire,10-May-2013,2591192-13026,"2,132.90",RAPID MINIBUSES.
Adults Wellbeing and Health,Social Inclusion,Supplies and Services,384199,Miscellaneous Expenses,10-May-2013,2591204-4466,"1,287.28",S & D TRAINING.
Adults Wellbeing and Health,Commissioning inc Supporting People,Third Party Payments,479111,Purchase of Care,10-May-2013,2591257-15006,"2,808.95",UNIQUE HOME CARE.
Adults Wellbeing and Health,Head of Adults,Transport,230005,Contract Hire,13-May-2013,2591279-41307,"1,032.00",24/7 TAXI SERVICES LTD.
Adults Wellbeing and Health,Head of Adults,Transport,230005,Contract Hire,13-May-2013,2591283-459,840.00,A BARKER.
Adults Wellbeing and Health,Head of Adults,Transport,230005,Contract Hire,13-May-2013,2591286-AA776,"1,350.00",AA MINIBUS HIRE.
Adults Wellbeing and Health,Head of Adults,Transport,230005,Contract Hire,13-May-2013,2591286-AA777,"1,864.80",AA MINIBUS HIRE.
Adults Wellbeing and Health,Social Inclusion,Third Party Payments,440999,Other Third Party Payments,13-May-2013,2591296-INV01846,"5,895.00",ACUMEN COMM ENTERPRISE DEVELOPMENT TRUST LTD.
Adults Wellbeing and Health,Planning and Performance,Supplies and Services,384540,Miscellaneous Expenses,13-May-2013,2591372-5431948,"3,061.00",CBS OUTDOOR LTD.
Adults Wellbeing and Health,Head of Adults,Transport,230005,Contract Hire,13-May-2013,2591397-210,"1,250.00",COLIN HOLMES.
Adults Wellbeing and Health,Head of Adults,Transport,230005,Contract Hire,13-May-2013,2591402-158,715.00,CONNORS MINI BUSES.
Adults Wellbeing and Health,Head of Adults,Transport,230005,Contract Hire,13-May-2013,2591402-159,"1,188.00",CONNORS MINI BUSES.
Adults Wellbeing and Health,Public Health,Third Party Payments,479101,Purchase of Care,13-May-2013,2591424-SI/129120,"4,166.66",CSV COMMUNITY SERVICE VOLUNTEERS.
Adults Wellbeing and Health,Head of Adults,Transport,230005,Contract Hire,13-May-2013,2591506-GH007,528.00,GARY JACKSON PRIVATE HIRE.
Adults Wellbeing and Health,Head of Adults,Transport,230005,Contract Hire,13-May-2013,2591549-IR1304011,696.00,I & R EXECUTIVE TRAVEL.
Adults Wellbeing and Health,Head of Adults,Transport,230005,Contract Hire,13-May-2013,2591567-289,876.00,JDS PRIVATE HIRE DURHAM.
Adults Wellbeing and Health,Head of Adults,Transport,230007,Contract Hire,13-May-2013,2591574-CH8,616.00,JOVIAL PRIVATE HIRE.
Adults Wellbeing and Health,Public Health,Third Party Payments,479101,Purchase of Care,13-May-2013,2591578-JH/CASH/1,"14,000.00",JUNO HEALTH.
Adults Wellbeing and Health,Head of Adults,Transport,230005,Contract Hire,13-May-2013,2591583-20413,"1,587.60",KEVIN EDMUNDSON.
Adults Wellbeing and Health,Head of Adults,Supplies and Services,338365,Services,13-May-2013,2591614-2125,"2,895.00",LYNCH HEALTHCARE LTD.
Adults Wellbeing and Health,Head of Adults,Transport,230005,Contract Hire,13-May-2013,2591617-LS10,"1,282.00",MA BODDY.
Adults Wellbeing and Health,Head of Adults,Supplies and Services,338365,Services,13-May-2013,2591618-0000135912,"1,038.21",MANGAR INTERNATIONAL LTD.
Adults Wellbeing and Health,Head of Adults,Transport,230005,Contract Hire,13-May-2013,2591642-303,936.00,MOLLYS TAXIS.
Adults Wellbeing and Health,Head of Adults,Transport,230005,Contract Hire,13-May-2013,2591650-35,576.00,MR DAVID CULLEN.
Adults Wellbeing and Health,Head of Adults,Transport,230005,Contract Hire,13-May-2013,2591659-2725,"1,512.00",MR S BOWERS.
Adults Wellbeing and Health,Head of Adults,Third Party Payments,471101,Purchase of Care,13-May-2013,2591661-REF,"1,834.29",REDACTED - PAYMENT TO INDIVIDUAL
Adults Wellbeing and Health,Public Health,Third Party Payments,479101,Purchase of Care,13-May-2013,2591680-2,"155,166.50",NECA (SERVICES) LTD.
Adults Wellbeing and Health,Public Health,Third Party Payments,479101,Purchase of Care,13-May-2013,2591680-46,"11,978.00",NECA (SERVICES) LTD.
Adults Wellbeing and Health,Public Health,Third Party Payments,479101,Purchase of Care,13-May-2013,2591680-47,"120,023.25",NECA (SERVICES) LTD.
Adults Wellbeing and Health,Public Health,Third Party Payments,479101,Purchase of Care,13-May-2013,2591680-48,"37,350.25",NECA (SERVICES) LTD.
Adults Wellbeing and Health,Public Health,Third Party Payments,479101,Purchase of Care,13-May-2013,2591680-49,"10,275.50",NECA (SERVICES) LTD.
Adults Wellbeing and Health,Public Health,Premises,125009,Rents,13-May-2013,2591680-50,"20,215.50",NECA (SERVICES) LTD.
Adults Wellbeing and Health,Head of Adults,Transport,230005,Contract Hire,13-May-2013,2591734-316,756.00,PETERLEE EXECUTIVE CARS.
Adults Wellbeing and Health,Head of Adults,Transport,230005,Contract Hire,13-May-2013,2591737-0240,696.00,PETER`S PRIVATE HIRE/PETER BEST.
Adults Wellbeing and Health,Head of Adults,Transport,230005,Contract Hire,13-May-2013,2591737-0241,"1,370.00",PETER`S PRIVATE HIRE/PETER BEST.
Adults Wellbeing and Health,Head of Adults,Transport,230005,Contract Hire,13-May-2013,2591738-00384,576.00,PHILLIPS TAXIS LTD.
Adults Wellbeing and Health,Head of Adults,Transport,230005,Contract Hire,13-May-2013,2591769-13027,"1,155.00",RAPID MINIBUSES.
Adults Wellbeing and Health,Head of Adults,Transport,230005,Contract Hire,13-May-2013,2591785-105,"1,280.00",ROAD RUNNERS (NE) LTD.
Adults Wellbeing and Health,Head of Adults,Transport,230005,Contract Hire,13-May-2013,2591865-PC17,"2,920.05",TED WILFORD COACHES.
Adults Wellbeing and Health,Head of Adults,Transport,230005,Contract Hire,13-May-2013,2591875-80,646.00,THE TAXI CO.
Adults Wellbeing and Health,Planning and Performance,Supplies and Services,338094,Services,13-May-2013,2591876-2522,578.40,THE WORK PLACE (AYCLIFFE) LTD.
Adults Wellbeing and Health,Head of Adults,Transport,230005,Contract Hire,13-May-2013,2591926-746,"1,428.00",WAYNE`S TAXIS.
Adults Wellbeing and Health,Head of Adults,Transport,230005,Contract Hire,14-May-2013,2592576-DCCAPRIL91,"2,169.00",ATLAS TAXIS BISHOP AUCKLAND.
Adults Wellbeing and Health,Head of Adults,Summary Income Level,720033,Fees and Charges,14-May-2013,2592637-REF,519.73,REDACTED - PAYMENT TO INDIVIDUAL
Adults Wellbeing and Health,Commissioning inc Supporting People,Third Party Payments,479101,Purchase of Care,14-May-2013,2592656-15095,"1,436.26",FAMILY ACTION.
Adults Wellbeing and Health,Head of Adults,Transport,230005,Contract Hire,14-May-2013,2592691-009490,"1,110.00",HODGSONS COACH OPERATORS LTD.
Adults Wellbeing and Health,Head of Adults,Transport,230005,Contract Hire,14-May-2013,2592702-511,884.00,J YOUNG T/A VIP TAXIS.
Adults Wellbeing and Health,Head of Adults,Transport,230005,Contract Hire,14-May-2013,2592705-2013/08,"1,173.00",JM HUMBLE COACH HIRE.
Adults Wellbeing and Health,Head of Adults,Transport,230005,Contract Hire,14-May-2013,2592720-KW132,850.00,KWIK CABS.
Adults Wellbeing and Health,Head of Adults,Summary Income Level,720033,Fees and Charges,14-May-2013,2592740-REF,583.45,REDACTED - PAYMENT TO INDIVIDUAL
Adults Wellbeing and Health,Head of Adults,Transport,230005,Contract Hire,14-May-2013,2592751-438,"2,700.00",MR AD HOWARD.
Adults Wellbeing and Health,Head of Adults,Summary Income Level,720033,Fees and Charges,14-May-2013,2592756-REF,872.63,REDACTED - PAYMENT TO INDIVIDUAL
Adults Wellbeing and Health,Head of Adults,Transport,230005,Contract Hire,14-May-2013,2592805-SED005/08,"2,165.00",S & S TRAVEL LTD.
Adults Wellbeing and Health,Head of Adults,Transport,230005,Contract Hire,14-May-2013,2592805-WVO26/08,"2,079.00",S & S TRAVEL LTD.
Adults Wellbeing and Health,Head of Adults,Transport,230005,Contract Hire,14-May-2013,2592838-42404G,"2,068.50",T MOORE & SON.
Adults Wellbeing and Health,Head of Adults,Transport,230005,Contract Hire,14-May-2013,2592841-B600,"1,486.80",TALBOTS TRAVEL LTD.
Adults Wellbeing and Health,Head of Adults,Transport,230005,Contract Hire,14-May-2013,2592841-B601,"1,245.00",TALBOTS TRAVEL LTD.
Adults Wellbeing and Health,Head of Adults,Supplies and Services,338365,Services,14-May-2013,2592851-OP/I063857,684.00,TOTAL HYGIENE LTD.
Adults Wellbeing and Health,Head of Adults,Transport,230005,Contract Hire,14-May-2013,2592868-745,710.50,WAYNE`S TAXIS.
Adults Wellbeing and Health,Head of Adults,Transport,230005,Contract Hire,14-May-2013,2592870-4216,"1,459.50",WEARDALE PRIVATE HIRE.
Adults Wellbeing and Health,Head of Adults,Transport,230005,Contract Hire,14-May-2013,2592870-4217,"2,131.50",WEARDALE PRIVATE HIRE.
Adults Wellbeing and Health,Head of Adults,Third Party Payments,473101,Purchase of Care,15-May-2013,219848-SIN046070,"24,138.84",HENSHAWS SOCIETY FOR THE BLIND.
Adults Wellbeing and Health,Head of Adults,Third Party Payments,473101,Purchase of Care,15-May-2013,219848-SIN046071,"12,069.41",HENSHAWS SOCIETY FOR THE BLIND.
Adults Wellbeing and Health,Commissioning inc Supporting People,Third Party Payments,442002,Supporting People,15-May-2013,2592907-1950118,"19,676.48",BID SERVICES WITH DEAF PEOPLE.
Adults Wellbeing and Health,Social Inclusion,Third Party Payments,440999,Other Third Party Payments,15-May-2013,2592929-3,788.26,CDC ENTERPRISE AGENCY.
Adults Wellbeing and Health,Commissioning inc Supporting People,Third Party Payments,443001,Supporting People,15-May-2013,2592947-1949786,"1,200.00",COMMUNITY INTEGRATED CARE LTD.
Adults Wellbeing and Health,Commissioning inc Supporting People,Third Party Payments,443001,Supporting People,15-May-2013,2592947-1949789,"1,600.00",COMMUNITY INTEGRATED CARE LTD.
Adults Wellbeing and Health,Commissioning inc Supporting People,Third Party Payments,443001,Supporting People,15-May-2013,2592947-1949796,"2,800.00",COMMUNITY INTEGRATED CARE LTD.
Adults Wellbeing and Health,Commissioning inc Supporting People,Third Party Payments,443001,Supporting People,15-May-2013,2592947-1949805,"3,200.00",COMMUNITY INTEGRATED CARE LTD.
Adults Wellbeing and Health,Head of Adults,Supplies and Services,308011,Furniture,15-May-2013,2592952-M1026608,"1,444.80",CRAFTSMAN CONTRACT FURNITURE LTD.
Adults Wellbeing and Health,Commissioning inc Supporting People,Third Party Payments,442002,Supporting People,15-May-2013,2592953-1950426,"18,587.70",CREATIVE SUPPORT LTD.
Adults Wellbeing and Health,Head of Adults,Third Party Payments,472101,Purchase of Care,15-May-2013,2592959-3510,"1,929.50",DCS & D LTD T/A HERITAGE HEALTHCARE.
Adults Wellbeing and Health,Commissioning inc Supporting People,Third Party Payments,443001,Supporting People,15-May-2013,2592960-1949746,"4,456.80",DEACONSTAR LTD.
Adults Wellbeing and Health,Social Inclusion,Supplies and Services,338099,Services,15-May-2013,2592964-1632,"3,500.00",DERWENTSIDE COUNCIL FOR VOL SERVICES & VOL BUREAU.
Adults Wellbeing and Health,Commissioning inc Supporting People,Third Party Payments,442002,Supporting People,15-May-2013,2592965-1950161,"2,439.44",DERWENTSIDE DOMESTIC ABUSE SERVICE.
Adults Wellbeing and Health,Commissioning inc Supporting People,Third Party Payments,442002,Supporting People,15-May-2013,2592967-1949974,"42,772.47",DISC LTD.
Adults Wellbeing and Health,Commissioning inc Supporting People,Third Party Payments,441001,Supporting People,15-May-2013,2592974-1949781,"17,866.88",DURHAM ACTION ON SINGLE HOUSING.
Adults Wellbeing and Health,Commissioning inc Supporting People,Third Party Payments,443001,Supporting People,15-May-2013,2592974-1950171,"1,454.08",DURHAM ACTION ON SINGLE HOUSING.
Adults Wellbeing and Health,Commissioning inc Supporting People,Third Party Payments,443001,Supporting People,15-May-2013,2592974-1950173,"3,089.92",DURHAM ACTION ON SINGLE HOUSING.
Adults Wellbeing and Health,Commissioning inc Supporting People,Third Party Payments,443001,Supporting People,15-May-2013,2592974-1950175,727.04,DURHAM ACTION ON SINGLE HOUSING.
Adults Wellbeing and Health,Commissioning inc Supporting People,Third Party Payments,441001,Supporting People,15-May-2013,2592983-1949969,"5,402.40",EAST DURHAM COMMUNITY INITIATIVES LTD.
Adults Wellbeing and Health,Social Inclusion,Premises,108099,Service Repairs and Maintenance,15-May-2013,2592985-SINV/00003018,"1,909.66",EAST DURHAM HOMES.
Adults Wellbeing and Health,Commissioning inc Supporting People,Third Party Payments,442002,Supporting People,15-May-2013,2593002-1950119,"29,884.24",FOUNDATION.
Adults Wellbeing and Health,Commissioning inc Supporting People,Third Party Payments,442002,Supporting People,15-May-2013,2593017-1950164,"5,906.84",HANOVER HOUSING ASSOCIATION.
Adults Wellbeing and Health,Commissioning inc Supporting People,Third Party Payments,442002,Supporting People,15-May-2013,2593018-1950122,"3,787.62",HARBOUR SUPPORT SERVICES.
Adults Wellbeing and Health,Commissioning inc Supporting People,Third Party Payments,441001,Supporting People,15-May-2013,2593018-1950124,"9,190.44",HARBOUR SUPPORT SERVICES.
Adults Wellbeing and Health,Public Health,Supplies and Services,338094,Services,15-May-2013,2593019-INV12645,624.25,HARDWICK HALL HOTEL.
Adults Wellbeing and Health,Commissioning inc Supporting People,Third Party Payments,443001,Supporting People,15-May-2013,2593023-1949898,"9,797.76",HIGHLEA CARE LTD.
Adults Wellbeing and Health,Commissioning inc Supporting People,Third Party Payments,443001,Supporting People,15-May-2013,2593027-1950079,"1,302.48",HOME HOUSING ASSOCIATION LTD.
Adults Wellbeing and Health,Commissioning inc Supporting People,Third Party Payments,443001,Supporting People,15-May-2013,2593033-1949782,"1,125.72",INTEGRATION TRUST.
Adults Wellbeing and Health,Head of Adults,Third Party Payments,478101,Purchase of Care,15-May-2013,2593044-REIMB,900.00,REDACTED - PAYMENT TO INDIVIDUAL
Adults Wellbeing and Health,Head of Adults,Supplies and Services,324117,Provisions,15-May-2013,2593052-N14338,871.59,JR HOLLAND FOOD SERVICES LTD.
Adults Wellbeing and Health,Head of Adults,Supplies and Services,324117,Provisions,15-May-2013,2593052-N14341,671.56,JR HOLLAND FOOD SERVICES LTD.
Adults Wellbeing and Health,Commissioning inc Supporting People,Third Party Payments,443001,Supporting People,15-May-2013,2593060-1950260,"1,411.79",KINDSTREAM CARE LTD.
Adults Wellbeing and Health,Commissioning inc Supporting People,Third Party Payments,443001,Supporting People,15-May-2013,2593060-1950268,"1,262.50",KINDSTREAM CARE LTD.
Adults Wellbeing and Health,Commissioning inc Supporting People,Third Party Payments,443001,Supporting People,15-May-2013,2593080-1949768,"2,484.76",MENCAP.
Adults Wellbeing and Health,Commissioning inc Supporting People,Third Party Payments,443001,Supporting People,15-May-2013,2593080-1949966,"2,524.44",MENCAP.
Adults Wellbeing and Health,Commissioning inc Supporting People,Third Party Payments,443001,Supporting People,15-May-2013,2593080-1949967,907.96,MENCAP.
Adults Wellbeing and Health,Commissioning inc Supporting People,Third Party Payments,442002,Supporting People,15-May-2013,2593081-1949941,"7,460.12",MENTAL HEALTH MATTERS.
Adults Wellbeing and Health,Commissioning inc Supporting People,Third Party Payments,442002,Supporting People,15-May-2013,2593093-1949890,"5,561.68",MOVING ON.
Adults Wellbeing and Health,Commissioning inc Supporting People,Third Party Payments,441001,Supporting People,15-May-2013,2593117-1949745,"8,097.92",NORCARE LTD.
Adults Wellbeing and Health,Commissioning inc Supporting People,Third Party Payments,441001,Supporting People,15-May-2013,2593117-1950233,"10,361.68",NORCARE LTD.
Adults Wellbeing and Health,Commissioning inc Supporting People,Third Party Payments,442002,Supporting People,15-May-2013,2593117-1950240,"3,078.80",NORCARE LTD.
Adults Wellbeing and Health,Commissioning inc Supporting People,Third Party Payments,442002,Supporting People,15-May-2013,2593117-1950241,"1,954.64",NORCARE LTD.
Adults Wellbeing and Health,Commissioning inc Supporting People,Third Party Payments,444002,Supporting People,15-May-2013,2593130-1949986,864.00,OAKLEA TRUST.
Adults Wellbeing and Health,Commissioning inc Supporting People,Third Party Payments,444002,Supporting People,15-May-2013,2593130-1949988,"4,320.00",OAKLEA TRUST.
Adults Wellbeing and Health,Commissioning inc Supporting People,Third Party Payments,444002,Supporting People,15-May-2013,2593130-1949990,"1,728.00",OAKLEA TRUST.
Adults Wellbeing and Health,Commissioning inc Supporting People,Third Party Payments,444002,Supporting People,15-May-2013,2593130-1950001,"1,296.00",OAKLEA TRUST.
Adults Wellbeing and Health,Commissioning inc Supporting People,Third Party Payments,444002,Supporting People,15-May-2013,2593130-1950006,"1,296.00",OAKLEA TRUST.
Adults Wellbeing and Health,Head of Adults,Third Party Payments,430105,Rendered by Private Contractors,15-May-2013,2593132-CN18381681,554.58,OCS GROUP UK LTD T/A CANNON HYGIENE.
Adults Wellbeing and Health,Head of Adults,Transport,230005,Contract Hire,15-May-2013,2593149-00403,630.00,PHILLIPS TAXIS LTD.
Adults Wellbeing and Health,Planning and Performance,Supplies and Services,384540,Miscellaneous Expenses,15-May-2013,2593164-SNE006434,"1,600.00",REAL RADIO (NORTH EAST) LTD.
Adults Wellbeing and Health,Commissioning inc Supporting People,Third Party Payments,442002,Supporting People,15-May-2013,2593168-1949804,"8,985.20",RICHMOND FELLOWSHIP.
Adults Wellbeing and Health,Commissioning inc Supporting People,Third Party Payments,444002,Supporting People,15-May-2013,2593168-1950217,"4,595.04",RICHMOND FELLOWSHIP.
Adults Wellbeing and Health,Commissioning inc Supporting People,Third Party Payments,441001,Supporting People,15-May-2013,2593168-1950229,"9,429.16",RICHMOND FELLOWSHIP.
Adults Wellbeing and Health,Commissioning inc Supporting People,Third Party Payments,442002,Supporting People,15-May-2013,2593183-1949973,"9,294.32",SHAID.
Adults Wellbeing and Health,Head of Adults,Supplies and Services,384199,Miscellaneous Expenses,15-May-2013,2593193-020693,600.00,SKY BLUE THERAPY LTD.
Adults Wellbeing and Health,Financing-Adult Services,Debtors,930131,Debtor-Hospital Re-Admission Avoidance Project,15-May-2013,2593195-7077,791.61,SOCIAL RESOURCE CENTRE LTD.
Adults Wellbeing and Health,Commissioning inc Supporting People,Third Party Payments,443001,Supporting People,15-May-2013,2593200-1949978,"9,593.28",ST ANNES SHELTER & HOUSING ACTION.
Adults Wellbeing and Health,Head of Adults,Transport,230005,Contract Hire,15-May-2013,2593203-4397,"1,281.80",STANLEY TRAVEL (NORTH EAST) LTD.
Adults Wellbeing and Health,Commissioning inc Supporting People,Third Party Payments,442002,Supporting People,15-May-2013,2593206-1949742,"178,650.32",STONHAM HOUSING ASSOCIATION LTD.
Adults Wellbeing and Health,Commissioning inc Supporting People,Third Party Payments,441001,Supporting People,15-May-2013,2593206-1949767,"48,252.08",STONHAM HOUSING ASSOCIATION LTD.
Adults Wellbeing and Health,Commissioning inc Supporting People,Third Party Payments,442002,Supporting People,15-May-2013,2593206-1950121,"28,364.92",STONHAM HOUSING ASSOCIATION LTD.
Adults Wellbeing and Health,Commissioning inc Supporting People,Third Party Payments,443001,Supporting People,15-May-2013,2593206-1950125,"8,131.20",STONHAM HOUSING ASSOCIATION LTD.
Adults Wellbeing and Health,Commissioning inc Supporting People,Third Party Payments,443001,Supporting People,15-May-2013,2593206-1950137,"24,135.28",STONHAM HOUSING ASSOCIATION LTD.
Adults Wellbeing and Health,Commissioning inc Supporting People,Third Party Payments,441001,Supporting People,15-May-2013,2593206-1950238,"16,646.56",STONHAM HOUSING ASSOCIATION LTD.
Adults Wellbeing and Health,Commissioning inc Supporting People,Third Party Payments,441001,Supporting People,15-May-2013,2593224-1950230,"29,247.64",TEES VALLEY HOUSING LTD.
Adults Wellbeing and Health,Commissioning inc Supporting People,Third Party Payments,442002,Supporting People,15-May-2013,2593224-1950232,"4,415.40",TEES VALLEY HOUSING LTD.
Adults Wellbeing and Health,Commissioning inc Supporting People,Third Party Payments,441001,Supporting People,15-May-2013,2593229-1950235,"89,741.20",THE CYRENIANS LTD.
Adults Wellbeing and Health,Commissioning inc Supporting People,Third Party Payments,441001,Supporting People,15-May-2013,2593235-1949737,"11,181.61",THREE RIVERS HOUSING ASSOCIATION LTD.
Adults Wellbeing and Health,Commissioning inc Supporting People,Third Party Payments,442002,Supporting People,15-May-2013,2593235-1949853,"8,976.12",THREE RIVERS HOUSING ASSOCIATION LTD.
Adults Wellbeing and Health,Commissioning inc Supporting People,Third Party Payments,442002,Supporting People,15-May-2013,2593235-1950117,"43,230.76",THREE RIVERS HOUSING ASSOCIATION LTD.
Adults Wellbeing and Health,Commissioning inc Supporting People,Third Party Payments,442002,Supporting People,15-May-2013,2593235-1950160,"3,835.60",THREE RIVERS HOUSING ASSOCIATION LTD.
Adults Wellbeing and Health,Commissioning inc Supporting People,Third Party Payments,441001,Supporting People,15-May-2013,2593235-1950234,"7,692.32",THREE RIVERS HOUSING ASSOCIATION LTD.
Adults Wellbeing and Health,Head of Adults,Supplies and Services,384616,Miscellaneous Expenses,15-May-2013,2593235-SHOINV/242,"4,725.00",THREE RIVERS HOUSING ASSOCIATION LTD.
Adults Wellbeing and Health,Head of Adults,Supplies and Services,384616,Miscellaneous Expenses,15-May-2013,2593235-SHOINV/244,945.00,THREE RIVERS HOUSING ASSOCIATION LTD.
Adults Wellbeing and Health,Commissioning inc Supporting People,Third Party Payments,443001,Supporting People,15-May-2013,2593266-1949938,"1,374.48",WADDINGTON STREET CENTRE LTD.
Adults Wellbeing and Health,Commissioning inc Supporting People,Third Party Payments,441001,Supporting People,15-May-2013,2593266-1950236,"1,166.12",WADDINGTON STREET CENTRE LTD.
Adults Wellbeing and Health,Head of Adults,Transport,230005,Contract Hire,15-May-2013,2593272-750,"1,560.00",WAYNE`S TAXIS.
Adults Wellbeing and Health,Commissioning inc Supporting People,Third Party Payments,441001,Supporting People,15-May-2013,2593274-1950237,"7,617.32",WEAR VALLEY WOMENS AID.
Adults Wellbeing and Health,Head of Adults,Transport,230005,Contract Hire,16-May-2013,2593303-CLS041,"1,050.00",ABA LOCAL TAXIS LTD.
Adults Wellbeing and Health,Head of Adults,Transport,230005,Contract Hire,16-May-2013,2593304-0121,598.00,ABC & OUSTON CABS.
Adults Wellbeing and Health,Head of Adults,Premises,145009,Cleaning and Domestic Supplies,16-May-2013,2593315-ACP120/13,680.00,ALL CLEAR PEST CONTROL.
Adults Wellbeing and Health,Head of Adults,Supplies and Services,324117,Provisions,16-May-2013,2593372-32834158,509.98,BRAKE BROS FOODSERVICE LTD.
Adults Wellbeing and Health,Head of Adults,Supplies and Services,338366,Services,16-May-2013,2593392-7494,993.13,CARE ABILITY.
Adults Wellbeing and Health,Head of Adults,Supplies and Services,338366,Services,16-May-2013,2593392-7495,"1,107.40",CARE ABILITY.
Adults Wellbeing and Health,Head of Adults,Supplies and Services,338366,Services,16-May-2013,2593392-7496,"1,187.36",CARE ABILITY.
Adults Wellbeing and Health,Head of Adults,Supplies and Services,338366,Services,16-May-2013,2593392-7497,"2,927.90",CARE ABILITY.
Adults Wellbeing and Health,Head of Adults,Supplies and Services,338366,Services,16-May-2013,2593392-7513,"1,279.95",CARE ABILITY.
Adults Wellbeing and Health,Public Health,Premises,145009,Cleaning and Domestic Supplies,16-May-2013,2593428-SHAUN000918,"1,583.22",CO DURHAM & DARLINGTON NHS FOUNDATION TRUST.
Adults Wellbeing and Health,Head of Adults,Transport,230005,Contract Hire,16-May-2013,2593435-160,900.00,CONNORS MINI BUSES.
Adults Wellbeing and Health,Commissioning inc Supporting People,Third Party Payments,479111,Purchase of Care,16-May-2013,2593485-54,"12,500.00",DURHAM COUNTY CARERS SUPPORT.
Adults Wellbeing and Health,Head of Adults,Transport,230005,Contract Hire,16-May-2013,2593548-21A,588.00,GRAEME AGNEW T/A STREETCARS.
Adults Wellbeing and Health,Social Inclusion,Third Party Payments,440999,Other Third Party Payments,16-May-2013,2593590-JD/DCC/1107,"1,940.00",JACK DRUM ARTS LTD.
Adults Wellbeing and Health,Head of Adults,Transport,230005,Contract Hire,16-May-2013,2593592-295,"1,152.80",JDS PRIVATE HIRE DURHAM.
Adults Wellbeing and Health,Head of Adults,Transport,230005,Contract Hire,16-May-2013,2593592-297,780.00,JDS PRIVATE HIRE DURHAM.
Adults Wellbeing and Health,Head of Adults,Supplies and Services,324117,Provisions,16-May-2013,2593606-N14334,"1,549.06",JR HOLLAND FOOD SERVICES LTD.
Adults Wellbeing and Health,Head of Adults,Transport,230005,Contract Hire,16-May-2013,2593626-20130025,640.00,L & M TAXIS.
Adults Wellbeing and Health,Head of Adults,Transport,230005,Contract Hire,16-May-2013,2593656-8LP,570.00,LYNNETTES TAXIS.
Adults Wellbeing and Health,Head of Adults,Transport,230005,Contract Hire,16-May-2013,2593664-413,"1,694.00",MAG`S CARS.
Adults Wellbeing and Health,Social Inclusion,Supplies and Services,384199,Miscellaneous Expenses,16-May-2013,2593683-2129,"2,000.00",MID NITE EXPRESS.
Adults Wellbeing and Health,Head of Adults,Transport,230005,Contract Hire,16-May-2013,2593689-296,902.00,MOLLYS TAXIS.
Adults Wellbeing and Health,Head of Adults,Transport,230005,Contract Hire,16-May-2013,2593689-297,672.00,MOLLYS TAXIS.
Adults Wellbeing and Health,Head of Adults,Transport,230005,Contract Hire,16-May-2013,2593689-302,"1,366.00",MOLLYS TAXIS.
Adults Wellbeing and Health,Head of Adults,Transport,230005,Contract Hire,16-May-2013,2593704-199,645.00,MR LEE ANDERSON.
Adults Wellbeing and Health,Head of Adults,Transport,230005,Contract Hire,16-May-2013,2593705-DW075/04/13,"1,050.00",MR M ALLISON.
Adults Wellbeing and Health,Head of Adults,Third Party Payments,478101,Purchase of Care,16-May-2013,2593711-ADHOC,916.84,REDACTED - PAYMENT TO INDIVIDUAL
Adults Wellbeing and Health,Public Health,Third Party Payments,479101,Purchase of Care,16-May-2013,2593721-3,"30,717.75",NECA (SERVICES) LTD.
Adults Wellbeing and Health,Social Inclusion,Third Party Payments,440999,Other Third Party Payments,16-May-2013,2593746-PLDCCCLF3,"7,680.00",NORTHERN RIGHTS CIC.
Adults Wellbeing and Health,Head of Adults,Transport,230005,Contract Hire,16-May-2013,2593753-0041,660.00,NORTHVIEW PRIVATE HIRE.
Adults Wellbeing and Health,Head of Adults,Transport,230005,Contract Hire,16-May-2013,2593778-DACC01/13,592.00,PB PRIVATE HIRE.
Adults Wellbeing and Health,Head of Adults,Transport,230005,Contract Hire,16-May-2013,2593805-869,896.00,PODA LTD.
Adults Wellbeing and Health,Head of Adults,Transport,230005,Contract Hire,16-May-2013,2593810-130416,"1,418.28",PRATTS TAXIS.
Adults Wellbeing and Health,Head of Adults,Transport,230005,Contract Hire,16-May-2013,2593848-CLS007,"1,290.03",RMB TRAVEL.
Adults Wellbeing and Health,Social Inclusion,Supplies and Services,384199,Miscellaneous Expenses,16-May-2013,2593899-4100337340,"2,000.00",SMARTT.
Adults Wellbeing and Health,Head of Adults,Transport,230005,Contract Hire,16-May-2013,2594003-941,506.00,WE CONNOR.
Adults Wellbeing and Health,Head of Adults,Supplies and Services,308011,Furniture,16-May-2013,2594022-496239974,946.43,YORKSHIRE PURCHASING ORGANISATION.
Adults Wellbeing and Health,Head of Adults,Transport,230007,Contract Hire,17-May-2013,2594028-H32/SN,860.00,AABAT TAXIS.
Adults Wellbeing and Health,Social Inclusion,Supplies and Services,384871,Miscellaneous Expenses,17-May-2013,2594033-0513/01,500.00,ADAM BUSHNELL STORY TALES.
Adults Wellbeing and Health,Planning and Performance,Supplies and Services,384540,Miscellaneous Expenses,17-May-2013,2594063-5437085,"1,725.00",CBS OUTDOOR LTD.
Adults Wellbeing and Health,Planning and Performance,Supplies and Services,384540,Miscellaneous Expenses,17-May-2013,2594063-5437086,"1,545.00",CBS OUTDOOR LTD.
Adults Wellbeing and Health,Public Health,Third Party Payments,479102,Purchase of Care,17-May-2013,2594079-105578,"3,200.00",CYGNET HEALTHCARE LTD.
Adults Wellbeing and Health,Head of Adults,Transport,230005,Contract Hire,17-May-2013,2594104-7965,576.00,GREENCROFT MINI COACHES.
Adults Wellbeing and Health,Head of Adults,Transport,230005,Contract Hire,17-May-2013,2594104-7966,"2,164.00",GREENCROFT MINI COACHES.
Adults Wellbeing and Health,Head of Adults,Third Party Payments,473101,Purchase of Care,17-May-2013,2594107-0040100396,"16,416.00",HARTLEPOOL BOROUGH COUNCIL.
Adults Wellbeing and Health,Public Health,Transport,235057,Public Transport,17-May-2013,2594163-60,"3,517.50",NECA (SERVICES) LTD.
Adults Wellbeing and Health,Public Health,Employees,080025,Agency Staff,17-May-2013,2594196-DACT04/13,"1,542.71",RJH DEVELOPMENT DURHAM.
Adults Wellbeing and Health,Social Inclusion,Third Party Payments,440999,Other Third Party Payments,17-May-2013,2594208-200834,"11,541.00",SKILLSHARE NORTH EAST LTD.
Adults Wellbeing and Health,Commissioning inc Supporting People,Transport,240045,Car Allowances,17-May-2013,2594212-2783,"20,496.75",SOCIAL RESOURCE CENTRE LTD.
Adults Wellbeing and Health,Commissioning inc Supporting People,Transport,240045,Car Allowances,17-May-2013,2594212-2907,"18,891.04",SOCIAL RESOURCE CENTRE LTD.
Adults Wellbeing and Health,Public Health,Supplies and Services,352001,Conference Expenses,17-May-2013,2594218-1300077825,550.00,ST JOHN AMBULANCE.
Adults Wellbeing and Health,Head of Adults,Transport,230005,Contract Hire,17-May-2013,2594219-4385,568.80,STANLEY TRAVEL (NORTH EAST) LTD.
Adults Wellbeing and Health,Public Health,Third Party Payments,479101,Purchase of Care,17-May-2013,2594228-TDAPRIL2013,"1,050.00",REDACTED - PAYMENT TO INDIVIDUAL
Adults Wellbeing and Health,Social Inclusion,Third Party Payments,440999,Other Third Party Payments,17-May-2013,2594234-011875,"8,001.00",THE PRINCE`S TRUST.
Adults Wellbeing and Health,Social Inclusion,Third Party Payments,440999,Other Third Party Payments,17-May-2013,2594236-TW02/13,"8,800.00",THEM WIFIES.
Adults Wellbeing and Health,Head of Adults,Transport,230005,Contract Hire,17-May-2013,2594240-ED131,"1,806.00",TONYS TAXIS (A BIRCH).
Adults Wellbeing and Health,Head of Adults,Transport,230005,Contract Hire,20-May-2013,2594419-WV091/001,"1,230.00",GMC TAXIS NORTH EAST.
Adults Wellbeing and Health,Head of Adults,Supplies and Services,324117,Provisions,20-May-2013,2594464-N14339,704.63,JR HOLLAND FOOD SERVICES LTD.
Adults Wellbeing and Health,Commissioning inc Supporting People,Transport,230005,Contract Hire,20-May-2013,2594475-1936,"1,880.00",LANGLEY PARK COMMUNITY TRANSPORT.
Adults Wellbeing and Health,Commissioning inc Supporting People,Supplies and Services,304259,Equipment and Materials,20-May-2013,2594519-294,"10,186.00",MY LIFE SOFTWARE.
Adults Wellbeing and Health,Head of Adults,Supplies and Services,324117,Provisions,21-May-2013,2595378-024,"1,387.80",ASHBARTON CATERING.
Adults Wellbeing and Health,Public Health,Premises,145009,Cleaning and Domestic Supplies,21-May-2013,2595395-0000013108,818.70,BETTAKLEEN LTD.
Adults Wellbeing and Health,Head of Adults,Premises,106099,Centrally Controlled Rep and Maint,21-May-2013,2595431-118020,569.00,CDS SECURITY LTD.
Adults Wellbeing and Health,Head of Adults,Transport,230005,Contract Hire,21-May-2013,2595448-0001032,"1,820.00",COLORS TAXIS LTD.
Adults Wellbeing and Health,Social Inclusion,Third Party Payments,440999,Other Third Party Payments,21-May-2013,2595550-JD/DCC/1119,"1,246.05",JACK DRUM ARTS LTD.
Adults Wellbeing and Health,Head of Adults,Supplies and Services,324117,Provisions,21-May-2013,2595573-N14337,875.64,JR HOLLAND FOOD SERVICES LTD.
Adults Wellbeing and Health,Head of Adults,Third Party Payments,478111,Purchase of Care,21-May-2013,2595632-1829008,"1,501.20",MENCAP.
Adults Wellbeing and Health,Head of Adults,Third Party Payments,478111,Purchase of Care,21-May-2013,2595632-1841095,"1,501.20",MENCAP.
Adults Wellbeing and Health,Head of Adults,Supplies and Services,304259,Equipment and Materials,21-May-2013,2595681-CN18375141,500.52,OCS GROUP UK LTD T/A CANNON HYGIENE.
Adults Wellbeing and Health,Head of Adults,Supplies and Services,338066,Services,21-May-2013,2595694-250,"7,750.00",PEOPLETOO LTD.
Adults Wellbeing and Health,Head of Adults,Supplies and Services,384616,Miscellaneous Expenses,21-May-2013,2595712-CSIV2760,930.24,PROGRESS CARE HOUSING ASSOCIATION LTD.
Adults Wellbeing and Health,Commissioning inc Supporting People,Transport,240045,Car Allowances,21-May-2013,2595759-2917,"16,528.99",SOCIAL RESOURCE CENTRE LTD.
Adults Wellbeing and Health,Head of Adults,Third Party Payments,470101,Purchase of Care,21-May-2013,2595771-1131254,995.00,ST CUTHBERTS CARE.
Adults Wellbeing and Health,Head of Adults,Third Party Payments,470101,Purchase of Care,21-May-2013,2595771-1140038,"1,855.00",ST CUTHBERTS CARE.
Adults Wellbeing and Health,Planning and Performance,Supplies and Services,332047,"Printing, Stationery and Gen Off Exps",21-May-2013,2595780-5891222,839.72,SUPPLIES TEAM LTD.
Adults Wellbeing and Health,Head of Adults,Premises,145051,Cleaning and Domestic Supplies,21-May-2013,2595796-81402,"1,970.80",THE DURHAM COMPANY (TDC).
Adults Wellbeing and Health,Head of Adults,Premises,108099,Service Repairs and Maintenance,21-May-2013,2595821-2060,"1,456.76",UPNORTH FOODSERVICE EQUIPMENT LTD.
Adults Wellbeing and Health,Head of Adults,Premises,108099,Service Repairs and Maintenance,21-May-2013,2595821-2061,"2,135.00",UPNORTH FOODSERVICE EQUIPMENT LTD.
Adults Wellbeing and Health,Head of Adults,Summary Income Level,720033,Fees and Charges,21-May-2013,2595836-REF,"1,620.81",REDACTED - PAYMENT TO INDIVIDUAL
Adults Wellbeing and Health,Commissioning inc Supporting People,Third Party Payments,479111,Purchase of Care,22-May-2013,220033-023,"1,490.00",ASPIRE LEARNING SUPPORT & WELLING CIC.
Adults Wellbeing and Health,Commissioning inc Supporting People,Third Party Payments,479111,Purchase of Care,22-May-2013,220033-024,"13,296.00",ASPIRE LEARNING SUPPORT & WELLING CIC.
Adults Wellbeing and Health,Head of Adults,Third Party Payments,470101,Purchase of Care,22-May-2013,220045-2100682,"4,848.00",CARELINE LIFESTYLES LTD.
Adults Wellbeing and Health,Public Health,Third Party Payments,479101,Purchase of Care,22-May-2013,220078-D130401,"2,000.00",DR KJ ARMSTRONG.
Adults Wellbeing and Health,Head of Adults,Supplies and Services,308011,Furniture,22-May-2013,220093-553395,"1,655.00",DURHAM FINE FURNITURE.
Adults Wellbeing and Health,Head of Adults,Third Party Payments,478101,Purchase of Care,22-May-2013,220192-2101697,"1,348.80",REDACTED - PAYMENT TO INDIVIDUAL
Adults Wellbeing and Health,Head of Adults,Third Party Payments,478101,Purchase of Care,22-May-2013,220192-2101698,"1,348.80",REDACTED - PAYMENT TO INDIVIDUAL
Adults Wellbeing and Health,Head of Adults,Third Party Payments,478101,Purchase of Care,22-May-2013,220195-2098403,"1,249.40",REDACTED - PAYMENT TO INDIVIDUAL
Adults Wellbeing and Health,Head of Adults,Summary Income Level,720033,Fees and Charges,22-May-2013,220198-REF,648.51,REDACTED - PAYMENT TO INDIVIDUAL
Adults Wellbeing and Health,Public Health,Premises,145009,Cleaning and Domestic Supplies,22-May-2013,220233-12361,540.00,QUALITY CLEANING SERVICES (NORTHERN) LTD.
Adults Wellbeing and Health,Commissioning inc Supporting People,Third Party Payments,479101,Purchase of Care,22-May-2013,220234-2126,"17,730.25",RETHINK MENTAL ILLNESS.
Adults Wellbeing and Health,Head of Adults,Third Party Payments,474101,Purchase of Care,22-May-2013,220235-2098376,690.04,RICHMOND FELLOWSHIP.
Adults Wellbeing and Health,Head of Adults,Supplies and Services,304252,Equipment and Materials,22-May-2013,220256-JH07,"1,155.00",REDACTED - PAYMENT TO INDIVIDUAL
Adults Wellbeing and Health,Head of Adults,Third Party Payments,470101,Purchase of Care,22-May-2013,2595848-2101033,"6,031.16",3 RED ADMIRAL COURT.
Adults Wellbeing and Health,Head of Adults,Third Party Payments,472101,Purchase of Care,22-May-2013,2595849-1329622H,517.52,360 HEALTHCARE LTD.
Adults Wellbeing and Health,Head of Adults,Third Party Payments,472101,Purchase of Care,22-May-2013,2595849-1329821H,953.76,360 HEALTHCARE LTD.
Adults Wellbeing and Health,Head of Adults,Third Party Payments,472101,Purchase of Care,22-May-2013,2595849-1329878H,"1,035.08",360 HEALTHCARE LTD.
Adults Wellbeing and Health,Head of Adults,Third Party Payments,472101,Purchase of Care,22-May-2013,2595849-1330321H,"1,205.12",360 HEALTHCARE LTD.
Adults Wellbeing and Health,Head of Adults,Third Party Payments,472101,Purchase of Care,22-May-2013,2595849-1330327H,959.29,360 HEALTHCARE LTD.
Adults Wellbeing and Health,Head of Adults,Third Party Payments,472101,Purchase of Care,22-May-2013,2595849-1332177H,726.41,360 HEALTHCARE LTD.
Adults Wellbeing and Health,Head of Adults,Third Party Payments,472101,Purchase of Care,22-May-2013,2595849-1332429H,510.16,360 HEALTHCARE LTD.
Adults Wellbeing and Health,Head of Adults,Third Party Payments,472101,Purchase of Care,22-May-2013,2595849-1332677H,621.05,360 HEALTHCARE LTD.
Adults Wellbeing and Health,Head of Adults,Third Party Payments,472101,Purchase of Care,22-May-2013,2595849-1332777H,"1,127.48",360 HEALTHCARE LTD.
Adults Wellbeing and Health,Head of Adults,Third Party Payments,472101,Purchase of Care,22-May-2013,2595849-1333045H,"1,449.08",360 HEALTHCARE LTD.
Adults Wellbeing and Health,Head of Adults,Third Party Payments,472101,Purchase of Care,22-May-2013,2595849-1333175H,953.76,360 HEALTHCARE LTD.
Adults Wellbeing and Health,Head of Adults,Third Party Payments,472101,Purchase of Care,22-May-2013,2595849-1333290H,743.04,360 HEALTHCARE LTD.
Adults Wellbeing and Health,Head of Adults,Third Party Payments,472101,Purchase of Care,22-May-2013,2595849-1333325H,558.20,360 HEALTHCARE LTD.
Adults Wellbeing and Health,Head of Adults,Third Party Payments,472101,Purchase of Care,22-May-2013,2595849-1333363H,630.29,360 HEALTHCARE LTD.
Adults Wellbeing and Health,Head of Adults,Third Party Payments,472101,Purchase of Care,22-May-2013,2595849-1333553H,754.12,360 HEALTHCARE LTD.
Adults Wellbeing and Health,Head of Adults,Third Party Payments,472101,Purchase of Care,22-May-2013,2595849-1333625H,617.36,360 HEALTHCARE LTD.
Adults Wellbeing and Health,Head of Adults,Third Party Payments,472101,Purchase of Care,22-May-2013,2595849-1334196H,"1,208.83",360 HEALTHCARE LTD.
Adults Wellbeing and Health,Head of Adults,Third Party Payments,472101,Purchase of Care,22-May-2013,2595849-1334234H,672.80,360 HEALTHCARE LTD.
Adults Wellbeing and Health,Head of Adults,Third Party Payments,472101,Purchase of Care,22-May-2013,2595849-1334689H,621.04,360 HEALTHCARE LTD.
Adults Wellbeing and Health,Head of Adults,Third Party Payments,472101,Purchase of Care,22-May-2013,2595849-1335306H,746.72,360 HEALTHCARE LTD.
Adults Wellbeing and Health,Head of Adults,Third Party Payments,472101,Purchase of Care,22-May-2013,2595849-1335375H,931.56,360 HEALTHCARE LTD.
Adults Wellbeing and Health,Head of Adults,Third Party Payments,472101,Purchase of Care,22-May-2013,2595849-1335496H,665.40,360 HEALTHCARE LTD.
Adults Wellbeing and Health,Head of Adults,Third Party Payments,472101,Purchase of Care,22-May-2013,2595849-1335567H,931.56,360 HEALTHCARE LTD.
Adults Wellbeing and Health,Head of Adults,Third Party Payments,472101,Purchase of Care,22-May-2013,2595849-1335641H,621.04,360 HEALTHCARE LTD.
Adults Wellbeing and Health,Head of Adults,Third Party Payments,472101,Purchase of Care,22-May-2013,2595849-1335672H,"1,231.00",360 HEALTHCARE LTD.
Adults Wellbeing and Health,Head of Adults,Third Party Payments,470101,Purchase of Care,22-May-2013,2595850-2101016,"6,397.60",368 THE RIDGE.
Adults Wellbeing and Health,Head of Adults,Third Party Payments,470101,Purchase of Care,22-May-2013,2595851-2099401,896.46,A CHARLES THOMAS (CARE) LTD.
Adults Wellbeing and Health,Head of Adults,Third Party Payments,470101,Purchase of Care,22-May-2013,2595851-2099402,"1,792.92",A CHARLES THOMAS (CARE) LTD.
Adults Wellbeing and Health,Head of Adults,Third Party Payments,470101,Purchase of Care,22-May-2013,2595851-2099403,"1,792.92",A CHARLES THOMAS (CARE) LTD.
Adults Wellbeing and Health,Head of Adults,Third Party Payments,470101,Purchase of Care,22-May-2013,2595851-2099404,"1,792.92",A CHARLES THOMAS (CARE) LTD.
Adults Wellbeing and Health,Head of Adults,Third Party Payments,470101,Purchase of Care,22-May-2013,2595851-2099405,"1,792.92",A CHARLES THOMAS (CARE) LTD.
Adults Wellbeing and Health,Head of Adults,Third Party Payments,470101,Purchase of Care,22-May-2013,2595851-2099406,"1,792.92",A CHARLES THOMAS (CARE) LTD.
Adults Wellbeing and Health,Head of Adults,Third Party Payments,470101,Purchase of Care,22-May-2013,2595851-2099407,"1,792.92",A CHARLES THOMAS (CARE) LTD.
Adults Wellbeing and Health,Head of Adults,Third Party Payments,470101,Purchase of Care,22-May-2013,2595851-2099408,"1,792.92",A CHARLES THOMAS (CARE) LTD.
Adults Wellbeing and Health,Head of Adults,Third Party Payments,470101,Purchase of Care,22-May-2013,2595851-2099409,"1,792.92",A CHARLES THOMAS (CARE) LTD.
Adults Wellbeing and Health,Head of Adults,Third Party Payments,470101,Purchase of Care,22-May-2013,2595851-2099410,"1,792.92",A CHARLES THOMAS (CARE) LTD.
Adults Wellbeing and Health,Head of Adults,Third Party Payments,470101,Purchase of Care,22-May-2013,2595851-2099411,"1,792.92",A CHARLES THOMAS (CARE) LTD.
Adults Wellbeing and Health,Head of Adults,Third Party Payments,470101,Purchase of Care,22-May-2013,2595851-2099412,"1,792.92",A CHARLES THOMAS (CARE) LTD.
Adults Wellbeing and Health,Head of Adults,Third Party Payments,470101,Purchase of Care,22-May-2013,2595851-2099413,"1,792.92",A CHARLES THOMAS (CARE) LTD.
Adults Wellbeing and Health,Head of Adults,Third Party Payments,470101,Purchase of Care,22-May-2013,2595851-2099414,"1,792.92",A CHARLES THOMAS (CARE) LTD.
Adults Wellbeing and Health,Head of Adults,Third Party Payments,474101,Purchase of Care,22-May-2013,2595851-2100386,"1,882.44",A CHARLES THOMAS (CARE) LTD.
Adults Wellbeing and Health,Head of Adults,Third Party Payments,474101,Purchase of Care,22-May-2013,2595851-2100390,"1,882.44",A CHARLES THOMAS (CARE) LTD.
Adults Wellbeing and Health,Head of Adults,Third Party Payments,474101,Purchase of Care,22-May-2013,2595851-2100392,"1,882.44",A CHARLES THOMAS (CARE) LTD.
Adults Wellbeing and Health,Head of Adults,Third Party Payments,474101,Purchase of Care,22-May-2013,2595851-2100394,"1,378.36",A CHARLES THOMAS (CARE) LTD.
Adults Wellbeing and Health,Head of Adults,Third Party Payments,474101,Purchase of Care,22-May-2013,2595851-2100396,"1,882.44",A CHARLES THOMAS (CARE) LTD.
Adults Wellbeing and Health,Head of Adults,Third Party Payments,474101,Purchase of Care,22-May-2013,2595851-2100399,"1,747.98",A CHARLES THOMAS (CARE) LTD.
Adults Wellbeing and Health,Head of Adults,Third Party Payments,474101,Purchase of Care,22-May-2013,2595851-2100401,"1,882.44",A CHARLES THOMAS (CARE) LTD.
Adults Wellbeing and Health,Head of Adults,Third Party Payments,474101,Purchase of Care,22-May-2013,2595851-2100403,"1,882.44",A CHARLES THOMAS (CARE) LTD.
Adults Wellbeing and Health,Head of Adults,Third Party Payments,474101,Purchase of Care,22-May-2013,2595851-2100405,"1,882.44",A CHARLES THOMAS (CARE) LTD.
Adults Wellbeing and Health,Head of Adults,Third Party Payments,474101,Purchase of Care,22-May-2013,2595851-2100409,"1,882.44",A CHARLES THOMAS (CARE) LTD.
Adults Wellbeing and Health,Head of Adults,Third Party Payments,474101,Purchase of Care,22-May-2013,2595851-2100412,"1,882.44",A CHARLES THOMAS (CARE) LTD.
Adults Wellbeing and Health,Head of Adults,Third Party Payments,474101,Purchase of Care,22-May-2013,2595851-2100416,"1,882.44",A CHARLES THOMAS (CARE) LTD.
Adults Wellbeing and Health,Head of Adults,Third Party Payments,474101,Purchase of Care,22-May-2013,2595851-2100418,"1,882.44",A CHARLES THOMAS (CARE) LTD.
Adults Wellbeing and Health,Head of Adults,Third Party Payments,474101,Purchase of Care,22-May-2013,2595851-2100421,"1,882.44",A CHARLES THOMAS (CARE) LTD.
Adults Wellbeing and Health,Head of Adults,Third Party Payments,470101,Purchase of Care,22-May-2013,2595851-2102676,"1,344.69",A CHARLES THOMAS (CARE) LTD.
Adults Wellbeing and Health,Head of Adults,Third Party Payments,474101,Purchase of Care,22-May-2013,2595855-2100756,"2,303.28",ABBEYMOOR CLINIC.
Adults Wellbeing and Health,Head of Adults,Third Party Payments,470101,Purchase of Care,22-May-2013,2595856-2098554,"1,894.36",ABBEYVALE.
Adults Wellbeing and Health,Head of Adults,Third Party Payments,470101,Purchase of Care,22-May-2013,2595856-2098555,"1,894.36",ABBEYVALE.
Adults Wellbeing and Health,Head of Adults,Third Party Payments,470101,Purchase of Care,22-May-2013,2595856-2098556,"1,894.36",ABBEYVALE.
Adults Wellbeing and Health,Head of Adults,Third Party Payments,470101,Purchase of Care,22-May-2013,2595856-2098557,"1,894.36",ABBEYVALE.
Adults Wellbeing and Health,Head of Adults,Third Party Payments,470101,Purchase of Care,22-May-2013,2595856-2098558,"1,894.36",ABBEYVALE.
Adults Wellbeing and Health,Head of Adults,Third Party Payments,470101,Purchase of Care,22-May-2013,2595856-2098559,"1,894.36",ABBEYVALE.
Adults Wellbeing and Health,Head of Adults,Third Party Payments,470101,Purchase of Care,22-May-2013,2595856-2098560,"1,894.36",ABBEYVALE.
Adults Wellbeing and Health,Head of Adults,Third Party Payments,470101,Purchase of Care,22-May-2013,2595856-2098561,"1,894.36",ABBEYVALE.
Adults Wellbeing and Health,Head of Adults,Third Party Payments,470101,Purchase of Care,22-May-2013,2595856-2098562,"1,894.36",ABBEYVALE.
Adults Wellbeing and Health,Head of Adults,Third Party Payments,470101,Purchase of Care,22-May-2013,2595856-2098563,"1,894.36",ABBEYVALE.
Adults Wellbeing and Health,Head of Adults,Third Party Payments,470101,Purchase of Care,22-May-2013,2595856-2098564,"2,503.26",ABBEYVALE.
Adults Wellbeing and Health,Head of Adults,Third Party Payments,470101,Purchase of Care,22-May-2013,2595856-2098565,"1,954.36",ABBEYVALE.
Adults Wellbeing and Health,Head of Adults,Third Party Payments,470101,Purchase of Care,22-May-2013,2595856-2098566,"1,894.36",ABBEYVALE.
Adults Wellbeing and Health,Head of Adults,Third Party Payments,470101,Purchase of Care,22-May-2013,2595856-2098567,"1,894.36",ABBEYVALE.
Adults Wellbeing and Health,Head of Adults,Third Party Payments,470101,Purchase of Care,22-May-2013,2595856-2098568,"1,894.36",ABBEYVALE.
Adults Wellbeing and Health,Head of Adults,Third Party Payments,470101,Purchase of Care,22-May-2013,2595856-2098569,"1,894.36",ABBEYVALE.
Adults Wellbeing and Health,Head of Adults,Third Party Payments,470101,Purchase of Care,22-May-2013,2595856-2098570,"1,894.36",ABBEYVALE.
Adults Wellbeing and Health,Head of Adults,Third Party Payments,470101,Purchase of Care,22-May-2013,2595856-2098571,"1,894.36",ABBEYVALE.
Adults Wellbeing and Health,Head of Adults,Third Party Payments,470101,Purchase of Care,22-May-2013,2595856-2100916,"2,500.00",ABBEYVALE.
Adults Wellbeing and Health,Head of Adults,Third Party Payments,470101,Purchase of Care,22-May-2013,2595856-2100918,"2,400.00",ABBEYVALE.
Adults Wellbeing and Health,Head of Adults,Third Party Payments,470101,Purchase of Care,22-May-2013,2595856-2100920,"2,500.00",ABBEYVALE.
Adults Wellbeing and Health,Head of Adults,Third Party Payments,470101,Purchase of Care,22-May-2013,2595856-2100921,"2,400.00",ABBEYVALE.
Adults Wellbeing and Health,Head of Adults,Third Party Payments,470101,Purchase of Care,22-May-2013,2595856-2100922,"1,200.00",ABBEYVALE.
Adults Wellbeing and Health,Head of Adults,Third Party Payments,470101,Purchase of Care,22-May-2013,2595856-2100923,"2,400.00",ABBEYVALE.
Adults Wellbeing and Health,Head of Adults,Third Party Payments,470101,Purchase of Care,22-May-2013,2595856-2100924,"2,400.00",ABBEYVALE.
Adults Wellbeing and Health,Head of Adults,Third Party Payments,471101,Purchase of Care,22-May-2013,2595856-2101847,"1,964.28",ABBEYVALE.
Adults Wellbeing and Health,Head of Adults,Third Party Payments,471101,Purchase of Care,22-May-2013,2595856-2101848,"1,964.28",ABBEYVALE.
Adults Wellbeing and Health,Head of Adults,Third Party Payments,471101,Purchase of Care,22-May-2013,2595856-2101851,"1,964.28",ABBEYVALE.
Adults Wellbeing and Health,Head of Adults,Third Party Payments,471101,Purchase of Care,22-May-2013,2595856-2101852,"1,964.28",ABBEYVALE.
Adults Wellbeing and Health,Head of Adults,Third Party Payments,471101,Purchase of Care,22-May-2013,2595856-2101853,"1,964.28",ABBEYVALE.
Adults Wellbeing and Health,Head of Adults,Third Party Payments,471101,Purchase of Care,22-May-2013,2595856-2101854,"1,964.28",ABBEYVALE.
Adults Wellbeing and Health,Head of Adults,Third Party Payments,471101,Purchase of Care,22-May-2013,2595856-2101855,"1,964.28",ABBEYVALE.
Adults Wellbeing and Health,Head of Adults,Third Party Payments,471101,Purchase of Care,22-May-2013,2595856-2101856,"1,964.28",ABBEYVALE.
Adults Wellbeing and Health,Head of Adults,Third Party Payments,470101,Purchase of Care,22-May-2013,2595856-2102670,"2,652.82",ABBEYVALE.
Adults Wellbeing and Health,Head of Adults,Third Party Payments,470101,Purchase of Care,22-May-2013,2595856-2102671,"2,652.82",ABBEYVALE.
Adults Wellbeing and Health,Head of Adults,Third Party Payments,470101,Purchase of Care,22-May-2013,2595856-2102744,"7,198.21",ABBEYVALE.
Adults Wellbeing and Health,Head of Adults,Third Party Payments,470101,Purchase of Care,22-May-2013,2595857-2099242,"1,536.78",ABBOTTS COURT CARE HOME.
Adults Wellbeing and Health,Head of Adults,Third Party Payments,470101,Purchase of Care,22-May-2013,2595857-2099307,"1,792.92",ABBOTTS COURT CARE HOME.
Adults Wellbeing and Health,Head of Adults,Third Party Payments,470101,Purchase of Care,22-May-2013,2595857-2099308,"1,792.92",ABBOTTS COURT CARE HOME.
Adults Wellbeing and Health,Head of Adults,Third Party Payments,470101,Purchase of Care,22-May-2013,2595857-2099309,"1,792.92",ABBOTTS COURT CARE HOME.
Adults Wellbeing and Health,Head of Adults,Third Party Payments,470101,Purchase of Care,22-May-2013,2595857-2099310,"1,792.92",ABBOTTS COURT CARE HOME.
Adults Wellbeing and Health,Head of Adults,Third Party Payments,470101,Purchase of Care,22-May-2013,2595857-2099311,"1,792.92",ABBOTTS COURT CARE HOME.
Adults Wellbeing and Health,Head of Adults,Third Party Payments,470101,Purchase of Care,22-May-2013,2595857-2099312,"1,792.92",ABBOTTS COURT CARE HOME.
Adults Wellbeing and Health,Head of Adults,Third Party Payments,470101,Purchase of Care,22-May-2013,2595857-2099313,"1,792.92",ABBOTTS COURT CARE HOME.
Adults Wellbeing and Health,Head of Adults,Third Party Payments,470101,Purchase of Care,22-May-2013,2595857-2099314,"1,792.92",ABBOTTS COURT CARE HOME.
Adults Wellbeing and Health,Head of Adults,Third Party Payments,470101,Purchase of Care,22-May-2013,2595857-2099315,"1,472.75",ABBOTTS COURT CARE HOME.
Adults Wellbeing and Health,Head of Adults,Third Party Payments,470101,Purchase of Care,22-May-2013,2595857-2099317,"1,792.92",ABBOTTS COURT CARE HOME.
Adults Wellbeing and Health,Head of Adults,Third Party Payments,470101,Purchase of Care,22-May-2013,2595857-2099318,"1,792.92",ABBOTTS COURT CARE HOME.
Adults Wellbeing and Health,Head of Adults,Third Party Payments,470101,Purchase of Care,22-May-2013,2595857-2099319,"1,792.92",ABBOTTS COURT CARE HOME.
Adults Wellbeing and Health,Head of Adults,Third Party Payments,471101,Purchase of Care,22-May-2013,2595857-2102351,"1,863.80",ABBOTTS COURT CARE HOME.
Adults Wellbeing and Health,Head of Adults,Third Party Payments,471101,Purchase of Care,22-May-2013,2595857-2102353,"1,863.80",ABBOTTS COURT CARE HOME.
Adults Wellbeing and Health,Head of Adults,Third Party Payments,471101,Purchase of Care,22-May-2013,2595857-2102354,"1,863.80",ABBOTTS COURT CARE HOME.
Adults Wellbeing and Health,Head of Adults,Third Party Payments,471101,Purchase of Care,22-May-2013,2595857-2102355,"1,863.80",ABBOTTS COURT CARE HOME.
Adults Wellbeing and Health,Head of Adults,Third Party Payments,471101,Purchase of Care,22-May-2013,2595857-2102356,"1,863.80",ABBOTTS COURT CARE HOME.
Adults Wellbeing and Health,Head of Adults,Third Party Payments,471101,Purchase of Care,22-May-2013,2595857-2102357,"1,863.80",ABBOTTS COURT CARE HOME.
Adults Wellbeing and Health,Head of Adults,Third Party Payments,471101,Purchase of Care,22-May-2013,2595857-2102358,"1,863.80",ABBOTTS COURT CARE HOME.
Adults Wellbeing and Health,Head of Adults,Third Party Payments,471101,Purchase of Care,22-May-2013,2595857-2102359,"1,863.80",ABBOTTS COURT CARE HOME.
Adults Wellbeing and Health,Head of Adults,Third Party Payments,471101,Purchase of Care,22-May-2013,2595857-2102361,"1,863.80",ABBOTTS COURT CARE HOME.
Adults Wellbeing and Health,Head of Adults,Third Party Payments,471101,Purchase of Care,22-May-2013,2595857-2102362,"1,863.80",ABBOTTS COURT CARE HOME.
Adults Wellbeing and Health,Head of Adults,Third Party Payments,471101,Purchase of Care,22-May-2013,2595857-2102363,"1,863.80",ABBOTTS COURT CARE HOME.
Adults Wellbeing and Health,Head of Adults,Third Party Payments,471101,Purchase of Care,22-May-2013,2595857-2102364,"1,863.80",ABBOTTS COURT CARE HOME.
Adults Wellbeing and Health,Head of Adults,Third Party Payments,470101,Purchase of Care,22-May-2013,2595857-2102904,896.46,ABBOTTS COURT CARE HOME.
Adults Wellbeing and Health,Head of Adults,Third Party Payments,470101,Purchase of Care,22-May-2013,2595859-1329136H,"2,933.48",ACCEPT CARE LTD.
Adults Wellbeing and Health,Head of Adults,Third Party Payments,478101,Purchase of Care,22-May-2013,2595859-1329252H,"3,614.60",ACCEPT CARE LTD.
Adults Wellbeing and Health,Head of Adults,Third Party Payments,478101,Purchase of Care,22-May-2013,2595859-1329312H,"5,140.08",ACCEPT CARE LTD.
Adults Wellbeing and Health,Head of Adults,Third Party Payments,478101,Purchase of Care,22-May-2013,2595859-1329457H,"2,920.52",ACCEPT CARE LTD.
Adults Wellbeing and Health,Head of Adults,Third Party Payments,478101,Purchase of Care,22-May-2013,2595859-1329522H,"1,440.80",ACCEPT CARE LTD.
Adults Wellbeing and Health,Head of Adults,Third Party Payments,478101,Purchase of Care,22-May-2013,2595859-1329793H,"4,594.92",ACCEPT CARE LTD.
Adults Wellbeing and Health,Head of Adults,Third Party Payments,478101,Purchase of Care,22-May-2013,2595859-1329823H,"1,232.00",ACCEPT CARE LTD.
Adults Wellbeing and Health,Head of Adults,Third Party Payments,478101,Purchase of Care,22-May-2013,2595859-1329828H,543.58,ACCEPT CARE LTD.
Adults Wellbeing and Health,Head of Adults,Third Party Payments,478101,Purchase of Care,22-May-2013,2595859-1329912H,"1,540.00",ACCEPT CARE LTD.
Adults Wellbeing and Health,Head of Adults,Third Party Payments,478101,Purchase of Care,22-May-2013,2595859-1329947H,"5,503.52",ACCEPT CARE LTD.
Adults Wellbeing and Health,Head of Adults,Third Party Payments,478101,Purchase of Care,22-May-2013,2595859-1329961H,"3,634.40",ACCEPT CARE LTD.
Adults Wellbeing and Health,Head of Adults,Third Party Payments,478101,Purchase of Care,22-May-2013,2595859-1330061H,616.00,ACCEPT CARE LTD.
Adults Wellbeing and Health,Head of Adults,Third Party Payments,478101,Purchase of Care,22-May-2013,2595859-1330273H,"5,866.96",ACCEPT CARE LTD.
Adults Wellbeing and Health,Head of Adults,Third Party Payments,478101,Purchase of Care,22-May-2013,2595859-1330501H,828.68,ACCEPT CARE LTD.
Adults Wellbeing and Health,Head of Adults,Third Party Payments,478101,Purchase of Care,22-May-2013,2595859-1330507H,"7,891.84",ACCEPT CARE LTD.
Adults Wellbeing and Health,Head of Adults,Third Party Payments,478101,Purchase of Care,22-May-2013,2595859-1330514H,"1,804.00",ACCEPT CARE LTD.
Adults Wellbeing and Health,Head of Adults,Third Party Payments,478101,Purchase of Care,22-May-2013,2595859-1330530H,"2,673.88",ACCEPT CARE LTD.
Adults Wellbeing and Health,Head of Adults,Third Party Payments,478101,Purchase of Care,22-May-2013,2595859-1330566H,506.00,ACCEPT CARE LTD.
Adults Wellbeing and Health,Head of Adults,Third Party Payments,472101,Purchase of Care,22-May-2013,2595859-1330603H,"4,036.00",ACCEPT CARE LTD.
Adults Wellbeing and Health,Head of Adults,Third Party Payments,478101,Purchase of Care,22-May-2013,2595859-1330618H,"4,776.64",ACCEPT CARE LTD.
Adults Wellbeing and Health,Head of Adults,Third Party Payments,478101,Purchase of Care,22-May-2013,2595859-1330720H,"5,477.56",ACCEPT CARE LTD.
Adults Wellbeing and Health,Head of Adults,Third Party Payments,478101,Purchase of Care,22-May-2013,2595859-1330744H,"4,580.52",ACCEPT CARE LTD.
Adults Wellbeing and Health,Head of Adults,Third Party Payments,478101,Purchase of Care,22-May-2013,2595859-1330759H,"3,582.48",ACCEPT CARE LTD.
Adults Wellbeing and Health,Head of Adults,Third Party Payments,478101,Purchase of Care,22-May-2013,2595859-1330801H,"1,635.52",ACCEPT CARE LTD.
Adults Wellbeing and Health,Head of Adults,Third Party Payments,478101,Purchase of Care,22-May-2013,2595859-1330821H,"3,997.84",ACCEPT CARE LTD.
Adults Wellbeing and Health,Head of Adults,Third Party Payments,478101,Purchase of Care,22-May-2013,2595859-1330935H,"7,762.04",ACCEPT CARE LTD.
Adults Wellbeing and Health,Head of Adults,Third Party Payments,478101,Purchase of Care,22-May-2013,2595859-1330938H,"11,889.68",ACCEPT CARE LTD.
Adults Wellbeing and Health,Head of Adults,Third Party Payments,478101,Purchase of Care,22-May-2013,2595859-1330950H,"3,011.36",ACCEPT CARE LTD.
Adults Wellbeing and Health,Head of Adults,Third Party Payments,478101,Purchase of Care,22-May-2013,2595859-1331052H,"5,224.00",ACCEPT CARE LTD.
Adults Wellbeing and Health,Head of Adults,Third Party Payments,478101,Purchase of Care,22-May-2013,2595859-1331059H,"6,541.92",ACCEPT CARE LTD.
Adults Wellbeing and Health,Head of Adults,Third Party Payments,478101,Purchase of Care,22-May-2013,2595859-1331151H,"2,400.00",ACCEPT CARE LTD.
Adults Wellbeing and Health,Head of Adults,Third Party Payments,472101,Purchase of Care,22-May-2013,2595859-1331604H,672.00,ACCEPT CARE LTD.
Adults Wellbeing and Health,Head of Adults,Third Party Payments,478101,Purchase of Care,22-May-2013,2595859-1331755H,"6,384.00",ACCEPT CARE LTD.
Adults Wellbeing and Health,Head of Adults,Third Party Payments,478101,Purchase of Care,22-May-2013,2595859-1331800H,"2,284.48",ACCEPT CARE LTD.
Adults Wellbeing and Health,Head of Adults,Third Party Payments,478101,Purchase of Care,22-May-2013,2595859-1332026H,"4,050.00",ACCEPT CARE LTD.
Adults Wellbeing and Health,Head of Adults,Third Party Payments,478101,Purchase of Care,22-May-2013,2595859-1332030H,"1,232.00",ACCEPT CARE LTD.
Adults Wellbeing and Health,Head of Adults,Third Party Payments,478101,Purchase of Care,22-May-2013,2595859-1332047H,"1,388.00",ACCEPT CARE LTD.
Adults Wellbeing and Health,Head of Adults,Third Party Payments,478101,Purchase of Care,22-May-2013,2595859-1332345H,"6,905.36",ACCEPT CARE LTD.
Adults Wellbeing and Health,Head of Adults,Third Party Payments,478101,Purchase of Care,22-May-2013,2595859-1332530H,"4,698.76",ACCEPT CARE LTD.
Adults Wellbeing and Health,Head of Adults,Third Party Payments,478101,Purchase of Care,22-May-2013,2595859-1332604H,990.00,ACCEPT CARE LTD.
Adults Wellbeing and Health,Head of Adults,Third Party Payments,478101,Purchase of Care,22-May-2013,2595859-1332634H,"4,984.00",ACCEPT CARE LTD.
Adults Wellbeing and Health,Head of Adults,Third Party Payments,478101,Purchase of Care,22-May-2013,2595859-1332730H,"9,313.15",ACCEPT CARE LTD.
Adults Wellbeing and Health,Head of Adults,Third Party Payments,478101,Purchase of Care,22-May-2013,2595859-1333091H,"3,816.12",ACCEPT CARE LTD.
Adults Wellbeing and Health,Head of Adults,Third Party Payments,478101,Purchase of Care,22-May-2013,2595859-1333990H,"5,815.04",ACCEPT CARE LTD.
Adults Wellbeing and Health,Head of Adults,Third Party Payments,478101,Purchase of Care,22-May-2013,2595859-1334036H,"1,212.00",ACCEPT CARE LTD.
Adults Wellbeing and Health,Head of Adults,Third Party Payments,478101,Purchase of Care,22-May-2013,2595859-1334677H,"1,136.00",ACCEPT CARE LTD.
Adults Wellbeing and Health,Head of Adults,Third Party Payments,478101,Purchase of Care,22-May-2013,2595859-1335180H,528.00,ACCEPT CARE LTD.
Adults Wellbeing and Health,Head of Adults,Transfer Payments,515201,Social Services Clients,22-May-2013,2595862-1334757H,817.20,REDACTED - PAYMENT TO INDIVIDUAL
Adults Wellbeing and Health,Head of Adults,Transfer Payments,515201,Social Services Clients,22-May-2013,2595864-1334039H,525.88,REDACTED - PAYMENT TO INDIVIDUAL
Adults Wellbeing and Health,Head of Adults,Transfer Payments,515201,Social Services Clients,22-May-2013,2595870-1332997H,611.92,REDACTED - PAYMENT TO INDIVIDUAL
Adults Wellbeing and Health,Head of Adults,Transfer Payments,515201,Social Services Clients,22-May-2013,2595872-1330955H,630.00,REDACTED - PAYMENT TO INDIVIDUAL
Adults Wellbeing and Health,Head of Adults,Transfer Payments,515201,Social Services Clients,22-May-2013,2595876-1333123H,"1,266.00",REDACTED - PAYMENT TO INDIVIDUAL
Adults Wellbeing and Health,Head of Adults,Transfer Payments,515201,Social Services Clients,22-May-2013,2595877-1331148H,817.20,REDACTED - PAYMENT TO INDIVIDUAL
Adults Wellbeing and Health,Head of Adults,Transfer Payments,515201,Social Services Clients,22-May-2013,2595880-1332515H,506.40,REDACTED - PAYMENT TO INDIVIDUAL
Adults Wellbeing and Health,Head of Adults,Transfer Payments,515201,Social Services Clients,22-May-2013,2595881-1336329H,"2,932.88",REDACTED - PAYMENT TO INDIVIDUAL
Adults Wellbeing and Health,Head of Adults,Transfer Payments,515201,Social Services Clients,22-May-2013,2595882-1332458H,839.92,REDACTED - PAYMENT TO INDIVIDUAL
Adults Wellbeing and Health,Head of Adults,Transfer Payments,515201,Social Services Clients,22-May-2013,2595884-1332538H,580.24,REDACTED - PAYMENT TO INDIVIDUAL
Adults Wellbeing and Health,Head of Adults,Transfer Payments,515201,Social Services Clients,22-May-2013,2595885-1332297H,771.80,REDACTED - PAYMENT TO INDIVIDUAL
Adults Wellbeing and Health,Head of Adults,Transfer Payments,515201,Social Services Clients,22-May-2013,2595887-1331405H,567.52,REDACTED - PAYMENT TO INDIVIDUAL
Adults Wellbeing and Health,Head of Adults,Transfer Payments,515201,Social Services Clients,22-May-2013,2595890-1329641H,998.80,REDACTED - PAYMENT TO INDIVIDUAL
Adults Wellbeing and Health,Head of Adults,Transfer Payments,515201,Social Services Clients,22-May-2013,2595892-1330233H,"1,076.12",REDACTED - PAYMENT TO INDIVIDUAL
Adults Wellbeing and Health,Head of Adults,Transfer Payments,515201,Social Services Clients,22-May-2013,2595893-1332435H,590.80,REDACTED - PAYMENT TO INDIVIDUAL
Adults Wellbeing and Health,Head of Adults,Transfer Payments,515201,Social Services Clients,22-May-2013,2595894-1330022H,862.60,REDACTED - PAYMENT TO INDIVIDUAL
Adults Wellbeing and Health,Head of Adults,Transfer Payments,515201,Social Services Clients,22-May-2013,2595895-1334769H,"2,542.40",REDACTED - PAYMENT TO INDIVIDUAL
Adults Wellbeing and Health,Head of Adults,Transfer Payments,515201,Social Services Clients,22-May-2013,2595897-1330780H,949.52,REDACTED - PAYMENT TO INDIVIDUAL
Adults Wellbeing and Health,Head of Adults,Transfer Payments,515201,Social Services Clients,22-May-2013,2595901-1332219H,"1,362.00",REDACTED - PAYMENT TO INDIVIDUAL
Adults Wellbeing and Health,Head of Adults,Transfer Payments,515201,Social Services Clients,22-May-2013,2595903-1333487H,604.88,REDACTED - PAYMENT TO INDIVIDUAL
Adults Wellbeing and Health,Head of Adults,Transfer Payments,515201,Social Services Clients,22-May-2013,2595904-1333139H,696.32,REDACTED - PAYMENT TO INDIVIDUAL
Adults Wellbeing and Health,Head of Adults,Transfer Payments,515201,Social Services Clients,22-May-2013,2595905-1335339H,675.20,REDACTED - PAYMENT TO INDIVIDUAL
Adults Wellbeing and Health,Head of Adults,Transfer Payments,515201,Social Services Clients,22-May-2013,2595908-1333943H,"1,015.83",REDACTED - PAYMENT TO INDIVIDUAL
Adults Wellbeing and Health,Head of Adults,Transfer Payments,515201,Social Services Clients,22-May-2013,2595909-1333786H,500.00,REDACTED - PAYMENT TO INDIVIDUAL
Adults Wellbeing and Health,Head of Adults,Transfer Payments,515201,Social Services Clients,22-May-2013,2595910-1331946H,"1,814.60",REDACTED - PAYMENT TO INDIVIDUAL
Adults Wellbeing and Health,Head of Adults,Transfer Payments,515201,Social Services Clients,22-May-2013,2595912-1329869H,664.64,REDACTED - PAYMENT TO INDIVIDUAL
Adults Wellbeing and Health,Head of Adults,Transfer Payments,515201,Social Services Clients,22-May-2013,2595913-1336347H,590.80,REDACTED - PAYMENT TO INDIVIDUAL
Adults Wellbeing and Health,Head of Adults,Transfer Payments,515201,Social Services Clients,22-May-2013,2595914-1330836H,"1,287.12",REDACTED - PAYMENT TO INDIVIDUAL
Adults Wellbeing and Health,Head of Adults,Transfer Payments,515201,Social Services Clients,22-May-2013,2595915-1333442H,780.72,REDACTED - PAYMENT TO INDIVIDUAL
Adults Wellbeing and Health,Head of Adults,Transfer Payments,515201,Social Services Clients,22-May-2013,2595918-1331647H,805.84,REDACTED - PAYMENT TO INDIVIDUAL
Adults Wellbeing and Health,Head of Adults,Transfer Payments,515201,Social Services Clients,22-May-2013,2595919-1334780H,908.00,REDACTED - PAYMENT TO INDIVIDUAL
Adults Wellbeing and Health,Head of Adults,Transfer Payments,515201,Social Services Clients,22-May-2013,2595924-1331284H,862.60,REDACTED - PAYMENT TO INDIVIDUAL
Adults Wellbeing and Health,Head of Adults,Transfer Payments,515201,Social Services Clients,22-May-2013,2595927-1331263H,"1,770.60",REDACTED - PAYMENT TO INDIVIDUAL
Adults Wellbeing and Health,Head of Adults,Transfer Payments,515201,Social Services Clients,22-May-2013,2595928-1329640H,"3,247.60",REDACTED - PAYMENT TO INDIVIDUAL
Adults Wellbeing and Health,Head of Adults,Transfer Payments,515201,Social Services Clients,22-May-2013,2595935-1332687H,723.72,REDACTED - PAYMENT TO INDIVIDUAL
Adults Wellbeing and Health,Head of Adults,Transfer Payments,515201,Social Services Clients,22-May-2013,2595937-1333077H,907.32,REDACTED - PAYMENT TO INDIVIDUAL
Adults Wellbeing and Health,Head of Adults,Transfer Payments,515201,Social Services Clients,22-May-2013,2595938-1332298H,678.72,REDACTED - PAYMENT TO INDIVIDUAL
Adults Wellbeing and Health,Head of Adults,Transfer Payments,515201,Social Services Clients,22-May-2013,2595940-1330401H,726.40,REDACTED - PAYMENT TO INDIVIDUAL
Adults Wellbeing and Health,Head of Adults,Transfer Payments,515201,Social Services Clients,22-May-2013,2595941-1332717H,637.60,REDACTED - PAYMENT TO INDIVIDUAL
Adults Wellbeing and Health,Head of Adults,Transfer Payments,515201,Social Services Clients,22-May-2013,2595942-1330594H,632.40,REDACTED - PAYMENT TO INDIVIDUAL
Adults Wellbeing and Health,Head of Adults,Transfer Payments,515201,Social Services Clients,22-May-2013,2595943-1332903H,583.76,REDACTED - PAYMENT TO INDIVIDUAL
Adults Wellbeing and Health,Head of Adults,Transfer Payments,515201,Social Services Clients,22-May-2013,2595944-1331197H,630.66,REDACTED - PAYMENT TO INDIVIDUAL
Adults Wellbeing and Health,Head of Adults,Transfer Payments,515201,Social Services Clients,22-May-2013,2595947-1333063H,907.20,REDACTED - PAYMENT TO INDIVIDUAL
Adults Wellbeing and Health,Head of Adults,Transfer Payments,515201,Social Services Clients,22-May-2013,2595948-1334773H,949.52,REDACTED - PAYMENT TO INDIVIDUAL
Adults Wellbeing and Health,Head of Adults,Transfer Payments,515201,Social Services Clients,22-May-2013,2595949-1331906H,590.80,REDACTED - PAYMENT TO INDIVIDUAL
Adults Wellbeing and Health,Head of Adults,Transfer Payments,515201,Social Services Clients,22-May-2013,2595950-1335009H,"2,031.64",REDACTED - PAYMENT TO INDIVIDUAL
Adults Wellbeing and Health,Head of Adults,Transfer Payments,515201,Social Services Clients,22-May-2013,2595951-1332719H,635.60,REDACTED - PAYMENT TO INDIVIDUAL
Adults Wellbeing and Health,Head of Adults,Transfer Payments,515201,Social Services Clients,22-May-2013,2595953-1334809H,717.40,REDACTED - PAYMENT TO INDIVIDUAL
Adults Wellbeing and Health,Head of Adults,Transfer Payments,515201,Social Services Clients,22-May-2013,2595954-1335449H,"4,817.04",REDACTED - PAYMENT TO INDIVIDUAL
Adults Wellbeing and Health,Head of Adults,Transfer Payments,515201,Social Services Clients,22-May-2013,2595956-1333196H,717.40,REDACTED - PAYMENT TO INDIVIDUAL
Adults Wellbeing and Health,Head of Adults,Transfer Payments,515201,Social Services Clients,22-May-2013,2595958-1334736H,601.36,REDACTED - PAYMENT TO INDIVIDUAL
Adults Wellbeing and Health,Head of Adults,Transfer Payments,515201,Social Services Clients,22-May-2013,2595959-1330666H,976.12,REDACTED - PAYMENT TO INDIVIDUAL
Adults Wellbeing and Health,Head of Adults,Transfer Payments,515201,Social Services Clients,22-May-2013,2595961-1330532H,675.20,REDACTED - PAYMENT TO INDIVIDUAL
Adults Wellbeing and Health,Head of Adults,Transfer Payments,515201,Social Services Clients,22-May-2013,2595962-1332589H,"1,747.92",REDACTED - PAYMENT TO INDIVIDUAL
Adults Wellbeing and Health,Head of Adults,Transfer Payments,515201,Social Services Clients,22-May-2013,2595963-1334812H,"2,743.00",REDACTED - PAYMENT TO INDIVIDUAL
Adults Wellbeing and Health,Head of Adults,Transfer Payments,515201,Social Services Clients,22-May-2013,2595964-1331650H,"1,055.00",REDACTED - PAYMENT TO INDIVIDUAL
Adults Wellbeing and Health,Head of Adults,Transfer Payments,515201,Social Services Clients,22-May-2013,2595965-1333609H,527.52,REDACTED - PAYMENT TO INDIVIDUAL
Adults Wellbeing and Health,Head of Adults,Transfer Payments,515201,Social Services Clients,22-May-2013,2595966-1334094H,794.52,REDACTED - PAYMENT TO INDIVIDUAL
Adults Wellbeing and Health,Head of Adults,Transfer Payments,515201,Social Services Clients,22-May-2013,2595968-1331001H,833.44,REDACTED - PAYMENT TO INDIVIDUAL
Adults Wellbeing and Health,Head of Adults,Transfer Payments,515201,Social Services Clients,22-May-2013,2595969-1333377H,766.64,REDACTED - PAYMENT TO INDIVIDUAL
Adults Wellbeing and Health,Head of Adults,Transfer Payments,515201,Social Services Clients,22-May-2013,2595972-1333594H,590.80,REDACTED - PAYMENT TO INDIVIDUAL
Adults Wellbeing and Health,Head of Adults,Transfer Payments,515201,Social Services Clients,22-May-2013,2595973-1333986H,"1,033.80",REDACTED - PAYMENT TO INDIVIDUAL
Adults Wellbeing and Health,Head of Adults,Transfer Payments,515201,Social Services Clients,22-May-2013,2595974-1332970H,"1,120.00",REDACTED - PAYMENT TO INDIVIDUAL
Adults Wellbeing and Health,Head of Adults,Transfer Payments,515201,Social Services Clients,22-May-2013,2595975-1336328H,554.59,REDACTED - PAYMENT TO INDIVIDUAL
Adults Wellbeing and Health,Head of Adults,Transfer Payments,515201,Social Services Clients,22-May-2013,2595977-1330391H,838.20,REDACTED - PAYMENT TO INDIVIDUAL
Adults Wellbeing and Health,Head of Adults,Transfer Payments,515201,Social Services Clients,22-May-2013,2595980-1334919H,839.92,REDACTED - PAYMENT TO INDIVIDUAL
Adults Wellbeing and Health,Head of Adults,Transfer Payments,515201,Social Services Clients,22-May-2013,2595982-1329358H,998.80,REDACTED - PAYMENT TO INDIVIDUAL
Adults Wellbeing and Health,Head of Adults,Transfer Payments,515201,Social Services Clients,22-May-2013,2595987-1330989H,953.40,REDACTED - PAYMENT TO INDIVIDUAL
Adults Wellbeing and Health,Head of Adults,Transfer Payments,515201,Social Services Clients,22-May-2013,2595989-1332807H,"1,944.00",REDACTED - PAYMENT TO INDIVIDUAL
Adults Wellbeing and Health,Head of Adults,Transfer Payments,515201,Social Services Clients,22-May-2013,2595993-1329307H,828.56,REDACTED - PAYMENT TO INDIVIDUAL
Adults Wellbeing and Health,Head of Adults,Transfer Payments,515201,Social Services Clients,22-May-2013,2595994-1330922H,624.24,REDACTED - PAYMENT TO INDIVIDUAL
Adults Wellbeing and Health,Head of Adults,Transfer Payments,515201,Social Services Clients,22-May-2013,2595995-1329150H,"1,477.00",REDACTED - PAYMENT TO INDIVIDUAL
Adults Wellbeing and Health,Head of Adults,Transfer Payments,515201,Social Services Clients,22-May-2013,2595999-1331845H,541.56,REDACTED - PAYMENT TO INDIVIDUAL
Adults Wellbeing and Health,Head of Adults,Transfer Payments,515201,Social Services Clients,22-May-2013,2596000-1330337H,"1,582.52",REDACTED - PAYMENT TO INDIVIDUAL
Adults Wellbeing and Health,Head of Adults,Transfer Payments,515201,Social Services Clients,22-May-2013,2596001-1329693H,669.64,REDACTED - PAYMENT TO INDIVIDUAL
Adults Wellbeing and Health,Head of Adults,Transfer Payments,515201,Social Services Clients,22-May-2013,2596002-1334433H,"1,350.40",REDACTED - PAYMENT TO INDIVIDUAL
Adults Wellbeing and Health,Head of Adults,Transfer Payments,515201,Social Services Clients,22-May-2013,2596003-1335537H,745.52,REDACTED - PAYMENT TO INDIVIDUAL
Adults Wellbeing and Health,Head of Adults,Transfer Payments,515201,Social Services Clients,22-May-2013,2596004-1330714H,569.60,REDACTED - PAYMENT TO INDIVIDUAL
Adults Wellbeing and Health,Head of Adults,Transfer Payments,515201,Social Services Clients,22-May-2013,2596006-1330658H,612.68,REDACTED - PAYMENT TO INDIVIDUAL
Adults Wellbeing and Health,Head of Adults,Transfer Payments,515201,Social Services Clients,22-May-2013,2596010-1330370H,506.40,REDACTED - PAYMENT TO INDIVIDUAL
Adults Wellbeing and Health,Head of Adults,Transfer Payments,515201,Social Services Clients,22-May-2013,2596013-1331696H,"1,872.76",REDACTED - PAYMENT TO INDIVIDUAL
Adults Wellbeing and Health,Head of Adults,Transfer Payments,515201,Social Services Clients,22-May-2013,2596017-1332488H,"1,669.00",REDACTED - PAYMENT TO INDIVIDUAL
Adults Wellbeing and Health,Head of Adults,Transfer Payments,515201,Social Services Clients,22-May-2013,2596019-1331940H,537.96,REDACTED - PAYMENT TO INDIVIDUAL
Adults Wellbeing and Health,Head of Adults,Transfer Payments,515201,Social Services Clients,22-May-2013,2596023-1335205H,590.20,REDACTED - PAYMENT TO INDIVIDUAL
Adults Wellbeing and Health,Head of Adults,Transfer Payments,515201,Social Services Clients,22-May-2013,2596025-1332407H,"1,452.80",REDACTED - PAYMENT TO INDIVIDUAL
Adults Wellbeing and Health,Head of Adults,Transfer Payments,515201,Social Services Clients,22-May-2013,2596027-1329374H,"2,420.04",REDACTED - PAYMENT TO INDIVIDUAL
Adults Wellbeing and Health,Head of Adults,Transfer Payments,515201,Social Services Clients,22-May-2013,2596028-1329147H,817.20,REDACTED - PAYMENT TO INDIVIDUAL
Adults Wellbeing and Health,Head of Adults,Transfer Payments,515201,Social Services Clients,22-May-2013,2596029-1334654H,"1,362.00",REDACTED - PAYMENT TO INDIVIDUAL
Adults Wellbeing and Health,Head of Adults,Transfer Payments,515201,Social Services Clients,22-May-2013,2596031-1334127H,"2,451.60",REDACTED - PAYMENT TO INDIVIDUAL
Adults Wellbeing and Health,Head of Adults,Transfer Payments,515201,Social Services Clients,22-May-2013,2596032-1334533H,885.32,REDACTED - PAYMENT TO INDIVIDUAL
Adults Wellbeing and Health,Head of Adults,Transfer Payments,515201,Social Services Clients,22-May-2013,2596034-1335296H,506.40,REDACTED - PAYMENT TO INDIVIDUAL
Adults Wellbeing and Health,Head of Adults,Transfer Payments,515201,Social Services Clients,22-May-2013,2596037-1333940H,840.48,REDACTED - PAYMENT TO INDIVIDUAL
Adults Wellbeing and Health,Head of Adults,Transfer Payments,515201,Social Services Clients,22-May-2013,2596038-1330517H,"1,223.80",REDACTED - PAYMENT TO INDIVIDUAL
Adults Wellbeing and Health,Head of Adults,Transfer Payments,515201,Social Services Clients,22-May-2013,2596039-1333024H,"1,624.72",REDACTED - PAYMENT TO INDIVIDUAL
Adults Wellbeing and Health,Head of Adults,Transfer Payments,515201,Social Services Clients,22-May-2013,2596040-1334062H,696.32,REDACTED - PAYMENT TO INDIVIDUAL
Adults Wellbeing and Health,Head of Adults,Transfer Payments,515201,Social Services Clients,22-May-2013,2596044-1331861H,624.24,REDACTED - PAYMENT TO INDIVIDUAL
Adults Wellbeing and Health,Head of Adults,Transfer Payments,515201,Social Services Clients,22-May-2013,2596045-1334536H,646.96,REDACTED - PAYMENT TO INDIVIDUAL
Adults Wellbeing and Health,Head of Adults,Transfer Payments,515201,Social Services Clients,22-May-2013,2596046-1332561H,"2,088.40",REDACTED - PAYMENT TO INDIVIDUAL
Adults Wellbeing and Health,Head of Adults,Transfer Payments,515201,Social Services Clients,22-May-2013,2596047-1332743H,675.20,REDACTED - PAYMENT TO INDIVIDUAL
Adults Wellbeing and Health,Head of Adults,Transfer Payments,515201,Social Services Clients,22-May-2013,2596048-1335199H,798.28,REDACTED - PAYMENT TO INDIVIDUAL
Adults Wellbeing and Health,Head of Adults,Transfer Payments,515201,Social Services Clients,22-May-2013,2596051-1333907H,"1,362.00",REDACTED - PAYMENT TO INDIVIDUAL
Adults Wellbeing and Health,Head of Adults,Transfer Payments,515201,Social Services Clients,22-May-2013,2596052-1331982H,817.20,REDACTED - PAYMENT TO INDIVIDUAL
Adults Wellbeing and Health,Head of Adults,Transfer Payments,515201,Social Services Clients,22-May-2013,2596053-1334607H,"1,010.16",REDACTED - PAYMENT TO INDIVIDUAL
Adults Wellbeing and Health,Head of Adults,Transfer Payments,515201,Social Services Clients,22-May-2013,2596055-1332575H,569.72,REDACTED - PAYMENT TO INDIVIDUAL
Adults Wellbeing and Health,Head of Adults,Transfer Payments,515201,Social Services Clients,22-May-2013,2596056-1331777H,590.20,REDACTED - PAYMENT TO INDIVIDUAL
Adults Wellbeing and Health,Head of Adults,Transfer Payments,515201,Social Services Clients,22-May-2013,2596060-1329778H,"6,832.60",REDACTED - PAYMENT TO INDIVIDUAL
Adults Wellbeing and Health,Head of Adults,Transfer Payments,515201,Social Services Clients,22-May-2013,2596061-1332255H,675.20,REDACTED - PAYMENT TO INDIVIDUAL
Adults Wellbeing and Health,Head of Adults,Transfer Payments,515201,Social Services Clients,22-May-2013,2596062-1336327H,694.50,REDACTED - PAYMENT TO INDIVIDUAL
Adults Wellbeing and Health,Head of Adults,Transfer Payments,515201,Social Services Clients,22-May-2013,2596063-1334836H,731.48,REDACTED - PAYMENT TO INDIVIDUAL
Adults Wellbeing and Health,Head of Adults,Transfer Payments,515201,Social Services Clients,22-May-2013,2596064-1331308H,822.92,REDACTED - PAYMENT TO INDIVIDUAL
Adults Wellbeing and Health,Head of Adults,Transfer Payments,515201,Social Services Clients,22-May-2013,2596065-1334777H,854.56,REDACTED - PAYMENT TO INDIVIDUAL
Adults Wellbeing and Health,Head of Adults,Transfer Payments,515201,Social Services Clients,22-May-2013,2596067-1332539H,"2,450.62",REDACTED - PAYMENT TO INDIVIDUAL
Adults Wellbeing and Health,Head of Adults,Transfer Payments,515201,Social Services Clients,22-May-2013,2596068-1330702H,"1,181.52",REDACTED - PAYMENT TO INDIVIDUAL
Adults Wellbeing and Health,Head of Adults,Transfer Payments,515201,Social Services Clients,22-May-2013,2596071-1329228H,908.00,REDACTED - PAYMENT TO INDIVIDUAL
Adults Wellbeing and Health,Head of Adults,Transfer Payments,515201,Social Services Clients,22-May-2013,2596072-1332101H,635.60,REDACTED - PAYMENT TO INDIVIDUAL
Adults Wellbeing and Health,Head of Adults,Transfer Payments,515201,Social Services Clients,22-May-2013,2596077-1330864H,919.36,REDACTED - PAYMENT TO INDIVIDUAL
Adults Wellbeing and Health,Head of Adults,Transfer Payments,515201,Social Services Clients,22-May-2013,2596080-1329193H,"3,328.00",REDACTED - PAYMENT TO INDIVIDUAL
Adults Wellbeing and Health,Head of Adults,Transfer Payments,515201,Social Services Clients,22-May-2013,2596083-1334271H,611.92,REDACTED - PAYMENT TO INDIVIDUAL
Adults Wellbeing and Health,Head of Adults,Transfer Payments,515201,Social Services Clients,22-May-2013,2596085-1333595H,590.80,REDACTED - PAYMENT TO INDIVIDUAL
Adults Wellbeing and Health,Head of Adults,Transfer Payments,515201,Social Services Clients,22-May-2013,2596088-1331007H,633.00,REDACTED - PAYMENT TO INDIVIDUAL
Adults Wellbeing and Health,Head of Adults,Transfer Payments,515201,Social Services Clients,22-May-2013,2596091-1334020H,839.92,REDACTED - PAYMENT TO INDIVIDUAL
Adults Wellbeing and Health,Head of Adults,Transfer Payments,515201,Social Services Clients,22-May-2013,2596092-1332306H,976.12,REDACTED - PAYMENT TO INDIVIDUAL
Adults Wellbeing and Health,Head of Adults,Transfer Payments,515201,Social Services Clients,22-May-2013,2596093-1331045H,738.52,REDACTED - PAYMENT TO INDIVIDUAL
Adults Wellbeing and Health,Head of Adults,Transfer Payments,515201,Social Services Clients,22-May-2013,2596097-1332437H,512.64,REDACTED - PAYMENT TO INDIVIDUAL
Adults Wellbeing and Health,Head of Adults,Transfer Payments,515201,Social Services Clients,22-May-2013,2596099-1330047H,544.80,REDACTED - PAYMENT TO INDIVIDUAL
Adults Wellbeing and Health,Head of Adults,Transfer Payments,515201,Social Services Clients,22-May-2013,2596100-1334456H,726.40,REDACTED - PAYMENT TO INDIVIDUAL
Adults Wellbeing and Health,Head of Adults,Transfer Payments,515201,Social Services Clients,22-May-2013,2596107-1334630H,727.96,REDACTED - PAYMENT TO INDIVIDUAL
Adults Wellbeing and Health,Head of Adults,Transfer Payments,515201,Social Services Clients,22-May-2013,2596108-1335549H,552.12,REDACTED - PAYMENT TO INDIVIDUAL
Adults Wellbeing and Health,Head of Adults,Transfer Payments,515201,Social Services Clients,22-May-2013,2596109-1334215H,998.80,REDACTED - PAYMENT TO INDIVIDUAL
Adults Wellbeing and Health,Head of Adults,Transfer Payments,515201,Social Services Clients,22-May-2013,2596110-1331412H,547.00,REDACTED - PAYMENT TO INDIVIDUAL
Adults Wellbeing and Health,Head of Adults,Transfer Payments,515201,Social Services Clients,22-May-2013,2596111-1331747H,"1,316.60",REDACTED - PAYMENT TO INDIVIDUAL
Adults Wellbeing and Health,Head of Adults,Transfer Payments,515201,Social Services Clients,22-May-2013,2596112-1331485H,"2,380.00",REDACTED - PAYMENT TO INDIVIDUAL
Adults Wellbeing and Health,Head of Adults,Transfer Payments,515201,Social Services Clients,22-May-2013,2596117-1334110H,"1,804.64",REDACTED - PAYMENT TO INDIVIDUAL
Adults Wellbeing and Health,Head of Adults,Transfer Payments,515201,Social Services Clients,22-May-2013,2596118-1334325H,527.52,REDACTED - PAYMENT TO INDIVIDUAL
Adults Wellbeing and Health,Head of Adults,Transfer Payments,515201,Social Services Clients,22-May-2013,2596119-1331167H,"1,177.60",REDACTED - PAYMENT TO INDIVIDUAL
Adults Wellbeing and Health,Head of Adults,Transfer Payments,515201,Social Services Clients,22-May-2013,2596121-1334264H,590.80,REDACTED - PAYMENT TO INDIVIDUAL
Adults Wellbeing and Health,Head of Adults,Transfer Payments,515201,Social Services Clients,22-May-2013,2596123-1331913H,661.12,REDACTED - PAYMENT TO INDIVIDUAL
Adults Wellbeing and Health,Head of Adults,Transfer Payments,515201,Social Services Clients,22-May-2013,2596124-1334116H,"1,477.00",REDACTED - PAYMENT TO INDIVIDUAL
Adults Wellbeing and Health,Head of Adults,Transfer Payments,515201,Social Services Clients,22-May-2013,2596126-1331768H,"1,266.00",REDACTED - PAYMENT TO INDIVIDUAL
Adults Wellbeing and Health,Head of Adults,Transfer Payments,515201,Social Services Clients,22-May-2013,2596128-1332482H,862.60,REDACTED - PAYMENT TO INDIVIDUAL
Adults Wellbeing and Health,Head of Adults,Transfer Payments,515201,Social Services Clients,22-May-2013,2596129-1334016H,908.00,REDACTED - PAYMENT TO INDIVIDUAL
Adults Wellbeing and Health,Head of Adults,Transfer Payments,515201,Social Services Clients,22-May-2013,2596130-1330241H,"1,498.20",REDACTED - PAYMENT TO INDIVIDUAL
Adults Wellbeing and Health,Head of Adults,Transfer Payments,515201,Social Services Clients,22-May-2013,2596133-1329525H,"1,286.40",REDACTED - PAYMENT TO INDIVIDUAL
Adults Wellbeing and Health,Head of Adults,Transfer Payments,515201,Social Services Clients,22-May-2013,2596135-1331562H,590.80,REDACTED - PAYMENT TO INDIVIDUAL
Adults Wellbeing and Health,Head of Adults,Transfer Payments,515201,Social Services Clients,22-May-2013,2596135-1335117H,862.60,REDACTED - PAYMENT TO INDIVIDUAL
Adults Wellbeing and Health,Head of Adults,Transfer Payments,515201,Social Services Clients,22-May-2013,2596138-1331862H,703.72,REDACTED - PAYMENT TO INDIVIDUAL
Adults Wellbeing and Health,Head of Adults,Transfer Payments,515201,Social Services Clients,22-May-2013,2596139-1333461H,"1,271.20",REDACTED - PAYMENT TO INDIVIDUAL
Adults Wellbeing and Health,Head of Adults,Transfer Payments,515201,Social Services Clients,22-May-2013,2596141-1330807H,681.00,REDACTED - PAYMENT TO INDIVIDUAL
Adults Wellbeing and Health,Head of Adults,Transfer Payments,515201,Social Services Clients,22-May-2013,2596143-1331957H,635.60,REDACTED - PAYMENT TO INDIVIDUAL
Adults Wellbeing and Health,Head of Adults,Transfer Payments,515201,Social Services Clients,22-May-2013,2596145-1333762H,"1,396.04",REDACTED - PAYMENT TO INDIVIDUAL
Adults Wellbeing and Health,Head of Adults,Transfer Payments,515201,Social Services Clients,22-May-2013,2596146-1333615H,548.52,REDACTED - PAYMENT TO INDIVIDUAL
Adults Wellbeing and Health,Head of Adults,Transfer Payments,515201,Social Services Clients,22-May-2013,2596147-1330762H,618.92,REDACTED - PAYMENT TO INDIVIDUAL
Adults Wellbeing and Health,Head of Adults,Transfer Payments,515201,Social Services Clients,22-May-2013,2596148-1329930H,"1,089.60",REDACTED - PAYMENT TO INDIVIDUAL
Adults Wellbeing and Health,Head of Adults,Transfer Payments,515201,Social Services Clients,22-May-2013,2596150-1329974H,930.72,REDACTED - PAYMENT TO INDIVIDUAL
Adults Wellbeing and Health,Head of Adults,Transfer Payments,515201,Social Services Clients,22-May-2013,2596151-1332809H,675.20,REDACTED - PAYMENT TO INDIVIDUAL
Adults Wellbeing and Health,Head of Adults,Transfer Payments,515201,Social Services Clients,22-May-2013,2596153-1329977H,538.04,REDACTED - PAYMENT TO INDIVIDUAL
Adults Wellbeing and Health,Head of Adults,Transfer Payments,515201,Social Services Clients,22-May-2013,2596155-1335251H,518.32,REDACTED - PAYMENT TO INDIVIDUAL
Adults Wellbeing and Health,Head of Adults,Transfer Payments,515201,Social Services Clients,22-May-2013,2596157-1334870H,"1,369.56",REDACTED - PAYMENT TO INDIVIDUAL
Adults Wellbeing and Health,Head of Adults,Transfer Payments,515201,Social Services Clients,22-May-2013,2596160-1333416H,635.60,REDACTED - PAYMENT TO INDIVIDUAL
Adults Wellbeing and Health,Head of Adults,Third Party Payments,470101,Purchase of Care,22-May-2013,2596162-2098408,"1,864.56",ACOMB COURT.
Adults Wellbeing and Health,Head of Adults,Third Party Payments,473101,Purchase of Care,22-May-2013,2596163-1332569D,709.73,ACORN GRANGE NURSING HOME.
Adults Wellbeing and Health,Head of Adults,Third Party Payments,473101,Purchase of Care,22-May-2013,2596163-1334815D,536.96,ACORN GRANGE NURSING HOME.
Adults Wellbeing and Health,Head of Adults,Third Party Payments,473101,Purchase of Care,22-May-2013,2596163-1335058D,735.96,ACORN GRANGE NURSING HOME.
Adults Wellbeing and Health,Head of Adults,Third Party Payments,473101,Purchase of Care,22-May-2013,2596163-1335247D,575.85,ACORN GRANGE NURSING HOME.
Adults Wellbeing and Health,Head of Adults,Third Party Payments,473101,Purchase of Care,22-May-2013,2596163-1335443D,521.96,ACORN GRANGE NURSING HOME.
Adults Wellbeing and Health,Head of Adults,Third Party Payments,470101,Purchase of Care,22-May-2013,2596163-2099224,"1,792.92",ACORN GRANGE NURSING HOME.
Adults Wellbeing and Health,Head of Adults,Third Party Payments,470101,Purchase of Care,22-May-2013,2596163-2099225,"1,792.92",ACORN GRANGE NURSING HOME.
Adults Wellbeing and Health,Head of Adults,Third Party Payments,470101,Purchase of Care,22-May-2013,2596163-2099226,"1,088.55",ACORN GRANGE NURSING HOME.
Adults Wellbeing and Health,Head of Adults,Third Party Payments,470101,Purchase of Care,22-May-2013,2596163-2099227,"1,792.92",ACORN GRANGE NURSING HOME.
Adults Wellbeing and Health,Head of Adults,Third Party Payments,470101,Purchase of Care,22-May-2013,2596163-2099228,"1,792.92",ACORN GRANGE NURSING HOME.
Adults Wellbeing and Health,Head of Adults,Third Party Payments,470101,Purchase of Care,22-May-2013,2596163-2099229,"1,792.92",ACORN GRANGE NURSING HOME.
Adults Wellbeing and Health,Head of Adults,Third Party Payments,470101,Purchase of Care,22-May-2013,2596163-2099230,"2,113.08",ACORN GRANGE NURSING HOME.
Adults Wellbeing and Health,Head of Adults,Third Party Payments,470101,Purchase of Care,22-May-2013,2596163-2099231,"1,792.92",ACORN GRANGE NURSING HOME.
Adults Wellbeing and Health,Head of Adults,Third Party Payments,470101,Purchase of Care,22-May-2013,2596163-2099232,"1,792.92",ACORN GRANGE NURSING HOME.
Adults Wellbeing and Health,Head of Adults,Third Party Payments,470101,Purchase of Care,22-May-2013,2596163-2099233,"1,792.92",ACORN GRANGE NURSING HOME.
Adults Wellbeing and Health,Head of Adults,Third Party Payments,470101,Purchase of Care,22-May-2013,2596163-2099235,"1,792.92",ACORN GRANGE NURSING HOME.
Adults Wellbeing and Health,Head of Adults,Third Party Payments,470101,Purchase of Care,22-May-2013,2596163-2099236,"1,792.92",ACORN GRANGE NURSING HOME.
Adults Wellbeing and Health,Head of Adults,Third Party Payments,470101,Purchase of Care,22-May-2013,2596163-2099237,"1,792.92",ACORN GRANGE NURSING HOME.
Adults Wellbeing and Health,Head of Adults,Third Party Payments,470101,Purchase of Care,22-May-2013,2596163-2099238,"1,792.92",ACORN GRANGE NURSING HOME.
Adults Wellbeing and Health,Head of Adults,Third Party Payments,470101,Purchase of Care,22-May-2013,2596163-2099239,"1,792.92",ACORN GRANGE NURSING HOME.
Adults Wellbeing and Health,Head of Adults,Third Party Payments,471101,Purchase of Care,22-May-2013,2596163-2102306,"1,863.80",ACORN GRANGE NURSING HOME.
Adults Wellbeing and Health,Head of Adults,Third Party Payments,471101,Purchase of Care,22-May-2013,2596163-2102307,"1,863.80",ACORN GRANGE NURSING HOME.
Adults Wellbeing and Health,Head of Adults,Third Party Payments,471101,Purchase of Care,22-May-2013,2596163-2102309,"1,863.80",ACORN GRANGE NURSING HOME.
Adults Wellbeing and Health,Head of Adults,Third Party Payments,471101,Purchase of Care,22-May-2013,2596163-2102310,"1,863.80",ACORN GRANGE NURSING HOME.
Adults Wellbeing and Health,Head of Adults,Third Party Payments,471101,Purchase of Care,22-May-2013,2596163-2102311,"1,863.80",ACORN GRANGE NURSING HOME.
Adults Wellbeing and Health,Head of Adults,Third Party Payments,471101,Purchase of Care,22-May-2013,2596163-2102312,"1,863.80",ACORN GRANGE NURSING HOME.
Adults Wellbeing and Health,Head of Adults,Third Party Payments,471101,Purchase of Care,22-May-2013,2596163-2102313,"1,863.80",ACORN GRANGE NURSING HOME.
Adults Wellbeing and Health,Head of Adults,Third Party Payments,471101,Purchase of Care,22-May-2013,2596163-2102314,"1,863.80",ACORN GRANGE NURSING HOME.
Adults Wellbeing and Health,Head of Adults,Third Party Payments,471101,Purchase of Care,22-May-2013,2596163-2102315,"1,863.80",ACORN GRANGE NURSING HOME.
Adults Wellbeing and Health,Head of Adults,Third Party Payments,471101,Purchase of Care,22-May-2013,2596163-2102316,"1,863.80",ACORN GRANGE NURSING HOME.
Adults Wellbeing and Health,Head of Adults,Third Party Payments,471101,Purchase of Care,22-May-2013,2596163-2102317,"1,863.80",ACORN GRANGE NURSING HOME.
Adults Wellbeing and Health,Head of Adults,Third Party Payments,471101,Purchase of Care,22-May-2013,2596163-2102318,"1,863.80",ACORN GRANGE NURSING HOME.
Adults Wellbeing and Health,Head of Adults,Third Party Payments,471101,Purchase of Care,22-May-2013,2596163-2102319,"1,863.80",ACORN GRANGE NURSING HOME.
Adults Wellbeing and Health,Head of Adults,Third Party Payments,471101,Purchase of Care,22-May-2013,2596163-2102320,"1,863.80",ACORN GRANGE NURSING HOME.
Adults Wellbeing and Health,Head of Adults,Third Party Payments,471101,Purchase of Care,22-May-2013,2596163-2102321,"1,863.80",ACORN GRANGE NURSING HOME.
Adults Wellbeing and Health,Head of Adults,Third Party Payments,471101,Purchase of Care,22-May-2013,2596163-2102322,"1,863.80",ACORN GRANGE NURSING HOME.
Adults Wellbeing and Health,Head of Adults,Third Party Payments,471101,Purchase of Care,22-May-2013,2596163-2102323,"1,863.80",ACORN GRANGE NURSING HOME.
Adults Wellbeing and Health,Head of Adults,Third Party Payments,471101,Purchase of Care,22-May-2013,2596163-2102324,"1,863.80",ACORN GRANGE NURSING HOME.
Adults Wellbeing and Health,Head of Adults,Third Party Payments,471101,Purchase of Care,22-May-2013,2596163-2102325,"1,863.80",ACORN GRANGE NURSING HOME.
Adults Wellbeing and Health,Head of Adults,Third Party Payments,471101,Purchase of Care,22-May-2013,2596163-2102326,"1,863.80",ACORN GRANGE NURSING HOME.
Adults Wellbeing and Health,Head of Adults,Third Party Payments,471101,Purchase of Care,22-May-2013,2596163-2102327,"1,863.80",ACORN GRANGE NURSING HOME.
Adults Wellbeing and Health,Head of Adults,Third Party Payments,471101,Purchase of Care,22-May-2013,2596163-2102328,"1,863.80",ACORN GRANGE NURSING HOME.
Adults Wellbeing and Health,Head of Adults,Transfer Payments,515201,Social Services Clients,22-May-2013,2596164-1333435H,733.76,REDACTED - PAYMENT TO INDIVIDUAL
Adults Wellbeing and Health,Head of Adults,Transfer Payments,515201,Social Services Clients,22-May-2013,2596165-1329102H,758.48,REDACTED - PAYMENT TO INDIVIDUAL
Adults Wellbeing and Health,Head of Adults,Transfer Payments,515201,Social Services Clients,22-May-2013,2596165-1333235H,"1,547.40",REDACTED - PAYMENT TO INDIVIDUAL
Adults Wellbeing and Health,Head of Adults,Transfer Payments,515201,Social Services Clients,22-May-2013,2596168-1333923H,"3,374.44",REDACTED - PAYMENT TO INDIVIDUAL
Adults Wellbeing and Health,Head of Adults,Third Party Payments,474101,Purchase of Care,22-May-2013,2596172-2099956,"1,660.00",ADEY GARDENS CARE HOME.
Adults Wellbeing and Health,Head of Adults,Third Party Payments,474101,Purchase of Care,22-May-2013,2596173-2101498,"1,672.00",ADMIRAL COURT.
Adults Wellbeing and Health,Head of Adults,Third Party Payments,474101,Purchase of Care,22-May-2013,2596173-2101499,"1,672.00",ADMIRAL COURT.
Adults Wellbeing and Health,Head of Adults,Third Party Payments,474101,Purchase of Care,22-May-2013,2596173-2101500,"1,672.00",ADMIRAL COURT.
Adults Wellbeing and Health,Head of Adults,Third Party Payments,471101,Purchase of Care,22-May-2013,2596173-2102098,"1,672.00",ADMIRAL COURT.
Adults Wellbeing and Health,Head of Adults,Transfer Payments,515201,Social Services Clients,22-May-2013,2596176-1330920H,724.00,REDACTED - PAYMENT TO INDIVIDUAL
Adults Wellbeing and Health,Head of Adults,Transfer Payments,515201,Social Services Clients,22-May-2013,2596177-1329491H,552.92,REDACTED - PAYMENT TO INDIVIDUAL
Adults Wellbeing and Health,Head of Adults,Transfer Payments,515201,Social Services Clients,22-May-2013,2596179-1329881H,509.92,REDACTED - PAYMENT TO INDIVIDUAL
Adults Wellbeing and Health,Head of Adults,Transfer Payments,515201,Social Services Clients,22-May-2013,2596182-1330562H,576.00,REDACTED - PAYMENT TO INDIVIDUAL
Adults Wellbeing and Health,Head of Adults,Transfer Payments,515201,Social Services Clients,22-May-2013,2596185-1330812H,"1,012.80",REDACTED - PAYMENT TO INDIVIDUAL
Adults Wellbeing and Health,Head of Adults,Transfer Payments,515201,Social Services Clients,22-May-2013,2596187-1334486H,"2,076.16",REDACTED - PAYMENT TO INDIVIDUAL
Adults Wellbeing and Health,Head of Adults,Transfer Payments,515201,Social Services Clients,22-May-2013,2596190-1332521H,982.72,REDACTED - PAYMENT TO INDIVIDUAL
Adults Wellbeing and Health,Head of Adults,Transfer Payments,515201,Social Services Clients,22-May-2013,2596191-1335308H,588.92,REDACTED - PAYMENT TO INDIVIDUAL
Adults Wellbeing and Health,Head of Adults,Transfer Payments,515201,Social Services Clients,22-May-2013,2596192-1334926H,844.00,REDACTED - PAYMENT TO INDIVIDUAL
Adults Wellbeing and Health,Head of Adults,Supplies and Services,308011,Furniture,22-May-2013,2596193-144932,"4,051.00",ALBANY OFFICE EQUIPMENT (WHOLESALE) LTD.
Adults Wellbeing and Health,Head of Adults,Transfer Payments,515201,Social Services Clients,22-May-2013,2596197-1330133H,"1,600.00",REDACTED - PAYMENT TO INDIVIDUAL
Adults Wellbeing and Health,Head of Adults,Transfer Payments,515201,Social Services Clients,22-May-2013,2596198-1331587H,794.52,REDACTED - PAYMENT TO INDIVIDUAL
Adults Wellbeing and Health,Head of Adults,Transfer Payments,515201,Social Services Clients,22-May-2013,2596199-1329122H,510.72,REDACTED - PAYMENT TO INDIVIDUAL
Adults Wellbeing and Health,Head of Adults,Transfer Payments,515201,Social Services Clients,22-May-2013,2596203-1332648H,842.88,REDACTED - PAYMENT TO INDIVIDUAL
Adults Wellbeing and Health,Head of Adults,Third Party Payments,470101,Purchase of Care,22-May-2013,2596206-2099039,"1,792.92",ALLIANCE CARE.
Adults Wellbeing and Health,Head of Adults,Third Party Payments,470101,Purchase of Care,22-May-2013,2596206-2099040,"1,306.92",ALLIANCE CARE.
Adults Wellbeing and Health,Head of Adults,Third Party Payments,470101,Purchase of Care,22-May-2013,2596206-2099041,"1,257.08",ALLIANCE CARE.
Adults Wellbeing and Health,Head of Adults,Third Party Payments,470101,Purchase of Care,22-May-2013,2596206-2099042,"1,792.92",ALLIANCE CARE.
Adults Wellbeing and Health,Head of Adults,Third Party Payments,470101,Purchase of Care,22-May-2013,2596206-2099043,"1,052.92",ALLIANCE CARE.
Adults Wellbeing and Health,Head of Adults,Third Party Payments,470101,Purchase of Care,22-May-2013,2596206-2099044,"1,068.72",ALLIANCE CARE.
Adults Wellbeing and Health,Head of Adults,Third Party Payments,470101,Purchase of Care,22-May-2013,2596206-2099045,"1,792.92",ALLIANCE CARE.
Adults Wellbeing and Health,Head of Adults,Third Party Payments,470101,Purchase of Care,22-May-2013,2596206-2099047,"1,268.32",ALLIANCE CARE.
Adults Wellbeing and Health,Head of Adults,Third Party Payments,470101,Purchase of Care,22-May-2013,2596206-2099048,"1,306.92",ALLIANCE CARE.
Adults Wellbeing and Health,Head of Adults,Third Party Payments,470101,Purchase of Care,22-May-2013,2596206-2099049,"1,189.68",ALLIANCE CARE.
Adults Wellbeing and Health,Head of Adults,Third Party Payments,470101,Purchase of Care,22-May-2013,2596206-2099050,"1,031.80",ALLIANCE CARE.
Adults Wellbeing and Health,Head of Adults,Third Party Payments,470101,Purchase of Care,22-May-2013,2596206-2099051,"1,792.92",ALLIANCE CARE.
Adults Wellbeing and Health,Head of Adults,Third Party Payments,470101,Purchase of Care,22-May-2013,2596206-2099052,"1,911.52",ALLIANCE CARE.
Adults Wellbeing and Health,Head of Adults,Third Party Payments,470101,Purchase of Care,22-May-2013,2596206-2099053,"1,306.92",ALLIANCE CARE.
Adults Wellbeing and Health,Head of Adults,Third Party Payments,470101,Purchase of Care,22-May-2013,2596206-2099054,"1,306.92",ALLIANCE CARE.
Adults Wellbeing and Health,Head of Adults,Third Party Payments,474101,Purchase of Care,22-May-2013,2596206-2100087,"1,379.32",ALLIANCE CARE.
Adults Wellbeing and Health,Head of Adults,Third Party Payments,474101,Purchase of Care,22-May-2013,2596206-2100089,"1,247.36",ALLIANCE CARE.
Adults Wellbeing and Health,Head of Adults,Third Party Payments,474101,Purchase of Care,22-May-2013,2596206-2100092,"1,468.00",ALLIANCE CARE.
Adults Wellbeing and Health,Head of Adults,Third Party Payments,474101,Purchase of Care,22-May-2013,2596206-2100094,"1,396.44",ALLIANCE CARE.
Adults Wellbeing and Health,Head of Adults,Third Party Payments,474101,Purchase of Care,22-May-2013,2596206-2100096,"1,334.24",ALLIANCE CARE.
Adults Wellbeing and Health,Head of Adults,Third Party Payments,470101,Purchase of Care,22-May-2013,2596206-2100714,"1,504.96",ALLIANCE CARE.
Adults Wellbeing and Health,Head of Adults,Third Party Payments,471101,Purchase of Care,22-May-2013,2596206-2102198,"1,261.96",ALLIANCE CARE.
Adults Wellbeing and Health,Head of Adults,Third Party Payments,471101,Purchase of Care,22-May-2013,2596206-2102199,"1,029.68",ALLIANCE CARE.
Adults Wellbeing and Health,Head of Adults,Third Party Payments,471101,Purchase of Care,22-May-2013,2596206-2102200,609.67,ALLIANCE CARE.
Adults Wellbeing and Health,Head of Adults,Third Party Payments,471101,Purchase of Care,22-May-2013,2596206-2102201,"1,377.80",ALLIANCE CARE.
Adults Wellbeing and Health,Head of Adults,Third Party Payments,471101,Purchase of Care,22-May-2013,2596206-2102202,"1,312.36",ALLIANCE CARE.
Adults Wellbeing and Health,Head of Adults,Third Party Payments,471101,Purchase of Care,22-May-2013,2596206-2102203,"1,377.80",ALLIANCE CARE.
Adults Wellbeing and Health,Head of Adults,Third Party Payments,471101,Purchase of Care,22-May-2013,2596206-2102204,"1,863.80",ALLIANCE CARE.
Adults Wellbeing and Health,Head of Adults,Third Party Payments,471101,Purchase of Care,22-May-2013,2596206-2102205,"1,144.36",ALLIANCE CARE.
Adults Wellbeing and Health,Head of Adults,Third Party Payments,471101,Purchase of Care,22-May-2013,2596206-2102206,"1,365.28",ALLIANCE CARE.
Adults Wellbeing and Health,Head of Adults,Third Party Payments,471101,Purchase of Care,22-May-2013,2596206-2102207,"1,863.80",ALLIANCE CARE.
Adults Wellbeing and Health,Head of Adults,Third Party Payments,471101,Purchase of Care,22-May-2013,2596206-2102208,"1,227.37",ALLIANCE CARE.
Adults Wellbeing and Health,Head of Adults,Third Party Payments,471101,Purchase of Care,22-May-2013,2596206-2102209,"1,194.36",ALLIANCE CARE.
Adults Wellbeing and Health,Head of Adults,Third Party Payments,471101,Purchase of Care,22-May-2013,2596206-2102210,"1,863.80",ALLIANCE CARE.
Adults Wellbeing and Health,Head of Adults,Third Party Payments,471101,Purchase of Care,22-May-2013,2596206-2102211,916.68,ALLIANCE CARE.
Adults Wellbeing and Health,Head of Adults,Third Party Payments,470101,Purchase of Care,22-May-2013,2596207-2100724,"1,959.76",ALLIANCE CARE.
Adults Wellbeing and Health,Head of Adults,Third Party Payments,470101,Purchase of Care,22-May-2013,2596207-2100725,"1,959.76",ALLIANCE CARE.
Adults Wellbeing and Health,Head of Adults,Third Party Payments,470101,Purchase of Care,22-May-2013,2596207-2100726,"1,959.76",ALLIANCE CARE.
Adults Wellbeing and Health,Head of Adults,Third Party Payments,470101,Purchase of Care,22-May-2013,2596207-2100727,901.36,ALLIANCE CARE.
Adults Wellbeing and Health,Head of Adults,Third Party Payments,470101,Purchase of Care,22-May-2013,2596207-2100728,"1,644.56",ALLIANCE CARE.
Adults Wellbeing and Health,Head of Adults,Third Party Payments,470101,Purchase of Care,22-May-2013,2596207-2100729,"1,607.16",ALLIANCE CARE.
Adults Wellbeing and Health,Head of Adults,Third Party Payments,474101,Purchase of Care,22-May-2013,2596207-2100793,"1,993.88",ALLIANCE CARE.
Adults Wellbeing and Health,Head of Adults,Third Party Payments,474101,Purchase of Care,22-May-2013,2596207-2100795,"1,993.88",ALLIANCE CARE.
Adults Wellbeing and Health,Head of Adults,Third Party Payments,474101,Purchase of Care,22-May-2013,2596207-2100797,"1,993.88",ALLIANCE CARE.
Adults Wellbeing and Health,Head of Adults,Third Party Payments,472101,Purchase of Care,22-May-2013,2596208-1287641H,702.80,ALLIED HEALTHCARE GROUP LTD.
Adults Wellbeing and Health,Head of Adults,Third Party Payments,472101,Purchase of Care,22-May-2013,2596208-1301585H,702.80,ALLIED HEALTHCARE GROUP LTD.
Adults Wellbeing and Health,Head of Adults,Third Party Payments,472101,Purchase of Care,22-May-2013,2596208-1315435H,702.80,ALLIED HEALTHCARE GROUP LTD.
Adults Wellbeing and Health,Head of Adults,Transfer Payments,515201,Social Services Clients,22-May-2013,2596209-1332880H,983.68,REDACTED - PAYMENT TO INDIVIDUAL
Adults Wellbeing and Health,Head of Adults,Transfer Payments,515201,Social Services Clients,22-May-2013,2596211-1330108H,"1,886.00",REDACTED - PAYMENT TO INDIVIDUAL
Adults Wellbeing and Health,Head of Adults,Third Party Payments,470101,Purchase of Care,22-May-2013,2596214-2098410,"1,564.08",AMELIA HOUSE.
Adults Wellbeing and Health,Head of Adults,Transfer Payments,515201,Social Services Clients,22-May-2013,2596215-1330272H,"1,872.00",REDACTED - PAYMENT TO INDIVIDUAL
Adults Wellbeing and Health,Head of Adults,Transfer Payments,515201,Social Services Clients,22-May-2013,2596218-1333886H,634.00,REDACTED - PAYMENT TO INDIVIDUAL
Adults Wellbeing and Health,Head of Adults,Transfer Payments,515201,Social Services Clients,22-May-2013,2596223-1330732H,590.80,REDACTED - PAYMENT TO INDIVIDUAL
Adults Wellbeing and Health,Head of Adults,Transfer Payments,515201,Social Services Clients,22-May-2013,2596226-1330747H,548.60,REDACTED - PAYMENT TO INDIVIDUAL
Adults Wellbeing and Health,Head of Adults,Transfer Payments,515201,Social Services Clients,22-May-2013,2596227-1333209H,"1,178.32",REDACTED - PAYMENT TO INDIVIDUAL
Adults Wellbeing and Health,Head of Adults,Transfer Payments,515201,Social Services Clients,22-May-2013,2596228-1330670H,521.76,REDACTED - PAYMENT TO INDIVIDUAL
Adults Wellbeing and Health,Head of Adults,Transfer Payments,515201,Social Services Clients,22-May-2013,2596229-1332980H,904.36,REDACTED - PAYMENT TO INDIVIDUAL
Adults Wellbeing and Health,Head of Adults,Third Party Payments,474101,Purchase of Care,22-May-2013,2596230-2100764,"1,461.60",ANN CHARLTON LODGE.
Adults Wellbeing and Health,Head of Adults,Transfer Payments,515201,Social Services Clients,22-May-2013,2596236-1333872H,938.80,REDACTED - PAYMENT TO INDIVIDUAL
Adults Wellbeing and Health,Head of Adults,Transfer Payments,515201,Social Services Clients,22-May-2013,2596239-1331590H,908.00,REDACTED - PAYMENT TO INDIVIDUAL
Adults Wellbeing and Health,Head of Adults,Transfer Payments,515201,Social Services Clients,22-May-2013,2596240-1332171H,684.00,REDACTED - PAYMENT TO INDIVIDUAL
Adults Wellbeing and Health,Head of Adults,Transfer Payments,515201,Social Services Clients,22-May-2013,2596241-1329701H,"3,022.40",REDACTED - PAYMENT TO INDIVIDUAL
Adults Wellbeing and Health,Head of Adults,Transfer Payments,515201,Social Services Clients,22-May-2013,2596241-1331585H,771.80,REDACTED - PAYMENT TO INDIVIDUAL
Adults Wellbeing and Health,Head of Adults,Transfer Payments,515201,Social Services Clients,22-May-2013,2596242-1334960H,801.72,REDACTED - PAYMENT TO INDIVIDUAL
Adults Wellbeing and Health,Head of Adults,Third Party Payments,472101,Purchase of Care,22-May-2013,2596243-1329582H,643.24,APPLEJACK HOME CARE LTD.
Adults Wellbeing and Health,Head of Adults,Third Party Payments,472101,Purchase of Care,22-May-2013,2596243-1329684H,"1,386.24",APPLEJACK HOME CARE LTD.
Adults Wellbeing and Health,Head of Adults,Third Party Payments,472101,Purchase of Care,22-May-2013,2596243-1331692H,942.64,APPLEJACK HOME CARE LTD.
Adults Wellbeing and Health,Head of Adults,Third Party Payments,472101,Purchase of Care,22-May-2013,2596243-1331775H,532.32,APPLEJACK HOME CARE LTD.
Adults Wellbeing and Health,Head of Adults,Third Party Payments,472101,Purchase of Care,22-May-2013,2596243-1331979H,720.84,APPLEJACK HOME CARE LTD.
Adults Wellbeing and Health,Head of Adults,Third Party Payments,472101,Purchase of Care,22-May-2013,2596243-1332314H,521.24,APPLEJACK HOME CARE LTD.
Adults Wellbeing and Health,Head of Adults,Third Party Payments,472101,Purchase of Care,22-May-2013,2596243-1332389H,591.48,APPLEJACK HOME CARE LTD.
Adults Wellbeing and Health,Head of Adults,Third Party Payments,472101,Purchase of Care,22-May-2013,2596243-1332781H,576.68,APPLEJACK HOME CARE LTD.
Adults Wellbeing and Health,Head of Adults,Third Party Payments,472101,Purchase of Care,22-May-2013,2596243-1333095H,654.32,APPLEJACK HOME CARE LTD.
Adults Wellbeing and Health,Head of Adults,Third Party Payments,472101,Purchase of Care,22-May-2013,2596243-1333116H,"1,563.68",APPLEJACK HOME CARE LTD.
Adults Wellbeing and Health,Head of Adults,Third Party Payments,473101,Purchase of Care,22-May-2013,2596243-1333178H,728.28,APPLEJACK HOME CARE LTD.
Adults Wellbeing and Health,Head of Adults,Third Party Payments,472101,Purchase of Care,22-May-2013,2596243-1333361H,608.10,APPLEJACK HOME CARE LTD.
Adults Wellbeing and Health,Head of Adults,Third Party Payments,472101,Purchase of Care,22-May-2013,2596243-1333548H,584.08,APPLEJACK HOME CARE LTD.
Adults Wellbeing and Health,Head of Adults,Third Party Payments,472101,Purchase of Care,22-May-2013,2596243-1333661H,924.16,APPLEJACK HOME CARE LTD.
Adults Wellbeing and Health,Head of Adults,Third Party Payments,472101,Purchase of Care,22-May-2013,2596243-1333673H,720.87,APPLEJACK HOME CARE LTD.
Adults Wellbeing and Health,Head of Adults,Third Party Payments,472101,Purchase of Care,22-May-2013,2596243-1334025H,"1,035.07",APPLEJACK HOME CARE LTD.
Adults Wellbeing and Health,Head of Adults,Third Party Payments,472101,Purchase of Care,22-May-2013,2596243-1334040H,713.44,APPLEJACK HOME CARE LTD.
Adults Wellbeing and Health,Head of Adults,Third Party Payments,472101,Purchase of Care,22-May-2013,2596243-1334191H,517.52,APPLEJACK HOME CARE LTD.
Adults Wellbeing and Health,Head of Adults,Third Party Payments,473101,Purchase of Care,22-May-2013,2596243-1334274H,739.16,APPLEJACK HOME CARE LTD.
Adults Wellbeing and Health,Head of Adults,Third Party Payments,473101,Purchase of Care,22-May-2013,2596243-1334311H,772.20,APPLEJACK HOME CARE LTD.
Adults Wellbeing and Health,Head of Adults,Third Party Payments,472101,Purchase of Care,22-May-2013,2596243-1334488H,577.80,APPLEJACK HOME CARE LTD.
Adults Wellbeing and Health,Head of Adults,Third Party Payments,472101,Purchase of Care,22-May-2013,2596243-1334497H,576.68,APPLEJACK HOME CARE LTD.
Adults Wellbeing and Health,Head of Adults,Third Party Payments,472101,Purchase of Care,22-May-2013,2596243-1334550H,591.48,APPLEJACK HOME CARE LTD.
Adults Wellbeing and Health,Head of Adults,Third Party Payments,472101,Purchase of Care,22-May-2013,2596243-1334619H,539.72,APPLEJACK HOME CARE LTD.
Adults Wellbeing and Health,Head of Adults,Third Party Payments,472101,Purchase of Care,22-May-2013,2596243-1334779H,709.76,APPLEJACK HOME CARE LTD.
Adults Wellbeing and Health,Head of Adults,Third Party Payments,472101,Purchase of Care,22-May-2013,2596243-1334811H,687.60,APPLEJACK HOME CARE LTD.
Adults Wellbeing and Health,Head of Adults,Third Party Payments,472101,Purchase of Care,22-May-2013,2596243-1335328H,743.04,APPLEJACK HOME CARE LTD.
Adults Wellbeing and Health,Head of Adults,Third Party Payments,473101,Purchase of Care,22-May-2013,2596243-1335457H,510.88,APPLEJACK HOME CARE LTD.
Adults Wellbeing and Health,Head of Adults,Third Party Payments,473101,Purchase of Care,22-May-2013,2596243-1335506H,866.90,APPLEJACK HOME CARE LTD.
Adults Wellbeing and Health,Head of Adults,Third Party Payments,473101,Purchase of Care,22-May-2013,2596243-1335589H,"1,543.56",APPLEJACK HOME CARE LTD.
Adults Wellbeing and Health,Head of Adults,Third Party Payments,472101,Purchase of Care,22-May-2013,2596243-1335742H,539.72,APPLEJACK HOME CARE LTD.
Adults Wellbeing and Health,Head of Adults,Third Party Payments,472101,Purchase of Care,22-May-2013,2596243-1335761H,724.56,APPLEJACK HOME CARE LTD.
Adults Wellbeing and Health,Head of Adults,Third Party Payments,473101,Purchase of Care,22-May-2013,2596243-1335769H,801.68,APPLEJACK HOME CARE LTD.
Adults Wellbeing and Health,Head of Adults,Third Party Payments,472101,Purchase of Care,22-May-2013,2596243-1335770H,717.44,APPLEJACK HOME CARE LTD.
Adults Wellbeing and Health,Head of Adults,Third Party Payments,472101,Purchase of Care,22-May-2013,2596243-1335885H,554.52,APPLEJACK HOME CARE LTD.
Adults Wellbeing and Health,Head of Adults,Third Party Payments,472101,Purchase of Care,22-May-2013,2596243-1336323H,841.67,APPLEJACK HOME CARE LTD.
Adults Wellbeing and Health,Head of Adults,Transfer Payments,515201,Social Services Clients,22-May-2013,2596246-1333715H,503.40,REDACTED - PAYMENT TO INDIVIDUAL
Adults Wellbeing and Health,Head of Adults,Transfer Payments,515201,Social Services Clients,22-May-2013,2596247-1332462H,675.20,REDACTED - PAYMENT TO INDIVIDUAL
Adults Wellbeing and Health,Head of Adults,Third Party Payments,470101,Purchase of Care,22-May-2013,2596249-2099344,"1,320.99",ASCOT CARE NORTHEAST LTD.
Adults Wellbeing and Health,Head of Adults,Third Party Payments,470101,Purchase of Care,22-May-2013,2596249-2099346,"1,792.92",ASCOT CARE NORTHEAST LTD.
Adults Wellbeing and Health,Head of Adults,Third Party Payments,470101,Purchase of Care,22-May-2013,2596249-2099348,"1,792.92",ASCOT CARE NORTHEAST LTD.
Adults Wellbeing and Health,Head of Adults,Third Party Payments,470101,Purchase of Care,22-May-2013,2596249-2099350,"1,205.84",ASCOT CARE NORTHEAST LTD.
Adults Wellbeing and Health,Head of Adults,Third Party Payments,470101,Purchase of Care,22-May-2013,2596249-2099351,"1,162.64",ASCOT CARE NORTHEAST LTD.
Adults Wellbeing and Health,Head of Adults,Third Party Payments,470101,Purchase of Care,22-May-2013,2596249-2099352,"1,792.92",ASCOT CARE NORTHEAST LTD.
Adults Wellbeing and Health,Head of Adults,Third Party Payments,474101,Purchase of Care,22-May-2013,2596249-2100319,"1,348.04",ASCOT CARE NORTHEAST LTD.
Adults Wellbeing and Health,Head of Adults,Third Party Payments,474101,Purchase of Care,22-May-2013,2596249-2100321,"1,295.32",ASCOT CARE NORTHEAST LTD.
Adults Wellbeing and Health,Head of Adults,Third Party Payments,474101,Purchase of Care,22-May-2013,2596249-2100326,"1,226.36",ASCOT CARE NORTHEAST LTD.
Adults Wellbeing and Health,Head of Adults,Third Party Payments,474101,Purchase of Care,22-May-2013,2596249-2100328,"1,285.00",ASCOT CARE NORTHEAST LTD.
Adults Wellbeing and Health,Head of Adults,Third Party Payments,474101,Purchase of Care,22-May-2013,2596249-2100330,519.80,ASCOT CARE NORTHEAST LTD.
Adults Wellbeing and Health,Head of Adults,Third Party Payments,471101,Purchase of Care,22-May-2013,2596249-2102365,714.03,ASCOT CARE NORTHEAST LTD.
Adults Wellbeing and Health,Head of Adults,Third Party Payments,471101,Purchase of Care,22-May-2013,2596249-2102367,"1,072.92",ASCOT CARE NORTHEAST LTD.
Adults Wellbeing and Health,Head of Adults,Third Party Payments,471101,Purchase of Care,22-May-2013,2596249-2102368,"1,863.80",ASCOT CARE NORTHEAST LTD.
Adults Wellbeing and Health,Head of Adults,Third Party Payments,471101,Purchase of Care,22-May-2013,2596249-2102369,"1,346.68",ASCOT CARE NORTHEAST LTD.
Adults Wellbeing and Health,Head of Adults,Third Party Payments,470101,Purchase of Care,22-May-2013,2596250-2099097,"1,672.00",ASCOT CARE T/A THE GARDENS CARE HOME.
Adults Wellbeing and Health,Head of Adults,Third Party Payments,470101,Purchase of Care,22-May-2013,2596250-2099098,"1,672.00",ASCOT CARE T/A THE GARDENS CARE HOME.
Adults Wellbeing and Health,Head of Adults,Third Party Payments,470101,Purchase of Care,22-May-2013,2596252-2098453,"2,352.00",ASHFIELD NURSING HOME LTD.
Adults Wellbeing and Health,Head of Adults,Third Party Payments,470101,Purchase of Care,22-May-2013,2596253-2098456,"1,529.56",ASHLEA COURT.
Adults Wellbeing and Health,Head of Adults,Third Party Payments,470101,Purchase of Care,22-May-2013,2596254-2100927,950.00,ASHLEIGH HOUSE CARE HOME.
Adults Wellbeing and Health,Head of Adults,Third Party Payments,470101,Purchase of Care,22-May-2013,2596254-2100928,"1,900.00",ASHLEIGH HOUSE CARE HOME.
Adults Wellbeing and Health,Head of Adults,Third Party Payments,470101,Purchase of Care,22-May-2013,2596254-2100929,"1,102.00",ASHLEIGH HOUSE CARE HOME.
Adults Wellbeing and Health,Head of Adults,Third Party Payments,470101,Purchase of Care,22-May-2013,2596254-2100930,"1,660.20",ASHLEIGH HOUSE CARE HOME.
Adults Wellbeing and Health,Head of Adults,Third Party Payments,471101,Purchase of Care,22-May-2013,2596256-2101751,"1,818.56",ASTOR LODGE VIEW.
Adults Wellbeing and Health,Social Inclusion,Third Party Payments,470101,Purchase of Care,22-May-2013,2596257-2102496,"1,651.72",ATLAS HEALTHCARE LTD.
Adults Wellbeing and Health,Social Inclusion,Third Party Payments,470101,Purchase of Care,22-May-2013,2596257-2102890,820.80,ATLAS HEALTHCARE LTD.
Adults Wellbeing and Health,Head of Adults,Transfer Payments,515201,Social Services Clients,22-May-2013,2596260-1331098H,752.56,REDACTED - PAYMENT TO INDIVIDUAL
Adults Wellbeing and Health,Head of Adults,Transfer Payments,515201,Social Services Clients,22-May-2013,2596261-1330971H,777.20,REDACTED - PAYMENT TO INDIVIDUAL
Adults Wellbeing and Health,Head of Adults,Transfer Payments,515201,Social Services Clients,22-May-2013,2596264-1333119H,748.76,REDACTED - PAYMENT TO INDIVIDUAL
Adults Wellbeing and Health,Head of Adults,Transfer Payments,515201,Social Services Clients,22-May-2013,2596265-1335660H,580.24,REDACTED - PAYMENT TO INDIVIDUAL
Adults Wellbeing and Health,Head of Adults,Third Party Payments,478101,Purchase of Care,22-May-2013,2596266-1329145H,"6,807.20",AUTISM CARE UK (4) LTD.
Adults Wellbeing and Health,Head of Adults,Third Party Payments,478101,Purchase of Care,22-May-2013,2596266-1329579H,"4,148.64",AUTISM CARE UK (4) LTD.
Adults Wellbeing and Health,Head of Adults,Third Party Payments,478101,Purchase of Care,22-May-2013,2596266-1330654H,"6,400.80",AUTISM CARE UK (4) LTD.
Adults Wellbeing and Health,Head of Adults,Third Party Payments,478101,Purchase of Care,22-May-2013,2596266-1330691H,"4,148.64",AUTISM CARE UK (4) LTD.
Adults Wellbeing and Health,Head of Adults,Third Party Payments,478101,Purchase of Care,22-May-2013,2596266-1330811H,"3,378.20",AUTISM CARE UK (4) LTD.
Adults Wellbeing and Health,Head of Adults,Third Party Payments,478101,Purchase of Care,22-May-2013,2596266-1330909H,"3,200.40",AUTISM CARE UK (4) LTD.
Adults Wellbeing and Health,Head of Adults,Third Party Payments,478101,Purchase of Care,22-May-2013,2596266-1330928H,"4,148.64",AUTISM CARE UK (4) LTD.
Adults Wellbeing and Health,Head of Adults,Third Party Payments,478101,Purchase of Care,22-May-2013,2596266-1330929H,"4,148.64",AUTISM CARE UK (4) LTD.
Adults Wellbeing and Health,Head of Adults,Third Party Payments,478101,Purchase of Care,22-May-2013,2596266-1330930H,"4,148.64",AUTISM CARE UK (4) LTD.
Adults Wellbeing and Health,Head of Adults,Third Party Payments,478101,Purchase of Care,22-May-2013,2596266-1331758H,"4,958.08",AUTISM CARE UK (4) LTD.
Adults Wellbeing and Health,Head of Adults,Third Party Payments,470101,Purchase of Care,22-May-2013,2596266-2101018,"1,797.68",AUTISM CARE UK (4) LTD.
Adults Wellbeing and Health,Head of Adults,Third Party Payments,470101,Purchase of Care,22-May-2013,2596266-2101019,"1,797.68",AUTISM CARE UK (4) LTD.
Adults Wellbeing and Health,Head of Adults,Third Party Payments,470101,Purchase of Care,22-May-2013,2596266-2101020,"2,907.80",AUTISM CARE UK (4) LTD.
Adults Wellbeing and Health,Head of Adults,Third Party Payments,473101,Purchase of Care,22-May-2013,2596267-1322126D,"1,433.43",AUTISM NORTH.
Adults Wellbeing and Health,Head of Adults,Third Party Payments,470101,Purchase of Care,22-May-2013,2596268-2100996,"13,539.44",AUTISM NORTH.
Adults Wellbeing and Health,Head of Adults,Third Party Payments,470101,Purchase of Care,22-May-2013,2596268-2100997,"9,803.68",AUTISM NORTH.
Adults Wellbeing and Health,Head of Adults,Third Party Payments,470101,Purchase of Care,22-May-2013,2596269-2101017,"6,478.68",AUTISM NORTH.
Adults Wellbeing and Health,Head of Adults,Transfer Payments,515201,Social Services Clients,22-May-2013,2596271-1331868H,"2,975.00",REDACTED - PAYMENT TO INDIVIDUAL
Adults Wellbeing and Health,Head of Adults,Third Party Payments,470101,Purchase of Care,22-May-2013,2596273-2098543,"1,810.50",AYCLIFFE CARE HOME.
Adults Wellbeing and Health,Head of Adults,Third Party Payments,470101,Purchase of Care,22-May-2013,2596273-2098544,"1,810.50",AYCLIFFE CARE HOME.
Adults Wellbeing and Health,Head of Adults,Third Party Payments,470101,Purchase of Care,22-May-2013,2596273-2098545,"1,810.50",AYCLIFFE CARE HOME.
Adults Wellbeing and Health,Head of Adults,Third Party Payments,470101,Purchase of Care,22-May-2013,2596273-2098547,"1,810.50",AYCLIFFE CARE HOME.
Adults Wellbeing and Health,Head of Adults,Third Party Payments,470101,Purchase of Care,22-May-2013,2596273-2098548,"1,810.50",AYCLIFFE CARE HOME.
Adults Wellbeing and Health,Head of Adults,Third Party Payments,470101,Purchase of Care,22-May-2013,2596273-2098549,"1,810.50",AYCLIFFE CARE HOME.
Adults Wellbeing and Health,Head of Adults,Third Party Payments,470101,Purchase of Care,22-May-2013,2596273-2098550,"1,811.20",AYCLIFFE CARE HOME.
Adults Wellbeing and Health,Head of Adults,Third Party Payments,470101,Purchase of Care,22-May-2013,2596273-2098551,"1,810.50",AYCLIFFE CARE HOME.
Adults Wellbeing and Health,Head of Adults,Third Party Payments,474101,Purchase of Care,22-May-2013,2596273-2101290,"1,900.90",AYCLIFFE CARE HOME.
Adults Wellbeing and Health,Head of Adults,Third Party Payments,474101,Purchase of Care,22-May-2013,2596273-2101292,"1,900.90",AYCLIFFE CARE HOME.
Adults Wellbeing and Health,Head of Adults,Third Party Payments,474101,Purchase of Care,22-May-2013,2596273-2101294,"1,900.90",AYCLIFFE CARE HOME.
Adults Wellbeing and Health,Head of Adults,Third Party Payments,474101,Purchase of Care,22-May-2013,2596273-2101296,"1,900.90",AYCLIFFE CARE HOME.
Adults Wellbeing and Health,Head of Adults,Third Party Payments,474101,Purchase of Care,22-May-2013,2596273-2101298,922.76,AYCLIFFE CARE HOME.
Adults Wellbeing and Health,Head of Adults,Third Party Payments,474101,Purchase of Care,22-May-2013,2596273-2101300,"1,900.90",AYCLIFFE CARE HOME.
Adults Wellbeing and Health,Head of Adults,Third Party Payments,474101,Purchase of Care,22-May-2013,2596273-2101302,"1,900.90",AYCLIFFE CARE HOME.
Adults Wellbeing and Health,Head of Adults,Third Party Payments,474101,Purchase of Care,22-May-2013,2596273-2101304,"1,900.90",AYCLIFFE CARE HOME.
Adults Wellbeing and Health,Head of Adults,Third Party Payments,471101,Purchase of Care,22-May-2013,2596273-2101822,"1,131.59",AYCLIFFE CARE HOME.
Adults Wellbeing and Health,Head of Adults,Third Party Payments,471101,Purchase of Care,22-May-2013,2596273-2101823,"1,882.08",AYCLIFFE CARE HOME.
Adults Wellbeing and Health,Head of Adults,Third Party Payments,471101,Purchase of Care,22-May-2013,2596273-2101824,732.20,AYCLIFFE CARE HOME.
Adults Wellbeing and Health,Head of Adults,Third Party Payments,471101,Purchase of Care,22-May-2013,2596273-2101826,"1,882.08",AYCLIFFE CARE HOME.
Adults Wellbeing and Health,Head of Adults,Third Party Payments,471101,Purchase of Care,22-May-2013,2596273-2101827,"1,882.08",AYCLIFFE CARE HOME.
Adults Wellbeing and Health,Head of Adults,Third Party Payments,471101,Purchase of Care,22-May-2013,2596273-2101828,"1,882.08",AYCLIFFE CARE HOME.
Adults Wellbeing and Health,Head of Adults,Third Party Payments,471101,Purchase of Care,22-May-2013,2596273-2101829,"1,882.08",AYCLIFFE CARE HOME.
Adults Wellbeing and Health,Head of Adults,Third Party Payments,471101,Purchase of Care,22-May-2013,2596273-2101830,"1,882.08",AYCLIFFE CARE HOME.
Adults Wellbeing and Health,Head of Adults,Third Party Payments,471101,Purchase of Care,22-May-2013,2596273-2101831,"1,882.08",AYCLIFFE CARE HOME.
Adults Wellbeing and Health,Head of Adults,Third Party Payments,471101,Purchase of Care,22-May-2013,2596273-2101832,"1,882.08",AYCLIFFE CARE HOME.
Adults Wellbeing and Health,Head of Adults,Third Party Payments,471101,Purchase of Care,22-May-2013,2596273-2101833,"1,882.08",AYCLIFFE CARE HOME.
Adults Wellbeing and Health,Head of Adults,Third Party Payments,470101,Purchase of Care,22-May-2013,2596273-2102922,"1,234.20",AYCLIFFE CARE HOME.
Adults Wellbeing and Health,Head of Adults,Third Party Payments,471101,Purchase of Care,22-May-2013,2596273-2102923,"1,615.82",AYCLIFFE CARE HOME.
Adults Wellbeing and Health,Head of Adults,Third Party Payments,478101,Purchase of Care,22-May-2013,2596274-1333456H,"1,036.00",B & J DUNCAN.
Adults Wellbeing and Health,Head of Adults,Third Party Payments,471101,Purchase of Care,22-May-2013,2596279-2102117,"1,744.00",BARCHESTER HEALTHCARE HOMES LTD.
Adults Wellbeing and Health,Head of Adults,Third Party Payments,471101,Purchase of Care,22-May-2013,2596279-2102118,"1,744.00",BARCHESTER HEALTHCARE HOMES LTD.
Adults Wellbeing and Health,Head of Adults,Third Party Payments,471101,Purchase of Care,22-May-2013,2596279-2102119,"1,744.00",BARCHESTER HEALTHCARE HOMES LTD.
Adults Wellbeing and Health,Head of Adults,Third Party Payments,474101,Purchase of Care,22-May-2013,2596280-2100151,"1,882.44",BARCHESTER HEALTHCARE HOMES LTD.
Adults Wellbeing and Health,Head of Adults,Third Party Payments,474101,Purchase of Care,22-May-2013,2596280-2100153,"1,882.44",BARCHESTER HEALTHCARE HOMES LTD.
Adults Wellbeing and Health,Head of Adults,Third Party Payments,474101,Purchase of Care,22-May-2013,2596280-2100156,"1,142.00",BARCHESTER HEALTHCARE HOMES LTD.
Adults Wellbeing and Health,Head of Adults,Third Party Payments,474101,Purchase of Care,22-May-2013,2596280-2100159,"1,882.44",BARCHESTER HEALTHCARE HOMES LTD.
Adults Wellbeing and Health,Head of Adults,Third Party Payments,474101,Purchase of Care,22-May-2013,2596280-2100162,"1,882.44",BARCHESTER HEALTHCARE HOMES LTD.
Adults Wellbeing and Health,Head of Adults,Third Party Payments,474101,Purchase of Care,22-May-2013,2596280-2100165,"1,882.44",BARCHESTER HEALTHCARE HOMES LTD.
Adults Wellbeing and Health,Head of Adults,Third Party Payments,474101,Purchase of Care,22-May-2013,2596280-2100168,"1,882.44",BARCHESTER HEALTHCARE HOMES LTD.
Adults Wellbeing and Health,Head of Adults,Third Party Payments,474101,Purchase of Care,22-May-2013,2596280-2100174,"1,882.44",BARCHESTER HEALTHCARE HOMES LTD.
Adults Wellbeing and Health,Head of Adults,Third Party Payments,474101,Purchase of Care,22-May-2013,2596280-2100767,"2,053.04",BARCHESTER HEALTHCARE HOMES LTD.
Adults Wellbeing and Health,Head of Adults,Third Party Payments,474101,Purchase of Care,22-May-2013,2596280-2100851,"1,882.44",BARCHESTER HEALTHCARE HOMES LTD.
Adults Wellbeing and Health,Head of Adults,Third Party Payments,474101,Purchase of Care,22-May-2013,2596280-2100853,"2,053.04",BARCHESTER HEALTHCARE HOMES LTD.
Adults Wellbeing and Health,Head of Adults,Third Party Payments,474101,Purchase of Care,22-May-2013,2596280-2101602,"1,882.44",BARCHESTER HEALTHCARE HOMES LTD.
Adults Wellbeing and Health,Head of Adults,Third Party Payments,474101,Purchase of Care,22-May-2013,2596280-2101604,"1,604.58",BARCHESTER HEALTHCARE HOMES LTD.
Adults Wellbeing and Health,Head of Adults,Third Party Payments,474101,Purchase of Care,22-May-2013,2596280-2101607,"1,882.44",BARCHESTER HEALTHCARE HOMES LTD.
Adults Wellbeing and Health,Head of Adults,Third Party Payments,474101,Purchase of Care,22-May-2013,2596280-2101609,"1,882.44",BARCHESTER HEALTHCARE HOMES LTD.
Adults Wellbeing and Health,Head of Adults,Third Party Payments,474101,Purchase of Care,22-May-2013,2596280-2101612,"1,882.44",BARCHESTER HEALTHCARE HOMES LTD.
Adults Wellbeing and Health,Head of Adults,Third Party Payments,474101,Purchase of Care,22-May-2013,2596280-2101615,"1,882.44",BARCHESTER HEALTHCARE HOMES LTD.
Adults Wellbeing and Health,Head of Adults,Third Party Payments,474101,Purchase of Care,22-May-2013,2596280-2102950,729.14,BARCHESTER HEALTHCARE HOMES LTD.
Adults Wellbeing and Health,Head of Adults,Third Party Payments,471101,Purchase of Care,22-May-2013,2596281-2101714,"1,642.20",BARCHESTER HEALTHCARE HOMES LTD.
Adults Wellbeing and Health,Head of Adults,Third Party Payments,474101,Purchase of Care,22-May-2013,2596282-2100754,"1,843.32",BARNES COURT NURSING HOME.
Adults Wellbeing and Health,Head of Adults,Transfer Payments,515201,Social Services Clients,22-May-2013,2596283-1329847H,"2,616.00",REDACTED - PAYMENT TO INDIVIDUAL
Adults Wellbeing and Health,Head of Adults,Transfer Payments,515201,Social Services Clients,22-May-2013,2596284-1332840H,726.40,REDACTED - PAYMENT TO INDIVIDUAL
Adults Wellbeing and Health,Head of Adults,Third Party Payments,470101,Purchase of Care,22-May-2013,2596286-2099066,"1,792.92",BEACONSFIELD COURT.
Adults Wellbeing and Health,Head of Adults,Third Party Payments,470101,Purchase of Care,22-May-2013,2596286-2099067,"1,792.92",BEACONSFIELD COURT.
Adults Wellbeing and Health,Head of Adults,Third Party Payments,470101,Purchase of Care,22-May-2013,2596286-2099068,"1,792.92",BEACONSFIELD COURT.
Adults Wellbeing and Health,Head of Adults,Third Party Payments,470101,Purchase of Care,22-May-2013,2596286-2099070,"1,792.92",BEACONSFIELD COURT.
Adults Wellbeing and Health,Head of Adults,Third Party Payments,470101,Purchase of Care,22-May-2013,2596286-2099071,"1,792.92",BEACONSFIELD COURT.
Adults Wellbeing and Health,Head of Adults,Third Party Payments,470101,Purchase of Care,22-May-2013,2596286-2099073,"1,792.92",BEACONSFIELD COURT.
Adults Wellbeing and Health,Head of Adults,Third Party Payments,470101,Purchase of Care,22-May-2013,2596286-2099075,"1,792.92",BEACONSFIELD COURT.
Adults Wellbeing and Health,Head of Adults,Third Party Payments,474101,Purchase of Care,22-May-2013,2596286-2100125,"1,882.44",BEACONSFIELD COURT.
Adults Wellbeing and Health,Head of Adults,Third Party Payments,474101,Purchase of Care,22-May-2013,2596286-2100127,"1,882.44",BEACONSFIELD COURT.
Adults Wellbeing and Health,Head of Adults,Third Party Payments,474101,Purchase of Care,22-May-2013,2596286-2100129,"1,882.44",BEACONSFIELD COURT.
Adults Wellbeing and Health,Head of Adults,Third Party Payments,474101,Purchase of Care,22-May-2013,2596286-2100131,"1,882.44",BEACONSFIELD COURT.
Adults Wellbeing and Health,Head of Adults,Third Party Payments,474101,Purchase of Care,22-May-2013,2596286-2100133,"1,882.44",BEACONSFIELD COURT.
Adults Wellbeing and Health,Head of Adults,Third Party Payments,470101,Purchase of Care,22-May-2013,2596287-2098591,"1,306.92",BEAMISH RESIDENTIAL HOME.
Adults Wellbeing and Health,Head of Adults,Third Party Payments,470101,Purchase of Care,22-May-2013,2596287-2098592,"1,792.92",BEAMISH RESIDENTIAL HOME.
Adults Wellbeing and Health,Head of Adults,Third Party Payments,470101,Purchase of Care,22-May-2013,2596287-2098593,"1,306.92",BEAMISH RESIDENTIAL HOME.
Adults Wellbeing and Health,Head of Adults,Third Party Payments,470101,Purchase of Care,22-May-2013,2596287-2098594,704.36,BEAMISH RESIDENTIAL HOME.
Adults Wellbeing and Health,Head of Adults,Third Party Payments,470101,Purchase of Care,22-May-2013,2596287-2098595,"1,792.92",BEAMISH RESIDENTIAL HOME.
Adults Wellbeing and Health,Head of Adults,Third Party Payments,470101,Purchase of Care,22-May-2013,2596287-2098596,"1,131.83",BEAMISH RESIDENTIAL HOME.
Adults Wellbeing and Health,Head of Adults,Third Party Payments,470101,Purchase of Care,22-May-2013,2596287-2098597,"1,792.92",BEAMISH RESIDENTIAL HOME.
Adults Wellbeing and Health,Head of Adults,Third Party Payments,470101,Purchase of Care,22-May-2013,2596287-2098598,946.64,BEAMISH RESIDENTIAL HOME.
Adults Wellbeing and Health,Head of Adults,Third Party Payments,470101,Purchase of Care,22-May-2013,2596287-2098599,"1,248.44",BEAMISH RESIDENTIAL HOME.
Adults Wellbeing and Health,Head of Adults,Third Party Payments,470101,Purchase of Care,22-May-2013,2596287-2098600,"1,258.36",BEAMISH RESIDENTIAL HOME.
Adults Wellbeing and Health,Head of Adults,Third Party Payments,470101,Purchase of Care,22-May-2013,2596287-2098601,"1,792.92",BEAMISH RESIDENTIAL HOME.
Adults Wellbeing and Health,Head of Adults,Third Party Payments,470101,Purchase of Care,22-May-2013,2596287-2098602,"1,102.24",BEAMISH RESIDENTIAL HOME.
Adults Wellbeing and Health,Head of Adults,Transfer Payments,515201,Social Services Clients,22-May-2013,2596288-1332369H,685.74,REDACTED - PAYMENT TO INDIVIDUAL
Adults Wellbeing and Health,Head of Adults,Transfer Payments,515201,Social Services Clients,22-May-2013,2596289-1331589H,637.32,REDACTED - PAYMENT TO INDIVIDUAL
Adults Wellbeing and Health,Head of Adults,Third Party Payments,470101,Purchase of Care,22-May-2013,2596290-2099133,947.16,BEDDELL HOUSE.
Adults Wellbeing and Health,Head of Adults,Third Party Payments,470101,Purchase of Care,22-May-2013,2596290-2099135,"1,894.36",BEDDELL HOUSE.
Adults Wellbeing and Health,Head of Adults,Third Party Payments,470101,Purchase of Care,22-May-2013,2596290-2099136,"1,894.36",BEDDELL HOUSE.
Adults Wellbeing and Health,Head of Adults,Third Party Payments,470101,Purchase of Care,22-May-2013,2596290-2099137,"1,894.36",BEDDELL HOUSE.
Adults Wellbeing and Health,Head of Adults,Third Party Payments,470101,Purchase of Care,22-May-2013,2596290-2099138,"1,894.36",BEDDELL HOUSE.
Adults Wellbeing and Health,Head of Adults,Third Party Payments,470101,Purchase of Care,22-May-2013,2596290-2099139,"1,894.36",BEDDELL HOUSE.
Adults Wellbeing and Health,Head of Adults,Third Party Payments,470101,Purchase of Care,22-May-2013,2596290-2099140,"1,894.36",BEDDELL HOUSE.
Adults Wellbeing and Health,Head of Adults,Third Party Payments,470101,Purchase of Care,22-May-2013,2596290-2099141,"1,894.36",BEDDELL HOUSE.
Adults Wellbeing and Health,Head of Adults,Third Party Payments,470101,Purchase of Care,22-May-2013,2596290-2099142,"1,894.36",BEDDELL HOUSE.
Adults Wellbeing and Health,Head of Adults,Third Party Payments,470101,Purchase of Care,22-May-2013,2596290-2099143,"1,894.36",BEDDELL HOUSE.
Adults Wellbeing and Health,Head of Adults,Third Party Payments,470101,Purchase of Care,22-May-2013,2596290-2099144,"1,894.36",BEDDELL HOUSE.
Adults Wellbeing and Health,Head of Adults,Third Party Payments,470101,Purchase of Care,22-May-2013,2596290-2099145,"1,894.36",BEDDELL HOUSE.
Adults Wellbeing and Health,Head of Adults,Third Party Payments,470101,Purchase of Care,22-May-2013,2596291-2101057,"2,145.00",BEECHWOOD RESIDENTIAL CARE SERVICES.
Adults Wellbeing and Health,Head of Adults,Third Party Payments,470101,Purchase of Care,22-May-2013,2596291-2101058,"2,145.00",BEECHWOOD RESIDENTIAL CARE SERVICES.
Adults Wellbeing and Health,Head of Adults,Third Party Payments,470101,Purchase of Care,22-May-2013,2596291-2101059,"2,145.00",BEECHWOOD RESIDENTIAL CARE SERVICES.
Adults Wellbeing and Health,Head of Adults,Third Party Payments,470101,Purchase of Care,22-May-2013,2596292-2098869,"1,772.00",BELLE VUE HEALTHCARE LTD.
Adults Wellbeing and Health,Head of Adults,Third Party Payments,470101,Purchase of Care,22-May-2013,2596293-2099371,894.56,BELMONT NURSING HOME.
Adults Wellbeing and Health,Head of Adults,Third Party Payments,470101,Purchase of Care,22-May-2013,2596293-2099372,"1,036.40",BELMONT NURSING HOME.
Adults Wellbeing and Health,Head of Adults,Third Party Payments,470101,Purchase of Care,22-May-2013,2596293-2099374,"1,595.12",BELMONT NURSING HOME.
Adults Wellbeing and Health,Head of Adults,Third Party Payments,470101,Purchase of Care,22-May-2013,2596293-2099375,"1,019.32",BELMONT NURSING HOME.
Adults Wellbeing and Health,Head of Adults,Third Party Payments,470101,Purchase of Care,22-May-2013,2596293-2099376,724.64,BELMONT NURSING HOME.
Adults Wellbeing and Health,Head of Adults,Third Party Payments,470101,Purchase of Care,22-May-2013,2596293-2099377,"1,595.12",BELMONT NURSING HOME.
Adults Wellbeing and Health,Head of Adults,Third Party Payments,474101,Purchase of Care,22-May-2013,2596293-2100354,"1,196.56",BELMONT NURSING HOME.
Adults Wellbeing and Health,Head of Adults,Third Party Payments,474101,Purchase of Care,22-May-2013,2596293-2100357,"1,196.56",BELMONT NURSING HOME.
Adults Wellbeing and Health,Head of Adults,Third Party Payments,474101,Purchase of Care,22-May-2013,2596293-2100359,"1,682.56",BELMONT NURSING HOME.
Adults Wellbeing and Health,Head of Adults,Third Party Payments,470101,Purchase of Care,22-May-2013,2596295-2101079,"1,482.48",BENAMY HOUSE.
Adults Wellbeing and Health,Head of Adults,Third Party Payments,470101,Purchase of Care,22-May-2013,2596295-2101080,"1,482.48",BENAMY HOUSE.
Adults Wellbeing and Health,Head of Adults,Third Party Payments,470101,Purchase of Care,22-May-2013,2596295-2101081,"1,482.48",BENAMY HOUSE.
Adults Wellbeing and Health,Head of Adults,Third Party Payments,470101,Purchase of Care,22-May-2013,2596295-2101082,"1,482.48",BENAMY HOUSE.
Adults Wellbeing and Health,Head of Adults,Third Party Payments,470101,Purchase of Care,22-May-2013,2596295-2101083,"1,311.68",BENAMY HOUSE.
Adults Wellbeing and Health,Head of Adults,Third Party Payments,474101,Purchase of Care,22-May-2013,2596296-2100855,"1,132.32",BENFIELD HALL.
Adults Wellbeing and Health,Head of Adults,Third Party Payments,474101,Purchase of Care,22-May-2013,2596296-2100856,912.72,BENFIELD HALL.
Adults Wellbeing and Health,Head of Adults,Third Party Payments,474101,Purchase of Care,22-May-2013,2596296-2100858,912.72,BENFIELD HALL.
Adults Wellbeing and Health,Head of Adults,Third Party Payments,474101,Purchase of Care,22-May-2013,2596296-2100860,"1,825.44",BENFIELD HALL.
Adults Wellbeing and Health,Head of Adults,Third Party Payments,474101,Purchase of Care,22-May-2013,2596296-2100862,912.72,BENFIELD HALL.
Adults Wellbeing and Health,Head of Adults,Third Party Payments,474101,Purchase of Care,22-May-2013,2596296-2100864,"1,825.44",BENFIELD HALL.
Adults Wellbeing and Health,Financing-Adult Services,Debtors,930024,Debtor-free nursing care,22-May-2013,2596296-2100866,604.40,BENFIELD HALL.
Adults Wellbeing and Health,Head of Adults,Third Party Payments,474101,Purchase of Care,22-May-2013,2596296-2100867,"1,510.24",BENFIELD HALL.
Adults Wellbeing and Health,Head of Adults,Third Party Payments,470101,Purchase of Care,22-May-2013,2596296-2100961,"2,460.00",BENFIELD HALL.
Adults Wellbeing and Health,Head of Adults,Transfer Payments,515201,Social Services Clients,22-May-2013,2596297-1330422H,"1,180.42",REDACTED - PAYMENT TO INDIVIDUAL
Adults Wellbeing and Health,Head of Adults,Transfer Payments,515201,Social Services Clients,22-May-2013,2596299-1335646H,583.36,REDACTED - PAYMENT TO INDIVIDUAL
Adults Wellbeing and Health,Head of Adults,Transfer Payments,515201,Social Services Clients,22-May-2013,2596303-1331131H,695.68,REDACTED - PAYMENT TO INDIVIDUAL
Adults Wellbeing and Health,Head of Adults,Transfer Payments,515201,Social Services Clients,22-May-2013,2596304-1332746H,688.40,REDACTED - PAYMENT TO INDIVIDUAL
Adults Wellbeing and Health,Head of Adults,Third Party Payments,478101,Purchase of Care,22-May-2013,2596305-2101704,"1,216.20",REDACTED - PAYMENT TO INDIVIDUAL
Adults Wellbeing and Health,Head of Adults,Third Party Payments,470101,Purchase of Care,22-May-2013,2596308-2099169,"1,595.12",BHACHU CARE LTD.
Adults Wellbeing and Health,Head of Adults,Third Party Payments,470101,Purchase of Care,22-May-2013,2596308-2099170,"1,595.12",BHACHU CARE LTD.
Adults Wellbeing and Health,Head of Adults,Third Party Payments,471101,Purchase of Care,22-May-2013,2596308-2102283,"1,665.92",BHACHU CARE LTD.
Adults Wellbeing and Health,Head of Adults,Third Party Payments,471101,Purchase of Care,22-May-2013,2596308-2102284,"1,665.92",BHACHU CARE LTD.
Adults Wellbeing and Health,Head of Adults,Third Party Payments,471101,Purchase of Care,22-May-2013,2596308-2102285,"1,665.92",BHACHU CARE LTD.
Adults Wellbeing and Health,Head of Adults,Third Party Payments,471101,Purchase of Care,22-May-2013,2596308-2102286,"1,665.92",BHACHU CARE LTD.
Adults Wellbeing and Health,Head of Adults,Third Party Payments,471101,Purchase of Care,22-May-2013,2596308-2102287,"1,665.92",BHACHU CARE LTD.
Adults Wellbeing and Health,Head of Adults,Third Party Payments,471101,Purchase of Care,22-May-2013,2596308-2102288,"1,665.92",BHACHU CARE LTD.
Adults Wellbeing and Health,Head of Adults,Third Party Payments,471101,Purchase of Care,22-May-2013,2596308-2102289,"1,665.92",BHACHU CARE LTD.
Adults Wellbeing and Health,Head of Adults,Third Party Payments,470101,Purchase of Care,22-May-2013,2596308-2102290,"1,665.92",BHACHU CARE LTD.
Adults Wellbeing and Health,Head of Adults,Third Party Payments,470101,Purchase of Care,22-May-2013,2596310-2099595,704.36,BISHOPSGATE LODGE.
Adults Wellbeing and Health,Head of Adults,Third Party Payments,470101,Purchase of Care,22-May-2013,2596310-2099596,"1,728.88",BISHOPSGATE LODGE.
Adults Wellbeing and Health,Head of Adults,Third Party Payments,470101,Purchase of Care,22-May-2013,2596310-2099662,"1,810.50",BISHOPSGATE LODGE.
Adults Wellbeing and Health,Head of Adults,Third Party Payments,470101,Purchase of Care,22-May-2013,2596310-2099663,721.94,BISHOPSGATE LODGE.
Adults Wellbeing and Health,Head of Adults,Third Party Payments,470101,Purchase of Care,22-May-2013,2596310-2099664,"1,810.50",BISHOPSGATE LODGE.
Adults Wellbeing and Health,Head of Adults,Third Party Payments,470101,Purchase of Care,22-May-2013,2596310-2099665,"1,810.50",BISHOPSGATE LODGE.
Adults Wellbeing and Health,Head of Adults,Third Party Payments,470101,Purchase of Care,22-May-2013,2596310-2099666,"1,810.50",BISHOPSGATE LODGE.
Adults Wellbeing and Health,Head of Adults,Third Party Payments,470101,Purchase of Care,22-May-2013,2596310-2099667,"1,106.13",BISHOPSGATE LODGE.
Adults Wellbeing and Health,Head of Adults,Third Party Payments,470101,Purchase of Care,22-May-2013,2596310-2099668,"1,810.50",BISHOPSGATE LODGE.
Adults Wellbeing and Health,Head of Adults,Third Party Payments,470101,Purchase of Care,22-May-2013,2596310-2099669,"1,810.50",BISHOPSGATE LODGE.
Adults Wellbeing and Health,Head of Adults,Third Party Payments,470101,Purchase of Care,22-May-2013,2596310-2099670,"1,810.50",BISHOPSGATE LODGE.
Adults Wellbeing and Health,Head of Adults,Third Party Payments,470101,Purchase of Care,22-May-2013,2596310-2099671,"1,810.50",BISHOPSGATE LODGE.
Adults Wellbeing and Health,Head of Adults,Third Party Payments,470101,Purchase of Care,22-May-2013,2596310-2099673,"1,810.50",BISHOPSGATE LODGE.
Adults Wellbeing and Health,Head of Adults,Third Party Payments,470101,Purchase of Care,22-May-2013,2596310-2099674,"1,810.50",BISHOPSGATE LODGE.
Adults Wellbeing and Health,Head of Adults,Third Party Payments,470101,Purchase of Care,22-May-2013,2596310-2099675,"1,810.50",BISHOPSGATE LODGE.
Adults Wellbeing and Health,Head of Adults,Third Party Payments,470101,Purchase of Care,22-May-2013,2596310-2099676,"1,810.50",BISHOPSGATE LODGE.
Adults Wellbeing and Health,Head of Adults,Third Party Payments,470101,Purchase of Care,22-May-2013,2596310-2099677,"1,810.50",BISHOPSGATE LODGE.
Adults Wellbeing and Health,Head of Adults,Third Party Payments,474101,Purchase of Care,22-May-2013,2596310-2100560,"1,900.90",BISHOPSGATE LODGE.
Adults Wellbeing and Health,Head of Adults,Third Party Payments,474101,Purchase of Care,22-May-2013,2596310-2100561,"1,900.90",BISHOPSGATE LODGE.
Adults Wellbeing and Health,Head of Adults,Third Party Payments,474101,Purchase of Care,22-May-2013,2596310-2100563,"1,900.90",BISHOPSGATE LODGE.
Adults Wellbeing and Health,Head of Adults,Third Party Payments,470101,Purchase of Care,22-May-2013,2596310-2100565,"1,900.90",BISHOPSGATE LODGE.
Adults Wellbeing and Health,Head of Adults,Third Party Payments,474101,Purchase of Care,22-May-2013,2596310-2100567,"1,900.90",BISHOPSGATE LODGE.
Adults Wellbeing and Health,Head of Adults,Third Party Payments,474101,Purchase of Care,22-May-2013,2596310-2100569,"1,900.90",BISHOPSGATE LODGE.
Adults Wellbeing and Health,Head of Adults,Third Party Payments,474101,Purchase of Care,22-May-2013,2596310-2100571,"1,900.90",BISHOPSGATE LODGE.
Adults Wellbeing and Health,Head of Adults,Third Party Payments,474101,Purchase of Care,22-May-2013,2596310-2100573,"1,900.90",BISHOPSGATE LODGE.
Adults Wellbeing and Health,Head of Adults,Third Party Payments,474101,Purchase of Care,22-May-2013,2596310-2100577,"1,900.90",BISHOPSGATE LODGE.
Adults Wellbeing and Health,Head of Adults,Third Party Payments,474101,Purchase of Care,22-May-2013,2596310-2100579,"1,900.90",BISHOPSGATE LODGE.
Adults Wellbeing and Health,Head of Adults,Third Party Payments,474101,Purchase of Care,22-May-2013,2596310-2100581,"1,900.90",BISHOPSGATE LODGE.
Adults Wellbeing and Health,Head of Adults,Third Party Payments,474101,Purchase of Care,22-May-2013,2596310-2100583,"1,900.90",BISHOPSGATE LODGE.
Adults Wellbeing and Health,Head of Adults,Third Party Payments,474101,Purchase of Care,22-May-2013,2596310-2100586,"1,900.90",BISHOPSGATE LODGE.
Adults Wellbeing and Health,Head of Adults,Third Party Payments,471101,Purchase of Care,22-May-2013,2596310-2102482,"1,882.08",BISHOPSGATE LODGE.
Adults Wellbeing and Health,Head of Adults,Third Party Payments,471101,Purchase of Care,22-May-2013,2596310-2102483,"1,882.08",BISHOPSGATE LODGE.
Adults Wellbeing and Health,Head of Adults,Third Party Payments,471101,Purchase of Care,22-May-2013,2596310-2102484,"1,882.08",BISHOPSGATE LODGE.
Adults Wellbeing and Health,Head of Adults,Third Party Payments,470101,Purchase of Care,22-May-2013,2596310-2102539,564.99,BISHOPSGATE LODGE.
Adults Wellbeing and Health,Head of Adults,Third Party Payments,474101,Purchase of Care,22-May-2013,2596310-2102924,"1,699.21",BISHOPSGATE LODGE.
Adults Wellbeing and Health,Head of Adults,Third Party Payments,471101,Purchase of Care,22-May-2013,2596310-2102926,"5,210.27",BISHOPSGATE LODGE.
Adults Wellbeing and Health,Head of Adults,Third Party Payments,472101,Purchase of Care,22-May-2013,2596313-1330547H,"1,644.39",BLUEBIRD CARE (SUNDERLAND).
Adults Wellbeing and Health,Head of Adults,Third Party Payments,472101,Purchase of Care,22-May-2013,2596313-1330551H,"1,657.98",BLUEBIRD CARE (SUNDERLAND).
Adults Wellbeing and Health,Head of Adults,Third Party Payments,472101,Purchase of Care,22-May-2013,2596315-1330660H,"1,951.80",BOLTONSHAW HOMECARE.
Adults Wellbeing and Health,Head of Adults,Third Party Payments,472101,Purchase of Care,22-May-2013,2596315-1331556H,840.00,BOLTONSHAW HOMECARE.
Adults Wellbeing and Health,Head of Adults,Third Party Payments,470101,Purchase of Care,22-May-2013,2596316-2100681,"2,222.00",BOWES COURT CARE HOME.
Adults Wellbeing and Health,Head of Adults,Third Party Payments,474101,Purchase of Care,22-May-2013,2596316-2100744,"4,800.00",BOWES COURT CARE HOME.
Adults Wellbeing and Health,Head of Adults,Third Party Payments,474101,Purchase of Care,22-May-2013,2596316-2100746,"2,525.00",BOWES COURT CARE HOME.
Adults Wellbeing and Health,Head of Adults,Third Party Payments,474101,Purchase of Care,22-May-2013,2596316-2100748,"2,400.00",BOWES COURT CARE HOME.
Adults Wellbeing and Health,Head of Adults,Third Party Payments,474101,Purchase of Care,22-May-2013,2596316-2100749,"2,400.00",BOWES COURT CARE HOME.
Adults Wellbeing and Health,Head of Adults,Third Party Payments,470101,Purchase of Care,22-May-2013,2596316-2101021,"4,444.00",BOWES COURT CARE HOME.
Adults Wellbeing and Health,Head of Adults,Third Party Payments,470101,Purchase of Care,22-May-2013,2596316-2101022,"4,444.00",BOWES COURT CARE HOME.
Adults Wellbeing and Health,Head of Adults,Third Party Payments,470101,Purchase of Care,22-May-2013,2596316-2101023,"2,300.00",BOWES COURT CARE HOME.
Adults Wellbeing and Health,Head of Adults,Third Party Payments,470101,Purchase of Care,22-May-2013,2596316-2101024,"5,082.00",BOWES COURT CARE HOME.
Adults Wellbeing and Health,Head of Adults,Third Party Payments,470101,Purchase of Care,22-May-2013,2596316-2101025,"3,620.00",BOWES COURT CARE HOME.
Adults Wellbeing and Health,Head of Adults,Third Party Payments,474101,Purchase of Care,22-May-2013,2596316-2101217,"4,800.00",BOWES COURT CARE HOME.
Adults Wellbeing and Health,Head of Adults,Third Party Payments,470101,Purchase of Care,22-May-2013,2596318-2099703,"1,792.92",BRANCEPETH COURT.
Adults Wellbeing and Health,Head of Adults,Third Party Payments,470101,Purchase of Care,22-May-2013,2596318-2099704,"1,792.92",BRANCEPETH COURT.
Adults Wellbeing and Health,Head of Adults,Third Party Payments,470101,Purchase of Care,22-May-2013,2596318-2099705,"1,792.92",BRANCEPETH COURT.
Adults Wellbeing and Health,Head of Adults,Third Party Payments,470101,Purchase of Care,22-May-2013,2596318-2099707,"1,792.92",BRANCEPETH COURT.
Adults Wellbeing and Health,Head of Adults,Third Party Payments,470101,Purchase of Care,22-May-2013,2596318-2099708,"1,536.78",BRANCEPETH COURT.
Adults Wellbeing and Health,Head of Adults,Third Party Payments,470101,Purchase of Care,22-May-2013,2596318-2099709,"1,792.92",BRANCEPETH COURT.
Adults Wellbeing and Health,Head of Adults,Third Party Payments,470101,Purchase of Care,22-May-2013,2596318-2099710,"1,792.92",BRANCEPETH COURT.
Adults Wellbeing and Health,Head of Adults,Third Party Payments,470101,Purchase of Care,22-May-2013,2596318-2099712,"1,792.92",BRANCEPETH COURT.
Adults Wellbeing and Health,Head of Adults,Third Party Payments,474101,Purchase of Care,22-May-2013,2596318-2100658,"1,882.44",BRANCEPETH COURT.
Adults Wellbeing and Health,Head of Adults,Third Party Payments,474101,Purchase of Care,22-May-2013,2596318-2100660,"1,142.91",BRANCEPETH COURT.
Adults Wellbeing and Health,Head of Adults,Third Party Payments,474101,Purchase of Care,22-May-2013,2596318-2100662,"1,882.44",BRANCEPETH COURT.
Adults Wellbeing and Health,Head of Adults,Third Party Payments,474101,Purchase of Care,22-May-2013,2596318-2100664,"1,882.44",BRANCEPETH COURT.
Adults Wellbeing and Health,Head of Adults,Third Party Payments,474101,Purchase of Care,22-May-2013,2596318-2100666,"1,966.44",BRANCEPETH COURT.
Adults Wellbeing and Health,Head of Adults,Third Party Payments,474101,Purchase of Care,22-May-2013,2596318-2100668,"1,882.44",BRANCEPETH COURT.
Adults Wellbeing and Health,Head of Adults,Third Party Payments,474101,Purchase of Care,22-May-2013,2596318-2100670,"1,882.44",BRANCEPETH COURT.
Adults Wellbeing and Health,Head of Adults,Third Party Payments,470101,Purchase of Care,22-May-2013,2596318-2101204,"1,854.68",BRANCEPETH COURT.
Adults Wellbeing and Health,Head of Adults,Third Party Payments,470101,Purchase of Care,22-May-2013,2596318-2101205,"1,854.68",BRANCEPETH COURT.
Adults Wellbeing and Health,Head of Adults,Third Party Payments,470101,Purchase of Care,22-May-2013,2596318-2101206,"1,854.68",BRANCEPETH COURT.
Adults Wellbeing and Health,Head of Adults,Third Party Payments,470101,Purchase of Care,22-May-2013,2596318-2101207,"1,854.68",BRANCEPETH COURT.
Adults Wellbeing and Health,Head of Adults,Third Party Payments,470101,Purchase of Care,22-May-2013,2596318-2101208,"1,854.68",BRANCEPETH COURT.
Adults Wellbeing and Health,Head of Adults,Third Party Payments,470101,Purchase of Care,22-May-2013,2596318-2101209,"1,854.68",BRANCEPETH COURT.
Adults Wellbeing and Health,Head of Adults,Third Party Payments,470101,Purchase of Care,22-May-2013,2596318-2101210,"1,854.68",BRANCEPETH COURT.
Adults Wellbeing and Health,Head of Adults,Third Party Payments,470101,Purchase of Care,22-May-2013,2596318-2101211,"1,854.68",BRANCEPETH COURT.
Adults Wellbeing and Health,Head of Adults,Third Party Payments,474101,Purchase of Care,22-May-2013,2596318-2101231,"1,890.96",BRANCEPETH COURT.
Adults Wellbeing and Health,Head of Adults,Third Party Payments,474101,Purchase of Care,22-May-2013,2596318-2101233,"1,890.96",BRANCEPETH COURT.
Adults Wellbeing and Health,Head of Adults,Third Party Payments,474101,Purchase of Care,22-May-2013,2596318-2102759,"1,613.52",BRANCEPETH COURT.
Adults Wellbeing and Health,Head of Adults,Third Party Payments,470101,Purchase of Care,22-May-2013,2596318-2102896,832.42,BRANCEPETH COURT.
Adults Wellbeing and Health,Head of Adults,Third Party Payments,470101,Purchase of Care,22-May-2013,2596318-2102908,"1,838.27",BRANCEPETH COURT.
Adults Wellbeing and Health,Head of Adults,Third Party Payments,470101,Purchase of Care,22-May-2013,2596318-2103030,"1,792.92",BRANCEPETH COURT.
Adults Wellbeing and Health,Head of Adults,Transfer Payments,515201,Social Services Clients,22-May-2013,2596321-1333019H,"1,838.72",REDACTED - PAYMENT TO INDIVIDUAL
Adults Wellbeing and Health,Head of Adults,Transfer Payments,515201,Social Services Clients,22-May-2013,2596322-1330010H,"1,209.56",REDACTED - PAYMENT TO INDIVIDUAL
Adults Wellbeing and Health,Head of Adults,Transfer Payments,515201,Social Services Clients,22-May-2013,2596324-1329227H,"7,129.04",REDACTED - PAYMENT TO INDIVIDUAL
Adults Wellbeing and Health,Head of Adults,Transfer Payments,515201,Social Services Clients,22-May-2013,2596326-1332272H,"1,160.52",REDACTED - PAYMENT TO INDIVIDUAL
Adults Wellbeing and Health,Head of Adults,Third Party Payments,470101,Purchase of Care,22-May-2013,2596327-2101102,"2,176.56",BRIDGEWOOD TRUST LTD.
Adults Wellbeing and Health,Head of Adults,Third Party Payments,470101,Purchase of Care,22-May-2013,2596330-2099415,690.62,BROOMHOUSE CARE LTD.
Adults Wellbeing and Health,Head of Adults,Third Party Payments,470101,Purchase of Care,22-May-2013,2596330-2099416,"1,324.50",BROOMHOUSE CARE LTD.
Adults Wellbeing and Health,Head of Adults,Third Party Payments,470101,Purchase of Care,22-May-2013,2596330-2099417,"1,810.50",BROOMHOUSE CARE LTD.
Adults Wellbeing and Health,Head of Adults,Third Party Payments,470101,Purchase of Care,22-May-2013,2596330-2099419,"1,319.58",BROOMHOUSE CARE LTD.
Adults Wellbeing and Health,Head of Adults,Third Party Payments,470101,Purchase of Care,22-May-2013,2596330-2099420,"1,324.50",BROOMHOUSE CARE LTD.
Adults Wellbeing and Health,Head of Adults,Third Party Payments,471101,Purchase of Care,22-May-2013,2596330-2102400,"1,436.08",BROOMHOUSE CARE LTD.
Adults Wellbeing and Health,Head of Adults,Third Party Payments,471101,Purchase of Care,22-May-2013,2596330-2102401,"1,364.36",BROOMHOUSE CARE LTD.
Adults Wellbeing and Health,Head of Adults,Third Party Payments,471101,Purchase of Care,22-May-2013,2596330-2102402,"1,882.08",BROOMHOUSE CARE LTD.
Adults Wellbeing and Health,Head of Adults,Third Party Payments,471101,Purchase of Care,22-May-2013,2596330-2102403,"1,882.08",BROOMHOUSE CARE LTD.
Adults Wellbeing and Health,Head of Adults,Third Party Payments,471101,Purchase of Care,22-May-2013,2596330-2102405,"1,071.36",BROOMHOUSE CARE LTD.
Adults Wellbeing and Health,Head of Adults,Third Party Payments,471101,Purchase of Care,22-May-2013,2596330-2102406,"1,268.88",BROOMHOUSE CARE LTD.
Adults Wellbeing and Health,Head of Adults,Third Party Payments,471101,Purchase of Care,22-May-2013,2596330-2102407,"1,381.88",BROOMHOUSE CARE LTD.
Adults Wellbeing and Health,Head of Adults,Third Party Payments,470101,Purchase of Care,22-May-2013,2596330-2102738,960.49,BROOMHOUSE CARE LTD.
Adults Wellbeing and Health,Head of Adults,Third Party Payments,470101,Purchase of Care,22-May-2013,2596331-1329970D,505.53,BROTHERS OF CHARITY.
Adults Wellbeing and Health,Head of Adults,Third Party Payments,478101,Purchase of Care,22-May-2013,2596331-1329970H,"2,919.08",BROTHERS OF CHARITY.
Adults Wellbeing and Health,Head of Adults,Third Party Payments,474101,Purchase of Care,22-May-2013,2596334-2101222,"1,635.32",BUPA CARE SERVICES.
Adults Wellbeing and Health,Head of Adults,Third Party Payments,474101,Purchase of Care,22-May-2013,2596334-2101223,"1,950.52",BUPA CARE SERVICES.
Adults Wellbeing and Health,Head of Adults,Third Party Payments,474101,Purchase of Care,22-May-2013,2596335-2101543,"1,620.00",BUPA CARE SERVICES.
Adults Wellbeing and Health,Head of Adults,Third Party Payments,474101,Purchase of Care,22-May-2013,2596336-2099932,"1,143.68",REDACTED - PAYMENT TO INDIVIDUAL
Adults Wellbeing and Health,Head of Adults,Third Party Payments,474101,Purchase of Care,22-May-2013,2596336-2101491,"1,744.00",REDACTED - PAYMENT TO INDIVIDUAL
Adults Wellbeing and Health,Head of Adults,Third Party Payments,478101,Purchase of Care,22-May-2013,2596339-2101695,"1,279.20",REDACTED - PAYMENT TO INDIVIDUAL
Adults Wellbeing and Health,Head of Adults,Third Party Payments,472101,Purchase of Care,22-May-2013,2596342-1332044H,741.13,CARE CONCERN (DURHAM) LTD.
Adults Wellbeing and Health,Head of Adults,Third Party Payments,472101,Purchase of Care,22-May-2013,2596342-1332544H,508.17,CARE CONCERN (DURHAM) LTD.
Adults Wellbeing and Health,Head of Adults,Third Party Payments,472101,Purchase of Care,22-May-2013,2596342-1332657H,538.04,CARE CONCERN (DURHAM) LTD.
Adults Wellbeing and Health,Head of Adults,Third Party Payments,472101,Purchase of Care,22-May-2013,2596342-1334402H,652.35,CARE CONCERN (DURHAM) LTD.
Adults Wellbeing and Health,Head of Adults,Third Party Payments,472101,Purchase of Care,22-May-2013,2596342-1334910H,"1,118.32",CARE CONCERN (DURHAM) LTD.
Adults Wellbeing and Health,Head of Adults,Third Party Payments,474101,Purchase of Care,22-May-2013,2596343-2100741,"2,808.00",CARELINE LIFESTYLES LTD.
Adults Wellbeing and Health,Head of Adults,Third Party Payments,474101,Purchase of Care,22-May-2013,2596343-2101214,"4,800.00",CARELINE LIFESTYLES LTD.
Adults Wellbeing and Health,Head of Adults,Third Party Payments,470101,Purchase of Care,22-May-2013,2596344-2101035,"2,461.68",CARELINE LIFESTYLES LTD.
Adults Wellbeing and Health,Head of Adults,Third Party Payments,472101,Purchase of Care,22-May-2013,2596345-1329027H,582.23,CAREWATCH (DURHAM & EASINGTON) FASTFLOW ACC.
Adults Wellbeing and Health,Head of Adults,Third Party Payments,478101,Purchase of Care,22-May-2013,2596345-1329169H,"1,056.00",CAREWATCH (DURHAM & EASINGTON) FASTFLOW ACC.
Adults Wellbeing and Health,Head of Adults,Third Party Payments,478101,Purchase of Care,22-May-2013,2596345-1329426H,"2,460.76",CAREWATCH (DURHAM & EASINGTON) FASTFLOW ACC.
Adults Wellbeing and Health,Head of Adults,Third Party Payments,478101,Purchase of Care,22-May-2013,2596345-1329447H,902.00,CAREWATCH (DURHAM & EASINGTON) FASTFLOW ACC.
Adults Wellbeing and Health,Head of Adults,Third Party Payments,478101,Purchase of Care,22-May-2013,2596345-1329483H,"1,320.00",CAREWATCH (DURHAM & EASINGTON) FASTFLOW ACC.
Adults Wellbeing and Health,Head of Adults,Third Party Payments,478101,Purchase of Care,22-May-2013,2596345-1329489H,"2,461.04",CAREWATCH (DURHAM & EASINGTON) FASTFLOW ACC.
Adults Wellbeing and Health,Head of Adults,Third Party Payments,478101,Purchase of Care,22-May-2013,2596345-1329527H,"1,320.00",CAREWATCH (DURHAM & EASINGTON) FASTFLOW ACC.
Adults Wellbeing and Health,Head of Adults,Third Party Payments,478101,Purchase of Care,22-May-2013,2596345-1329535H,924.00,CAREWATCH (DURHAM & EASINGTON) FASTFLOW ACC.
Adults Wellbeing and Health,Head of Adults,Third Party Payments,478101,Purchase of Care,22-May-2013,2596345-1329555H,"1,452.00",CAREWATCH (DURHAM & EASINGTON) FASTFLOW ACC.
Adults Wellbeing and Health,Head of Adults,Third Party Payments,478101,Purchase of Care,22-May-2013,2596345-1329575H,528.00,CAREWATCH (DURHAM & EASINGTON) FASTFLOW ACC.
Adults Wellbeing and Health,Head of Adults,Third Party Payments,478101,Purchase of Care,22-May-2013,2596345-1329588H,880.00,CAREWATCH (DURHAM & EASINGTON) FASTFLOW ACC.
Adults Wellbeing and Health,Head of Adults,Third Party Payments,478101,Purchase of Care,22-May-2013,2596345-1329594H,748.00,CAREWATCH (DURHAM & EASINGTON) FASTFLOW ACC.
Adults Wellbeing and Health,Head of Adults,Third Party Payments,478101,Purchase of Care,22-May-2013,2596345-1329702H,"1,188.00",CAREWATCH (DURHAM & EASINGTON) FASTFLOW ACC.
Adults Wellbeing and Health,Head of Adults,Third Party Payments,472101,Purchase of Care,22-May-2013,2596345-1329756H,557.27,CAREWATCH (DURHAM & EASINGTON) FASTFLOW ACC.
Adults Wellbeing and Health,Head of Adults,Third Party Payments,472101,Purchase of Care,22-May-2013,2596345-1329762H,"1,250.40",CAREWATCH (DURHAM & EASINGTON) FASTFLOW ACC.
Adults Wellbeing and Health,Head of Adults,Third Party Payments,472101,Purchase of Care,22-May-2013,2596345-1329795H,"1,491.61",CAREWATCH (DURHAM & EASINGTON) FASTFLOW ACC.
Adults Wellbeing and Health,Head of Adults,Third Party Payments,472101,Purchase of Care,22-May-2013,2596345-1329805H,654.33,CAREWATCH (DURHAM & EASINGTON) FASTFLOW ACC.
Adults Wellbeing and Health,Head of Adults,Third Party Payments,472101,Purchase of Care,22-May-2013,2596345-1329843H,887.20,CAREWATCH (DURHAM & EASINGTON) FASTFLOW ACC.
Adults Wellbeing and Health,Head of Adults,Third Party Payments,472101,Purchase of Care,22-May-2013,2596345-1330305H,761.50,CAREWATCH (DURHAM & EASINGTON) FASTFLOW ACC.
Adults Wellbeing and Health,Head of Adults,Third Party Payments,478101,Purchase of Care,22-May-2013,2596345-1330313H,"1,801.04",CAREWATCH (DURHAM & EASINGTON) FASTFLOW ACC.
Adults Wellbeing and Health,Head of Adults,Third Party Payments,472101,Purchase of Care,22-May-2013,2596345-1330325H,561.88,CAREWATCH (DURHAM & EASINGTON) FASTFLOW ACC.
Adults Wellbeing and Health,Head of Adults,Third Party Payments,472101,Purchase of Care,22-May-2013,2596345-1330329H,687.60,CAREWATCH (DURHAM & EASINGTON) FASTFLOW ACC.
Adults Wellbeing and Health,Head of Adults,Third Party Payments,472101,Purchase of Care,22-May-2013,2596345-1330402H,591.48,CAREWATCH (DURHAM & EASINGTON) FASTFLOW ACC.
Adults Wellbeing and Health,Head of Adults,Third Party Payments,472101,Purchase of Care,22-May-2013,2596345-1330451H,929.72,CAREWATCH (DURHAM & EASINGTON) FASTFLOW ACC.
Adults Wellbeing and Health,Head of Adults,Third Party Payments,478101,Purchase of Care,22-May-2013,2596345-1330462H,682.00,CAREWATCH (DURHAM & EASINGTON) FASTFLOW ACC.
Adults Wellbeing and Health,Head of Adults,Third Party Payments,478101,Purchase of Care,22-May-2013,2596345-1330533H,"1,672.00",CAREWATCH (DURHAM & EASINGTON) FASTFLOW ACC.
Adults Wellbeing and Health,Head of Adults,Third Party Payments,472101,Purchase of Care,22-May-2013,2596345-1330857H,"1,574.80",CAREWATCH (DURHAM & EASINGTON) FASTFLOW ACC.
Adults Wellbeing and Health,Head of Adults,Third Party Payments,472101,Purchase of Care,22-May-2013,2596345-1330888H,"2,972.12",CAREWATCH (DURHAM & EASINGTON) FASTFLOW ACC.
Adults Wellbeing and Health,Head of Adults,Third Party Payments,478101,Purchase of Care,22-May-2013,2596345-1330896H,924.00,CAREWATCH (DURHAM & EASINGTON) FASTFLOW ACC.
Adults Wellbeing and Health,Head of Adults,Third Party Payments,472101,Purchase of Care,22-May-2013,2596345-1330934H,532.32,CAREWATCH (DURHAM & EASINGTON) FASTFLOW ACC.
Adults Wellbeing and Health,Head of Adults,Third Party Payments,472101,Purchase of Care,22-May-2013,2596345-1331186H,"1,131.20",CAREWATCH (DURHAM & EASINGTON) FASTFLOW ACC.
Adults Wellbeing and Health,Head of Adults,Third Party Payments,472101,Purchase of Care,22-May-2013,2596345-1331194H,621.04,CAREWATCH (DURHAM & EASINGTON) FASTFLOW ACC.
Adults Wellbeing and Health,Head of Adults,Third Party Payments,472101,Purchase of Care,22-May-2013,2596345-1331211H,"1,486.05",CAREWATCH (DURHAM & EASINGTON) FASTFLOW ACC.
Adults Wellbeing and Health,Head of Adults,Third Party Payments,472101,Purchase of Care,22-May-2013,2596345-1331227H,"1,596.96",CAREWATCH (DURHAM & EASINGTON) FASTFLOW ACC.
Adults Wellbeing and Health,Head of Adults,Third Party Payments,472101,Purchase of Care,22-May-2013,2596345-1331228H,585.92,CAREWATCH (DURHAM & EASINGTON) FASTFLOW ACC.
Adults Wellbeing and Health,Head of Adults,Third Party Payments,472101,Purchase of Care,22-May-2013,2596345-1331266H,776.32,CAREWATCH (DURHAM & EASINGTON) FASTFLOW ACC.
Adults Wellbeing and Health,Head of Adults,Third Party Payments,472101,Purchase of Care,22-May-2013,2596345-1331269H,501.82,CAREWATCH (DURHAM & EASINGTON) FASTFLOW ACC.
Adults Wellbeing and Health,Head of Adults,Third Party Payments,472101,Purchase of Care,22-May-2013,2596345-1331287H,"1,463.88",CAREWATCH (DURHAM & EASINGTON) FASTFLOW ACC.
Adults Wellbeing and Health,Head of Adults,Third Party Payments,472101,Purchase of Care,22-May-2013,2596345-1331294H,646.00,CAREWATCH (DURHAM & EASINGTON) FASTFLOW ACC.
Adults Wellbeing and Health,Head of Adults,Third Party Payments,472101,Purchase of Care,22-May-2013,2596345-1331296H,576.68,CAREWATCH (DURHAM & EASINGTON) FASTFLOW ACC.
Adults Wellbeing and Health,Head of Adults,Third Party Payments,472101,Purchase of Care,22-May-2013,2596345-1331298H,665.40,CAREWATCH (DURHAM & EASINGTON) FASTFLOW ACC.
Adults Wellbeing and Health,Head of Adults,Third Party Payments,472101,Purchase of Care,22-May-2013,2596345-1331307H,687.60,CAREWATCH (DURHAM & EASINGTON) FASTFLOW ACC.
Adults Wellbeing and Health,Head of Adults,Third Party Payments,472101,Purchase of Care,22-May-2013,2596345-1331355H,562.83,CAREWATCH (DURHAM & EASINGTON) FASTFLOW ACC.
Adults Wellbeing and Health,Head of Adults,Third Party Payments,472101,Purchase of Care,22-May-2013,2596345-1331427H,517.52,CAREWATCH (DURHAM & EASINGTON) FASTFLOW ACC.
Adults Wellbeing and Health,Head of Adults,Third Party Payments,472101,Purchase of Care,22-May-2013,2596345-1331428H,804.03,CAREWATCH (DURHAM & EASINGTON) FASTFLOW ACC.
Adults Wellbeing and Health,Head of Adults,Third Party Payments,472101,Purchase of Care,22-May-2013,2596345-1331555H,842.83,CAREWATCH (DURHAM & EASINGTON) FASTFLOW ACC.
Adults Wellbeing and Health,Head of Adults,Third Party Payments,472101,Purchase of Care,22-May-2013,2596345-1331560H,609.45,CAREWATCH (DURHAM & EASINGTON) FASTFLOW ACC.
Adults Wellbeing and Health,Head of Adults,Third Party Payments,472101,Purchase of Care,22-May-2013,2596345-1331561H,510.16,CAREWATCH (DURHAM & EASINGTON) FASTFLOW ACC.
Adults Wellbeing and Health,Head of Adults,Third Party Payments,472101,Purchase of Care,22-May-2013,2596345-1331563H,665.40,CAREWATCH (DURHAM & EASINGTON) FASTFLOW ACC.
Adults Wellbeing and Health,Head of Adults,Third Party Payments,472101,Purchase of Care,22-May-2013,2596345-1331586H,931.56,CAREWATCH (DURHAM & EASINGTON) FASTFLOW ACC.
Adults Wellbeing and Health,Head of Adults,Third Party Payments,472101,Purchase of Care,22-May-2013,2596345-1331597H,892.75,CAREWATCH (DURHAM & EASINGTON) FASTFLOW ACC.
Adults Wellbeing and Health,Head of Adults,Third Party Payments,472101,Purchase of Care,22-May-2013,2596345-1331637H,"1,092.37",CAREWATCH (DURHAM & EASINGTON) FASTFLOW ACC.
Adults Wellbeing and Health,Head of Adults,Third Party Payments,478101,Purchase of Care,22-May-2013,2596345-1331704H,"1,430.00",CAREWATCH (DURHAM & EASINGTON) FASTFLOW ACC.
Adults Wellbeing and Health,Head of Adults,Third Party Payments,472101,Purchase of Care,22-May-2013,2596345-1331741H,"2,332.60",CAREWATCH (DURHAM & EASINGTON) FASTFLOW ACC.
Adults Wellbeing and Health,Head of Adults,Third Party Payments,478101,Purchase of Care,22-May-2013,2596345-1331816H,"1,800.76",CAREWATCH (DURHAM & EASINGTON) FASTFLOW ACC.
Adults Wellbeing and Health,Head of Adults,Third Party Payments,478101,Purchase of Care,22-May-2013,2596345-1331855H,924.00,CAREWATCH (DURHAM & EASINGTON) FASTFLOW ACC.
Adults Wellbeing and Health,Head of Adults,Third Party Payments,478101,Purchase of Care,22-May-2013,2596345-1331928H,"1,298.00",CAREWATCH (DURHAM & EASINGTON) FASTFLOW ACC.
Adults Wellbeing and Health,Head of Adults,Third Party Payments,472101,Purchase of Care,22-May-2013,2596345-1331960H,"1,042.46",CAREWATCH (DURHAM & EASINGTON) FASTFLOW ACC.
Adults Wellbeing and Health,Head of Adults,Third Party Payments,472101,Purchase of Care,22-May-2013,2596345-1331966H,"1,397.36",CAREWATCH (DURHAM & EASINGTON) FASTFLOW ACC.
Adults Wellbeing and Health,Head of Adults,Third Party Payments,472101,Purchase of Care,22-May-2013,2596345-1331988H,602.56,CAREWATCH (DURHAM & EASINGTON) FASTFLOW ACC.
Adults Wellbeing and Health,Head of Adults,Third Party Payments,472101,Purchase of Care,22-May-2013,2596345-1332191H,"1,208.81",CAREWATCH (DURHAM & EASINGTON) FASTFLOW ACC.
Adults Wellbeing and Health,Head of Adults,Third Party Payments,472101,Purchase of Care,22-May-2013,2596345-1332202H,"1,020.00",CAREWATCH (DURHAM & EASINGTON) FASTFLOW ACC.
Adults Wellbeing and Health,Head of Adults,Third Party Payments,472101,Purchase of Care,22-May-2013,2596345-1332227H,"1,197.72",CAREWATCH (DURHAM & EASINGTON) FASTFLOW ACC.
Adults Wellbeing and Health,Head of Adults,Third Party Payments,472101,Purchase of Care,22-May-2013,2596345-1332301H,"1,035.08",CAREWATCH (DURHAM & EASINGTON) FASTFLOW ACC.
Adults Wellbeing and Health,Head of Adults,Third Party Payments,472101,Purchase of Care,22-May-2013,2596345-1332387H,607.18,CAREWATCH (DURHAM & EASINGTON) FASTFLOW ACC.
Adults Wellbeing and Health,Head of Adults,Third Party Payments,472101,Purchase of Care,22-May-2013,2596345-1332572H,"1,542.92",CAREWATCH (DURHAM & EASINGTON) FASTFLOW ACC.
Adults Wellbeing and Health,Head of Adults,Third Party Payments,472101,Purchase of Care,22-May-2013,2596345-1332659H,"1,685.68",CAREWATCH (DURHAM & EASINGTON) FASTFLOW ACC.
Adults Wellbeing and Health,Head of Adults,Third Party Payments,478101,Purchase of Care,22-May-2013,2596345-1332712H,"1,980.00",CAREWATCH (DURHAM & EASINGTON) FASTFLOW ACC.
Adults Wellbeing and Health,Head of Adults,Third Party Payments,472101,Purchase of Care,22-May-2013,2596345-1332808H,532.32,CAREWATCH (DURHAM & EASINGTON) FASTFLOW ACC.
Adults Wellbeing and Health,Head of Adults,Third Party Payments,472101,Purchase of Care,22-May-2013,2596345-1333234H,658.00,CAREWATCH (DURHAM & EASINGTON) FASTFLOW ACC.
Adults Wellbeing and Health,Head of Adults,Third Party Payments,472101,Purchase of Care,22-May-2013,2596345-1333280H,591.48,CAREWATCH (DURHAM & EASINGTON) FASTFLOW ACC.
Adults Wellbeing and Health,Head of Adults,Third Party Payments,472101,Purchase of Care,22-May-2013,2596345-1333299H,552.66,CAREWATCH (DURHAM & EASINGTON) FASTFLOW ACC.
Adults Wellbeing and Health,Head of Adults,Third Party Payments,472101,Purchase of Care,22-May-2013,2596345-1333331H,"1,463.88",CAREWATCH (DURHAM & EASINGTON) FASTFLOW ACC.
Adults Wellbeing and Health,Head of Adults,Third Party Payments,472101,Purchase of Care,22-May-2013,2596345-1333444H,"1,216.21",CAREWATCH (DURHAM & EASINGTON) FASTFLOW ACC.
Adults Wellbeing and Health,Head of Adults,Third Party Payments,472101,Purchase of Care,22-May-2013,2596345-1333482H,"1,397.36",CAREWATCH (DURHAM & EASINGTON) FASTFLOW ACC.
Adults Wellbeing and Health,Head of Adults,Third Party Payments,472101,Purchase of Care,22-May-2013,2596345-1333668H,776.32,CAREWATCH (DURHAM & EASINGTON) FASTFLOW ACC.
Adults Wellbeing and Health,Head of Adults,Third Party Payments,472101,Purchase of Care,22-May-2013,2596345-1333687H,665.40,CAREWATCH (DURHAM & EASINGTON) FASTFLOW ACC.
Adults Wellbeing and Health,Head of Adults,Third Party Payments,472101,Purchase of Care,22-May-2013,2596345-1333713H,621.06,CAREWATCH (DURHAM & EASINGTON) FASTFLOW ACC.
Adults Wellbeing and Health,Head of Adults,Third Party Payments,472101,Purchase of Care,22-May-2013,2596345-1333836H,643.24,CAREWATCH (DURHAM & EASINGTON) FASTFLOW ACC.
Adults Wellbeing and Health,Head of Adults,Third Party Payments,472101,Purchase of Care,22-May-2013,2596345-1333853H,"1,009.20",CAREWATCH (DURHAM & EASINGTON) FASTFLOW ACC.
Adults Wellbeing and Health,Head of Adults,Third Party Payments,472101,Purchase of Care,22-May-2013,2596345-1334114H,621.04,CAREWATCH (DURHAM & EASINGTON) FASTFLOW ACC.
Adults Wellbeing and Health,Head of Adults,Third Party Payments,472101,Purchase of Care,22-May-2013,2596345-1334155H,621.04,CAREWATCH (DURHAM & EASINGTON) FASTFLOW ACC.
Adults Wellbeing and Health,Head of Adults,Third Party Payments,472101,Purchase of Care,22-May-2013,2596345-1334347H,569.28,CAREWATCH (DURHAM & EASINGTON) FASTFLOW ACC.
Adults Wellbeing and Health,Head of Adults,Third Party Payments,472101,Purchase of Care,22-May-2013,2596345-1334443H,"1,530.44",CAREWATCH (DURHAM & EASINGTON) FASTFLOW ACC.
Adults Wellbeing and Health,Head of Adults,Third Party Payments,472101,Purchase of Care,22-May-2013,2596345-1334457H,682.03,CAREWATCH (DURHAM & EASINGTON) FASTFLOW ACC.
Adults Wellbeing and Health,Head of Adults,Third Party Payments,472101,Purchase of Care,22-May-2013,2596345-1334515H,754.12,CAREWATCH (DURHAM & EASINGTON) FASTFLOW ACC.
Adults Wellbeing and Health,Head of Adults,Third Party Payments,472101,Purchase of Care,22-May-2013,2596345-1334660H,687.60,CAREWATCH (DURHAM & EASINGTON) FASTFLOW ACC.
Adults Wellbeing and Health,Head of Adults,Third Party Payments,472101,Purchase of Care,22-May-2013,2596345-1334692H,518.46,CAREWATCH (DURHAM & EASINGTON) FASTFLOW ACC.
Adults Wellbeing and Health,Head of Adults,Third Party Payments,472101,Purchase of Care,22-May-2013,2596345-1334700H,609.96,CAREWATCH (DURHAM & EASINGTON) FASTFLOW ACC.
Adults Wellbeing and Health,Head of Adults,Third Party Payments,472101,Purchase of Care,22-May-2013,2596345-1334784H,691.28,CAREWATCH (DURHAM & EASINGTON) FASTFLOW ACC.
Adults Wellbeing and Health,Head of Adults,Third Party Payments,472101,Purchase of Care,22-May-2013,2596345-1334849H,707.91,CAREWATCH (DURHAM & EASINGTON) FASTFLOW ACC.
Adults Wellbeing and Health,Head of Adults,Third Party Payments,472101,Purchase of Care,22-May-2013,2596345-1334861H,621.04,CAREWATCH (DURHAM & EASINGTON) FASTFLOW ACC.
Adults Wellbeing and Health,Head of Adults,Third Party Payments,472101,Purchase of Care,22-May-2013,2596345-1335223H,576.68,CAREWATCH (DURHAM & EASINGTON) FASTFLOW ACC.
Adults Wellbeing and Health,Head of Adults,Third Party Payments,472101,Purchase of Care,22-May-2013,2596345-1335226H,595.16,CAREWATCH (DURHAM & EASINGTON) FASTFLOW ACC.
Adults Wellbeing and Health,Head of Adults,Third Party Payments,472101,Purchase of Care,22-May-2013,2596345-1335403H,513.84,CAREWATCH (DURHAM & EASINGTON) FASTFLOW ACC.
Adults Wellbeing and Health,Head of Adults,Third Party Payments,472101,Purchase of Care,22-May-2013,2596345-1335435H,"1,286.44",CAREWATCH (DURHAM & EASINGTON) FASTFLOW ACC.
Adults Wellbeing and Health,Head of Adults,Third Party Payments,472101,Purchase of Care,22-May-2013,2596345-1335526H,543.42,CAREWATCH (DURHAM & EASINGTON) FASTFLOW ACC.
Adults Wellbeing and Health,Head of Adults,Third Party Payments,472101,Purchase of Care,22-May-2013,2596345-1335579H,642.30,CAREWATCH (DURHAM & EASINGTON) FASTFLOW ACC.
Adults Wellbeing and Health,Head of Adults,Third Party Payments,472101,Purchase of Care,22-May-2013,2596345-1335667H,532.32,CAREWATCH (DURHAM & EASINGTON) FASTFLOW ACC.
Adults Wellbeing and Health,Head of Adults,Third Party Payments,472101,Purchase of Care,22-May-2013,2596345-1335763H,748.59,CAREWATCH (DURHAM & EASINGTON) FASTFLOW ACC.
Adults Wellbeing and Health,Head of Adults,Third Party Payments,472101,Purchase of Care,22-May-2013,2596345-1335788H,764.28,CAREWATCH (DURHAM & EASINGTON) FASTFLOW ACC.
Adults Wellbeing and Health,Head of Adults,Third Party Payments,472101,Purchase of Care,22-May-2013,2596345-1335789H,609.95,CAREWATCH (DURHAM & EASINGTON) FASTFLOW ACC.
Adults Wellbeing and Health,Head of Adults,Third Party Payments,472101,Purchase of Care,22-May-2013,2596345-1335794H,576.68,CAREWATCH (DURHAM & EASINGTON) FASTFLOW ACC.
Adults Wellbeing and Health,Head of Adults,Third Party Payments,472101,Purchase of Care,22-May-2013,2596345-1335802H,517.52,CAREWATCH (DURHAM & EASINGTON) FASTFLOW ACC.
Adults Wellbeing and Health,Head of Adults,Third Party Payments,472101,Purchase of Care,22-May-2013,2596345-1335836H,665.40,CAREWATCH (DURHAM & EASINGTON) FASTFLOW ACC.
Adults Wellbeing and Health,Head of Adults,Third Party Payments,472101,Purchase of Care,22-May-2013,2596345-1336107H,649.70,CAREWATCH (DURHAM & EASINGTON) FASTFLOW ACC.
Adults Wellbeing and Health,Head of Adults,Transfer Payments,515201,Social Services Clients,22-May-2013,2596348-1332355H,"1,424.24",REDACTED - PAYMENT TO INDIVIDUAL
Adults Wellbeing and Health,Head of Adults,Transfer Payments,515201,Social Services Clients,22-May-2013,2596349-1330649H,"3,632.00",REDACTED - PAYMENT TO INDIVIDUAL
Adults Wellbeing and Health,Head of Adults,Transfer Payments,515201,Social Services Clients,22-May-2013,2596349-1330650H,"1,680.00",REDACTED - PAYMENT TO INDIVIDUAL
Adults Wellbeing and Health,Head of Adults,Transfer Payments,515201,Social Services Clients,22-May-2013,2596351-1333260H,635.60,REDACTED - PAYMENT TO INDIVIDUAL
Adults Wellbeing and Health,Head of Adults,Transfer Payments,515201,Social Services Clients,22-May-2013,2596352-1331387H,524.12,REDACTED - PAYMENT TO INDIVIDUAL
Adults Wellbeing and Health,Head of Adults,Transfer Payments,515201,Social Services Clients,22-May-2013,2596354-1331160H,548.60,REDACTED - PAYMENT TO INDIVIDUAL
Adults Wellbeing and Health,Head of Adults,Transfer Payments,515201,Social Services Clients,22-May-2013,2596355-1330002H,"1,772.40",REDACTED - PAYMENT TO INDIVIDUAL
Adults Wellbeing and Health,Head of Adults,Transfer Payments,515201,Social Services Clients,22-May-2013,2596356-1334481H,"1,611.72",REDACTED - PAYMENT TO INDIVIDUAL
Adults Wellbeing and Health,Head of Adults,Third Party Payments,472101,Purchase of Care,22-May-2013,2596358-1331082H,949.52,CASTLE CARE TEESDALE LTD.
Adults Wellbeing and Health,Head of Adults,Third Party Payments,472101,Purchase of Care,22-May-2013,2596358-1333693H,896.76,CASTLE CARE TEESDALE LTD.
Adults Wellbeing and Health,Head of Adults,Third Party Payments,472101,Purchase of Care,22-May-2013,2596358-1333731H,"1,455.92",CASTLE CARE TEESDALE LTD.
Adults Wellbeing and Health,Head of Adults,Third Party Payments,472101,Purchase of Care,22-May-2013,2596358-1335332H,590.80,CASTLE CARE TEESDALE LTD.
Adults Wellbeing and Health,Head of Adults,Transfer Payments,515201,Social Services Clients,22-May-2013,2596359-1333648H,"2,497.00",REDACTED - PAYMENT TO INDIVIDUAL
Adults Wellbeing and Health,Head of Adults,Transfer Payments,515201,Social Services Clients,22-May-2013,2596364-1333053H,738.52,REDACTED - PAYMENT TO INDIVIDUAL
Adults Wellbeing and Health,Head of Adults,Third Party Payments,471101,Purchase of Care,22-May-2013,2596365-2101715,"2,600.00",CEDAR CARE HOMES LTD.
Adults Wellbeing and Health,Head of Adults,Transfer Payments,515201,Social Services Clients,22-May-2013,2596366-1329195H,"1,327.96",REDACTED - PAYMENT TO INDIVIDUAL
Adults Wellbeing and Health,Head of Adults,Transfer Payments,515201,Social Services Clients,22-May-2013,2596368-1333460H,"1,115.68",REDACTED - PAYMENT TO INDIVIDUAL
Adults Wellbeing and Health,Head of Adults,Transfer Payments,515201,Social Services Clients,22-May-2013,2596370-1331644H,"1,866.16",REDACTED - PAYMENT TO INDIVIDUAL
Adults Wellbeing and Health,Head of Adults,Transfer Payments,515201,Social Services Clients,22-May-2013,2596371-1331643H,844.00,REDACTED - PAYMENT TO INDIVIDUAL
Adults Wellbeing and Health,Head of Adults,Third Party Payments,471101,Purchase of Care,22-May-2013,2596377-2101747,"1,780.00",CHERRY TREE LODGE.
Adults Wellbeing and Health,Head of Adults,Third Party Payments,470101,Purchase of Care,22-May-2013,2596380-2098698,"1,002.44",CHILTON CARE CENTRE.
Adults Wellbeing and Health,Head of Adults,Third Party Payments,470101,Purchase of Care,22-May-2013,2596380-2098699,"1,344.69",CHILTON CARE CENTRE.
Adults Wellbeing and Health,Head of Adults,Third Party Payments,470101,Purchase of Care,22-May-2013,2596380-2098701,"1,792.92",CHILTON CARE CENTRE.
Adults Wellbeing and Health,Head of Adults,Third Party Payments,470101,Purchase of Care,22-May-2013,2596380-2098702,"1,271.80",CHILTON CARE CENTRE.
Adults Wellbeing and Health,Head of Adults,Third Party Payments,470101,Purchase of Care,22-May-2013,2596380-2098703,"1,792.92",CHILTON CARE CENTRE.
Adults Wellbeing and Health,Head of Adults,Third Party Payments,470101,Purchase of Care,22-May-2013,2596380-2098704,"1,324.88",CHILTON CARE CENTRE.
Adults Wellbeing and Health,Head of Adults,Third Party Payments,470101,Purchase of Care,22-May-2013,2596380-2098705,"1,180.40",CHILTON CARE CENTRE.
Adults Wellbeing and Health,Head of Adults,Third Party Payments,470101,Purchase of Care,22-May-2013,2596380-2098706,601.60,CHILTON CARE CENTRE.
Adults Wellbeing and Health,Head of Adults,Third Party Payments,470101,Purchase of Care,22-May-2013,2596380-2098707,"1,305.16",CHILTON CARE CENTRE.
Adults Wellbeing and Health,Head of Adults,Third Party Payments,470101,Purchase of Care,22-May-2013,2596380-2098708,"1,306.68",CHILTON CARE CENTRE.
Adults Wellbeing and Health,Head of Adults,Third Party Payments,470101,Purchase of Care,22-May-2013,2596380-2098709,941.08,CHILTON CARE CENTRE.
Adults Wellbeing and Health,Head of Adults,Third Party Payments,470101,Purchase of Care,22-May-2013,2596380-2098710,"1,306.92",CHILTON CARE CENTRE.
Adults Wellbeing and Health,Head of Adults,Third Party Payments,470101,Purchase of Care,22-May-2013,2596380-2098711,"1,792.92",CHILTON CARE CENTRE.
Adults Wellbeing and Health,Head of Adults,Third Party Payments,470101,Purchase of Care,22-May-2013,2596380-2098712,"1,792.92",CHILTON CARE CENTRE.
Adults Wellbeing and Health,Head of Adults,Third Party Payments,470101,Purchase of Care,22-May-2013,2596380-2098713,"1,154.84",CHILTON CARE CENTRE.
Adults Wellbeing and Health,Head of Adults,Third Party Payments,470101,Purchase of Care,22-May-2013,2596380-2098714,683.08,CHILTON CARE CENTRE.
Adults Wellbeing and Health,Head of Adults,Third Party Payments,471101,Purchase of Care,22-May-2013,2596380-2101963,"1,255.60",CHILTON CARE CENTRE.
Adults Wellbeing and Health,Head of Adults,Third Party Payments,471101,Purchase of Care,22-May-2013,2596380-2101965,"1,195.64",CHILTON CARE CENTRE.
Adults Wellbeing and Health,Head of Adults,Third Party Payments,471101,Purchase of Care,22-May-2013,2596380-2101966,"1,863.80",CHILTON CARE CENTRE.
Adults Wellbeing and Health,Head of Adults,Third Party Payments,471101,Purchase of Care,22-May-2013,2596380-2101967,"1,184.16",CHILTON CARE CENTRE.
Adults Wellbeing and Health,Head of Adults,Third Party Payments,471101,Purchase of Care,22-May-2013,2596380-2101968,"1,377.80",CHILTON CARE CENTRE.
Adults Wellbeing and Health,Head of Adults,Third Party Payments,471101,Purchase of Care,22-May-2013,2596380-2101969,"1,333.28",CHILTON CARE CENTRE.
Adults Wellbeing and Health,Head of Adults,Third Party Payments,471101,Purchase of Care,22-May-2013,2596380-2101970,"1,000.52",CHILTON CARE CENTRE.
Adults Wellbeing and Health,Head of Adults,Third Party Payments,471101,Purchase of Care,22-May-2013,2596380-2101971,"1,863.80",CHILTON CARE CENTRE.
Adults Wellbeing and Health,Head of Adults,Third Party Payments,471101,Purchase of Care,22-May-2013,2596380-2101972,"1,863.80",CHILTON CARE CENTRE.
Adults Wellbeing and Health,Head of Adults,Third Party Payments,471101,Purchase of Care,22-May-2013,2596380-2101973,"1,173.80",CHILTON CARE CENTRE.
Adults Wellbeing and Health,Head of Adults,Third Party Payments,471101,Purchase of Care,22-May-2013,2596380-2101974,"1,377.80",CHILTON CARE CENTRE.
Adults Wellbeing and Health,Head of Adults,Third Party Payments,471101,Purchase of Care,22-May-2013,2596380-2101975,"1,074.52",CHILTON CARE CENTRE.
Adults Wellbeing and Health,Head of Adults,Third Party Payments,470101,Purchase of Care,22-May-2013,2596380-2101976,"1,863.80",CHILTON CARE CENTRE.
Adults Wellbeing and Health,Head of Adults,Third Party Payments,471101,Purchase of Care,22-May-2013,2596380-2101977,"1,377.80",CHILTON CARE CENTRE.
Adults Wellbeing and Health,Head of Adults,Third Party Payments,471101,Purchase of Care,22-May-2013,2596380-2101978,"1,377.80",CHILTON CARE CENTRE.
Adults Wellbeing and Health,Head of Adults,Third Party Payments,471101,Purchase of Care,22-May-2013,2596380-2101979,"1,377.80",CHILTON CARE CENTRE.
Adults Wellbeing and Health,Head of Adults,Third Party Payments,470101,Purchase of Care,22-May-2013,2596380-2101980,"1,265.96",CHILTON CARE CENTRE.
Adults Wellbeing and Health,Head of Adults,Third Party Payments,471101,Purchase of Care,22-May-2013,2596380-2101981,"1,863.80",CHILTON CARE CENTRE.
Adults Wellbeing and Health,Head of Adults,Third Party Payments,470101,Purchase of Care,22-May-2013,2596380-2102931,"1,050.30",CHILTON CARE CENTRE.
Adults Wellbeing and Health,Head of Adults,Third Party Payments,478101,Purchase of Care,22-May-2013,2596383-1329863H,"3,545.64",CHOICES COMMUNITY CARE SERVICES LTD.
Adults Wellbeing and Health,Head of Adults,Third Party Payments,478101,Purchase of Care,22-May-2013,2596383-1330694H,"5,528.60",CHOICES COMMUNITY CARE SERVICES LTD.
Adults Wellbeing and Health,Head of Adults,Third Party Payments,478101,Purchase of Care,22-May-2013,2596383-1330849H,"2,220.40",CHOICES COMMUNITY CARE SERVICES LTD.
Adults Wellbeing and Health,Head of Adults,Third Party Payments,478101,Purchase of Care,22-May-2013,2596383-1331017H,614.60,CHOICES COMMUNITY CARE SERVICES LTD.
Adults Wellbeing and Health,Head of Adults,Third Party Payments,478101,Purchase of Care,22-May-2013,2596383-1331018H,"1,605.80",CHOICES COMMUNITY CARE SERVICES LTD.
Adults Wellbeing and Health,Head of Adults,Third Party Payments,478101,Purchase of Care,22-May-2013,2596383-1331136H,"3,442.04",CHOICES COMMUNITY CARE SERVICES LTD.
Adults Wellbeing and Health,Head of Adults,Third Party Payments,478101,Purchase of Care,22-May-2013,2596383-1331162H,"3,567.64",CHOICES COMMUNITY CARE SERVICES LTD.
Adults Wellbeing and Health,Head of Adults,Third Party Payments,478101,Purchase of Care,22-May-2013,2596383-1331750H,"1,565.99",CHOICES COMMUNITY CARE SERVICES LTD.
Adults Wellbeing and Health,Head of Adults,Transfer Payments,515201,Social Services Clients,22-May-2013,2596384-1329915H,"1,360.96",REDACTED - PAYMENT TO INDIVIDUAL
Adults Wellbeing and Health,Head of Adults,Third Party Payments,470101,Purchase of Care,22-May-2013,2596387-2098772,"1,285.45",CHURCH VIEW CARE HOME.
Adults Wellbeing and Health,Head of Adults,Third Party Payments,470101,Purchase of Care,22-May-2013,2596387-2098773,"1,894.36",CHURCH VIEW CARE HOME.
Adults Wellbeing and Health,Head of Adults,Third Party Payments,470101,Purchase of Care,22-May-2013,2596387-2098774,"1,894.36",CHURCH VIEW CARE HOME.
Adults Wellbeing and Health,Head of Adults,Third Party Payments,470101,Purchase of Care,22-May-2013,2596387-2098775,"1,894.36",CHURCH VIEW CARE HOME.
Adults Wellbeing and Health,Head of Adults,Third Party Payments,470101,Purchase of Care,22-May-2013,2596387-2098776,"1,894.36",CHURCH VIEW CARE HOME.
Adults Wellbeing and Health,Head of Adults,Third Party Payments,470101,Purchase of Care,22-May-2013,2596387-2098777,"1,894.36",CHURCH VIEW CARE HOME.
Adults Wellbeing and Health,Head of Adults,Third Party Payments,470101,Purchase of Care,22-May-2013,2596387-2098778,"1,894.36",CHURCH VIEW CARE HOME.
Adults Wellbeing and Health,Head of Adults,Third Party Payments,470101,Purchase of Care,22-May-2013,2596387-2098779,"1,894.36",CHURCH VIEW CARE HOME.
Adults Wellbeing and Health,Head of Adults,Third Party Payments,470101,Purchase of Care,22-May-2013,2596387-2098780,"1,894.36",CHURCH VIEW CARE HOME.
Adults Wellbeing and Health,Head of Adults,Third Party Payments,470101,Purchase of Care,22-May-2013,2596387-2098781,"1,285.45",CHURCH VIEW CARE HOME.
Adults Wellbeing and Health,Head of Adults,Third Party Payments,470101,Purchase of Care,22-May-2013,2596387-2098782,879.52,CHURCH VIEW CARE HOME.
Adults Wellbeing and Health,Head of Adults,Third Party Payments,470101,Purchase of Care,22-May-2013,2596387-2098783,"1,894.36",CHURCH VIEW CARE HOME.
